Ref No,Fund Type,Dept,Cost Centre Description    ,Description    ,Creditor Name    ,GL Code Net Amount,Payment date        
2,Revenue,CAHD,Bed Purchasing - North,Permanent Nursing,.,4891.20,09 May 2018
3,Revenue,CAHD,Bed Purchasing - Southmead Hospital,Permanent Nursing,.,4954.80,09 May 2018
4,Revenue,CAHD,Bed Purchasing - South,Permanent Nursing,.,2564.28,09 May 2018
5,Revenue,CAHD,Bed Purchasing - Elderly S117- North,Permanent Nursing,.,3975.88,09 May 2018
6,Revenue,CAHD,Bed Purchasing - South,Permanent Residential,.,4279.80,09 May 2018
7,Revenue,CAHD,Bed Purchasing - Elderly S117- North,Permanent Nursing,.,4309.64,09 May 2018
8,Revenue,CAHD,Bed Purchasing - North,Permanent Nursing,.,4954.80,09 May 2018
9,Revenue,CAHD,Bed Purchasing - Elderly S117- North,Permanent Nursing,.,5523.20,09 May 2018
10,Revenue,CAHD,Bed Purchasing - South,Permanent Nursing,.,4891.20,09 May 2018
11,Revenue,CAHD,Bed Purchasing - North,Permanent Nursing,.,3356.88,09 May 2018
12,Revenue,CAHD,South Glos Users in South Glos Homes,Permanent Nursing,.,632.64,09 May 2018
13,Revenue,CAHD,South Glos Users in South Glos Homes,Permanent Nursing,.,542.26,09 May 2018
14,Revenue,CAHD,Bed Purchasing - South,Permanent Nursing,.,3413.20,09 May 2018
15,Revenue,CAHD,South Glos Users in South Glos Homes,Permanent Nursing,.,632.64,09 May 2018
16,Revenue,CAHD,Bed Purchasing - North,Permanent Nursing,.,4483.60,09 May 2018
17,Revenue,CAHD,South Glos Users in South Glos Homes,Permanent Nursing,.,632.64,09 May 2018
18,Revenue,CAHD,South Glos Users in South Glos Homes,Permanent Nursing,.,542.26,09 May 2018
19,Revenue,CAHD,Bed Purchasing - South,Permanent Nursing,.,4483.60,09 May 2018
20,Revenue,CAHD,South Glos Users in South Glos Homes,Permanent Nursing,.,1373.30,09 May 2018
21,Revenue,CAHD,South Glos Users in South Glos Homes,Permanent Nursing,.,632.64,09 May 2018
22,Revenue,CAHD,South Glos Users in South Glos Homes,Permanent Nursing,.,863.85,09 May 2018
23,Revenue,CAHD,Bed Purchasing - South,Permanent Nursing,.,3356.88,09 May 2018
24,Revenue,CAHD,South Glos Users in South Glos Homes,Permanent Nursing,.,632.64,09 May 2018
25,Revenue,CAHD,Bed Purchasing - Southmead Hospital,Permanent Nursing,.,4891.20,09 May 2018
26,Revenue,CAHD,South Glos Users in South Glos Homes,Permanent Nursing,.,632.64,09 May 2018
27,Revenue,CAHD,South Glos Users in South Glos Homes,Permanent Nursing,.,632.64,09 May 2018
28,Revenue,CAHD,Bed Purchasing - North,Permanent Residential,.,4335.44,09 May 2018
29,Revenue,CAHD,South Glos Users in South Glos Homes,Permanent Nursing,.,632.64,09 May 2018
30,Revenue,CAHD,Bed Purchasing - South,Permanent Nursing,.,3690.28,09 May 2018
31,Revenue,CAHD,South Glos Users in South Glos Homes,Permanent Nursing,.,632.64,09 May 2018
32,Revenue,CAHD,Bed Purchasing - Southmead Hospital,Permanent Nursing,.,3896.72,09 May 2018
33,Revenue,CAHD,South Glos Users in South Glos Homes,Permanent Nursing,.,632.64,09 May 2018
34,Revenue,CAHD,South Glos Users in South Glos Homes,Permanent Nursing,.,632.64,09 May 2018
35,Revenue,CAHD,South Glos Users in South Glos Homes,Permanent Nursing,.,632.64,09 May 2018
36,Revenue,CAHD,South Glos Users in South Glos Homes,Permanent Nursing,.,632.64,09 May 2018
37,Revenue,CAHD,South Glos Users in South Glos Homes,Permanent Nursing,.,632.64,09 May 2018
38,Revenue,CAHD,Bed Purchasing - Southmead Hospital,Permanent Nursing,.,4483.60,09 May 2018
39,Revenue,CAHD,South Glos Users in South Glos Homes,Permanent Nursing,.,1439.75,09 May 2018
40,Revenue,CAHD,South Glos Users in South Glos Homes,Permanent Nursing,.,632.64,09 May 2018
41,Revenue,CAHD,Bed Purchasing - North,Permanent Nursing,.,4308.92,09 May 2018
42,Revenue,CAHD,South Glos Users in South Glos Homes,Permanent Nursing,.,632.64,09 May 2018
43,Revenue,CAHD,South Glos Users in South Glos Homes,Permanent Nursing,.,632.64,09 May 2018
44,Revenue,CAHD,South Glos Users in South Glos Homes,Permanent Nursing,.,632.64,09 May 2018
45,Revenue,CAHD,South Glos Users in South Glos Homes,Permanent Nursing,.,632.64,09 May 2018
46,Revenue,CAHD,South Glos Users in South Glos Homes,Permanent Nursing,.,632.64,09 May 2018
47,Revenue,CAHD,South Glos Users in South Glos Homes,Permanent Nursing,.,632.64,09 May 2018
48,Revenue,CAHD,Bed Purchasing - North,Permanent Nursing,.,4483.60,09 May 2018
49,Revenue,CAHD,South Glos Users in South Glos Homes,Permanent Nursing,.,632.64,09 May 2018
50,Revenue,CAHD,South Glos Users in South Glos Homes,Permanent Nursing,.,632.64,09 May 2018
51,Revenue,CAHD,Bed Purchasing - North,Permanent Nursing,.,4259.20,09 May 2018
52,Revenue,CAHD,South Glos Users in South Glos Homes,Permanent Nursing,.,632.64,09 May 2018
53,Revenue,CAHD,South Glos Users in South Glos Homes,Permanent Nursing,.,632.64,09 May 2018
54,Revenue,CAHD,South Glos Users in South Glos Homes,Permanent Nursing,.,632.64,09 May 2018
55,Revenue,CAHD,South Glos Users in South Glos Homes,Permanent Nursing,.,632.64,09 May 2018
56,Revenue,CAHD,South Glos Users in South Glos Homes,Permanent Nursing,.,632.64,09 May 2018
57,Revenue,CAHD,South Glos Users in South Glos Homes,Permanent Nursing,.,632.64,09 May 2018
58,Revenue,CAHD,South Glos Users in South Glos Homes,Permanent Nursing,.,632.64,09 May 2018
59,Revenue,CAHD,South Glos Users in South Glos Homes,Permanent Nursing,.,1129.65,09 May 2018
60,Revenue,CAHD,South Glos Users in South Glos Homes,Permanent Nursing,.,632.64,09 May 2018
61,Revenue,CAHD,South Glos Users in South Glos Homes,Permanent Nursing,.,632.64,09 May 2018
62,Revenue,CAHD,South Glos Users in South Glos Homes,Permanent Nursing,.,632.64,09 May 2018
63,Revenue,CAHD,South Glos Users in South Glos Homes,Permanent Nursing,.,632.64,09 May 2018
64,Revenue,CAHD,South Glos Users in South Glos Homes,Permanent Nursing,.,1373.30,09 May 2018
65,Revenue,CAHD,South Glos Users in South Glos Homes,Permanent Nursing,.,632.64,09 May 2018
66,Revenue,CAHD,South Glos Users in South Glos Homes,Permanent Nursing,.,632.64,09 May 2018
67,Revenue,CAHD,Bed Purchasing - North,Permanent Nursing,.,3174.16,09 May 2018
68,Revenue,CAHD,South Glos Users in South Glos Homes,Permanent Nursing,.,632.64,09 May 2018
69,Revenue,CAHD,Bed Purchasing - South,Permanent Nursing,.,3851.60,09 May 2018
70,Revenue,CAHD,South Glos Users in South Glos Homes,Permanent Nursing,.,632.64,09 May 2018
71,Revenue,CAHD,South Glos Users in South Glos Homes,Permanent Nursing,.,632.64,09 May 2018
72,Revenue,CAHD,Bed Purchasing - North,Permanent Nursing,.,10837.81,09 May 2018
73,Revenue,CAHD,Bed Purchasing - North,Permanent Nursing,.,3988.84,09 May 2018
74,Revenue,CAHD,South Glos Users in South Glos Homes,Permanent Nursing,.,632.64,09 May 2018
75,Revenue,CAHD,South Glos Users in South Glos Homes,Permanent Nursing,.,632.64,09 May 2018
76,Revenue,CAHD,Bed Purchasing - Southmead Hospital,Permanent Nursing,.,3896.72,09 May 2018
77,Revenue,CAHD,South Glos Users in South Glos Homes,Permanent Nursing,.,632.64,09 May 2018
78,Revenue,CAHD,South Glos Users in South Glos Homes,Permanent Nursing,.,632.64,09 May 2018
79,Revenue,CAHD,South Glos Users in South Glos Homes,Permanent Nursing,.,632.64,09 May 2018
80,Revenue,CAHD,South Glos Users in South Glos Homes,Permanent Nursing,.,632.64,09 May 2018
81,Revenue,CAHD,Bed Purchasing - North,Permanent Residential,.,3612.88,09 May 2018
82,Revenue,CAHD,Bed Purchasing - North,Permanent Nursing,.,12635.60,09 May 2018
83,Revenue,CAHD,Bed Purchasing - South,Permanent Residential,.,3096.76,09 May 2018
84,Revenue,CAHD,Bed Purchasing - South,Permanent Nursing,.,2934.72,09 May 2018
85,Revenue,CAHD,Bed Purchasing - North,Permanent Residential,.,2832.84,09 May 2018
86,Revenue,CAHD,Bed Purchasing - Southmead Hospital,Permanent Residential,.,1937.05,09 May 2018
87,Revenue,CAHD,Bed Purchasing - Southmead Hospital,Fees & Charges Income - General,.,527.23,09 May 2018
88,Revenue,CAHD,Bed Purchasing - North,Respite Planned - Residential,.,4500.00,09 May 2018
89,Revenue,CAHD,Bed Purchasing - North,Respite Planned - Residential,.,917.10,09 May 2018
90,Revenue,CAHD,Bed Purchasing - Southmead Hospital,Respite Planned - Residential,.,3013.33,09 May 2018
91,Revenue,CAHD,Bed Purchasing - Southmead Hospital,Respite Planned - Residential,.,2442.86,09 May 2018
92,Revenue,CAHD,Bed Purchasing - Southmead Hospital,Respite Planned - Residential,.,1834.20,09 May 2018
93,Revenue,CAHD,Bed Purchasing - Southmead Hospital,Respite Planned - Residential,.,642.86,09 May 2018
94,Revenue,CAHD,Bed Purchasing - North,Permanent Residential,.,3668.40,09 May 2018
95,Revenue,CAHD,Bed Purchasing - North,Permanent Residential,.,3668.40,09 May 2018
96,Revenue,CAHD,Bed Purchasing - North,Permanent Residential,.,3668.40,09 May 2018
97,Revenue,CAHD,Bed Purchasing - North,Permanent Residential,.,3668.40,09 May 2018
98,Revenue,CAHD,Bed Purchasing - North,Permanent Residential,.,3600.00,09 May 2018
99,Revenue,CAHD,Bed Purchasing - North,Permanent Residential,.,3668.40,09 May 2018
100,Revenue,CAHD,Bed Purchasing - North,Permanent Residential,.,3668.40,09 May 2018
101,Revenue,CAHD,Bed Purchasing - North,Permanent Residential,.,3668.40,09 May 2018
102,Revenue,CAHD,Bed Purchasing - South,Respite Planned - Residential,.,1671.43,09 May 2018
103,Revenue,CAHD,Bed Purchasing - North,Permanent Residential,.,3668.40,09 May 2018
104,Revenue,CAHD,Bed Purchasing - North,Permanent Residential,.,3057.00,09 May 2018
105,Revenue,CAHD,18-25 Year Olds,Permanent Residential,1 St Georges House,13021.00,09 May 2018
106,Revenue,CAHD,Supporting People Programme,Grants to Voluntary Bodies,1625 Independent People,18078.00,01 May 2018
107,Revenue,CAHD,Bed Purchasing - Southmead Hospital,Permanent Residential,1St Floor Lingfield House,2649.40,09 May 2018
108,Revenue,CAHD,Bed Purchasing - North,Permanent Residential,1St Floor Lingfield House,2649.40,09 May 2018
109,Revenue,CAHD,Home Care - Elderly - South,Day Care / Social Activities,3 Trees Community Support Ltd,95.20,07 May 2018
110,Revenue,CAHD,Home Care - Elderly - North,Day Care / Social Activities,3 Trees Community Support Ltd,1175.72,07 May 2018
111,Revenue,CAHD,Home Care - Elderly - North,Other Small Contracts,3 Trees Community Support Ltd,718.76,07 May 2018
112,Revenue,CAHD,Home Care - Elderly - North,Supported Living,3 Trees Community Support Ltd,7093.07,07 May 2018
113,Revenue,CAHD,Home Care - Elderly - South,Day Care / Social Activities,3 Trees Community Support Ltd,95.20,14 May 2018
114,Revenue,CAHD,Home Care - Elderly - North,Day Care / Social Activities,3 Trees Community Support Ltd,1042.44,14 May 2018
115,Revenue,CAHD,Home Care - Elderly - North,Other Small Contracts,3 Trees Community Support Ltd,723.52,14 May 2018
116,Revenue,CAHD,Home Care - Elderly - North,Supported Living,3 Trees Community Support Ltd,7430.37,14 May 2018
117,Revenue,CAHD,Home Care - Elderly - South,Day Care / Social Activities,3 Trees Community Support Ltd,95.20,29 May 2018
118,Revenue,CAHD,Home Care - Elderly - North,Day Care / Social Activities,3 Trees Community Support Ltd,1313.76,29 May 2018
119,Revenue,CAHD,Home Care - Elderly - North,Other Small Contracts,3 Trees Community Support Ltd,723.52,29 May 2018
120,Revenue,CAHD,Home Care - Elderly - North,Supported Living,3 Trees Community Support Ltd,7584.73,29 May 2018
121,Revenue,CAHD,Home Care - Elderly - South,Day Care / Social Activities,3 Trees Community Support Ltd,95.20,29 May 2018
122,Revenue,CAHD,Home Care - Elderly - North,Day Care / Social Activities,3 Trees Community Support Ltd,1170.96,29 May 2018
123,Revenue,CAHD,Home Care - Elderly - North,Other Small Contracts,3 Trees Community Support Ltd,723.52,29 May 2018
124,Revenue,CAHD,Home Care - Elderly - North,Supported Living,3 Trees Community Support Ltd,7604.33,29 May 2018
125,Revenue,CAHD,18-25 Year Olds,Permanent Residential,5Th Floor Harlech Court,14897.40,09 May 2018
126,Revenue,CAHD,18-25 Year Olds,Permanent Residential,5Th Floor Harlech Court,15040.44,09 May 2018
127,Revenue,CAHD,18-25 Year Olds,Permanent Residential,5Th Floor Harlech Court,13380.24,09 May 2018
128,Revenue,CAHD,18-25 Year Olds,Permanent Residential,5Th Floor Harlech Court,17792.32,09 May 2018
129,Revenue,CAHD,Bed Purchasing - North,Permanent Residential,5Th Floor Harlech Court,13492.04,09 May 2018
130,Revenue,CAHD,18-25 Year Olds,Permanent Residential,5Th Floor Harlech Court,13505.44,09 May 2018
131,Revenue,CAHD,Bed Purchasing - North,Permanent Residential,5Th Floor Harlech Court,14372.24,09 May 2018
132,Revenue,CAHD,Jointly Funded H&SC Packages,Permanent Residential,5Th Floor Harlech Court,3556.48,09 May 2018
133,Revenue,CAHD,18-25 Year Olds,Permanent Residential,5Th Floor Harlech Court,17021.40,09 May 2018
134,Revenue,CAHD,Bed Purchasing - South,Permanent Residential,5Th Floor Harlech Court,16276.48,09 May 2018
135,Revenue,CAHD,Bed Purchasing - South,Permanent Residential,5Th Floor Harlech Court,10175.32,09 May 2018
136,Revenue,CAHD,Bed purchasing - S28A Under 65 - South,Permanent Residential,5Th Floor Harlech Court,10649.12,09 May 2018
137,Revenue,CAHD,Bed purchasing - S28A Under 65 - South,Permanent Residential,5Th Floor Harlech Court,5324.56,09 May 2018
138,Revenue,CAHD,Bed Purchasing - South,Permanent Residential,5Th Floor Harlech Court,11168.36,09 May 2018
139,Revenue,CAHD,Bed Purchasing - South,Permanent Residential,5Th Floor Harlech Court,7425.64,09 May 2018
140,Revenue,CAHD,Jointly Funded H&SC Packages,Permanent Residential,5Th Floor Harlech Court,2743.16,09 May 2018
141,Revenue,CAHD,Bed Purchasing - South,Permanent Residential,5Th Floor Harlech Court,4424.37,09 May 2018
142,Revenue,CAHD,Jointly Funded H&SC Packages,Permanent Residential,5Th Floor Harlech Court,1634.43,09 May 2018
143,Revenue,CAHD,Jointly Funded H&SC Packages,Permanent Residential,5Th Floor Harlech Court,1371.58,09 May 2018
144,Revenue,CAHD,Bed Purchasing - South,Permanent Residential,5Th Floor Harlech Court,3712.82,09 May 2018
145,Revenue,CAHD,Bed Purchasing - South,Permanent Residential,5Th Floor Harlech Court,1041.03,09 May 2018
146,Revenue,CAHD,Alexandra Way,Mechanical & Electrical Maintenance,A E Horder (Contracting) Limited,562.49,11 May 2018
147,Revenue,CAHD,Early Years Inclusion Fund,Other Public Bodies,Abbeywood Tots Day Nursery Ltd,1000.00,11 May 2018
148,Revenue,CAHD,Bed Purchasing - North,Permanent Nursing,ABI Development Limited,7736.08,09 May 2018
149,Revenue,CAHD,Minor Adaptations Service,Daily Living Equipment,ABI Developments 3 Limited,997.09,29 May 2018
150,Revenue,CAHD,Home Care - Elderly - South,Day Care / Social Activities,About Me Care and Support Limited,1359.04,02 May 2018
151,Revenue,CAHD,Home Care - Elderly - North,Day Care / Social Activities,About Me Care and Support Limited,613.76,02 May 2018
152,Revenue,CAHD,Home Care - Elderly - South,Day Care / Social Activities,About Me Care and Support Limited,832.96,02 May 2018
153,Revenue,CAHD,Home Care - Elderly - South,Day Care / Social Activities,About Me Care and Support Limited,1379.50,29 May 2018
154,Revenue,CAHD,Home Care - Elderly - North,Day Care / Social Activities,About Me Care and Support Limited,623.00,29 May 2018
155,Revenue,CAHD,Bed Purchasing - Elderly S117- North,Permanent Residential,Acorn Care Providers,35962.39,09 May 2018
156,Revenue,CAHD,Section 117 Placements MH Younger,Permanent Residential,Acorn Care Providers,6453.32,09 May 2018
157,Revenue,CAHD,Bed Purchasing - Elderly S117- North,Permanent Residential,Acorn Care Providers,3226.66,09 May 2018
158,Revenue,CAHD,Training - Adult Services,Training Expenses,Acorn Health & Safety Limited,465.00,07 May 2018
159,Revenue,CAHD,Training Budget - Children`s Social Serv,Training Expenses,Acorn Health & Safety Limited,449.00,21 May 2018
160,Revenue,CAHD,CSC - Agency Fostering,Foster Parent Allowances,Action for Children,6750.00,04 May 2018
161,Revenue,CAHD,CSC - Agency Fostering,Foster Parent Allowances,Action for Children,6975.00,30 May 2018
162,Revenue,CAHD,Home Care - Elderly - South,Other Small Contracts,Advantedge Commercial Finance Limited,1787.87,18 May 2018
163,Revenue,CAHD,Home Care - Elderly - South,Other Small Contracts,Advantedge Commercial Finance Limited,912.00,18 May 2018
164,Revenue,CAHD,Home Care - Elderly - South,Other Small Contracts,Advantedge Commercial Finance Limited,592.80,18 May 2018
165,Revenue,CAHD,Home Care - Elderly - South,Other Small Contracts,Advantedge Commercial Finance Limited,2309.58,16 May 2018
166,Revenue,CAHD,Home Care - Elderly - South,Other Small Contracts,Advantedge Commercial Finance Limited,912.00,16 May 2018
167,Revenue,CAHD,Home Care - Elderly - North,Other Small Contracts,Advantedge Commercial Finance Limited,766.08,16 May 2018
168,Revenue,CAHD,Home Care - Elderly - South,Other Small Contracts,Agincare UK Limited,2047.00,14 May 2018
169,Revenue,CAHD,Home Care - Elderly - North,Other Small Contracts,Agincare UK Limited,1361.70,14 May 2018
170,Revenue,CAHD,Home Care - Elderly - South,Other Small Contracts,Agincare UK Limited,1980.25,18 May 2018
171,Revenue,CAHD,Home Care - Elderly - North,Other Small Contracts,Agincare UK Limited,1263.80,18 May 2018
172,Revenue,CAHD,Home Care - Elderly - South,Other Small Contracts,Agincare UK Limited,2047.00,30 May 2018
173,Revenue,CAHD,Home Care - Elderly - North,Other Small Contracts,Agincare UK Limited,1437.35,30 May 2018
174,Revenue,CAHD,Extra Care Housing,Private & Voluntary Home Care,Agincare UK Limited,21920.39,01 May 2018
175,Revenue,CAHD,Extra Care Housing,Private & Voluntary Home Care,Agincare UK Limited,10674.56,01 May 2018
176,Revenue,CAHD,Extra Care Housing,Private & Voluntary Home Care,Agincare UK Limited,25811.00,04 May 2018
177,Revenue,CAHD,Extra Care Housing,Private & Voluntary Home Care,Agincare UK Limited,2609.14,15 May 2018
178,Revenue,CAHD,Extra Care Housing,Private & Voluntary Home Care,Agincare UK Limited,918.45,25 May 2018
179,Revenue,CAHD,Extra Care Housing,Private & Voluntary Home Care,Agincare UK Limited,2776.52,15 May 2018
180,Revenue,CAHD,Extra Care Housing,Private & Voluntary Home Care,Agincare UK Limited,1341.37,15 May 2018
181,Revenue,CAHD,Prison Assessments & Costs,Other Supplies & Services,Agincare UK Limited,5425.53,25 May 2018
182,Revenue,CAHD,Home Care - Elderly - South,Other Small Contracts,AliMo Care Ltd,860.16,04 May 2018
183,Revenue,CAHD,Home Care - Elderly - South,Other Small Contracts,AliMo Care Ltd,815.36,10 May 2018
184,Revenue,CAHD,Home Care - Elderly - South,Other Small Contracts,AliMo Care Ltd,626.09,18 May 2018
185,Revenue,CAHD,Home Care - Elderly - South,Other Small Contracts,AliMo Care Ltd,722.06,25 May 2018
186,Revenue,CAHD,Bed Purchasing - Southmead Hospital,Permanent Nursing,Allambie Court,2266.04,09 May 2018
187,Revenue,CAHD,Bed Purchasing - Southmead Hospital,Permanent Nursing,Allambie Court,2266.04,09 May 2018
188,Revenue,CAHD,Tobacco Control,Other Small Contracts,Almondsbury Surgery,1159.75,14 May 2018
189,Revenue,CAHD,Bed Purchasing - South,Permanent Nursing,Ambleside Nusing Home,2166.56,09 May 2018
190,Revenue,CAHD,Bed Purchasing - Southmead Hospital,Permanent Nursing,Amerind Grove Nursing Home,2642.88,09 May 2018
191,Revenue,CAHD,CSC - Agency Fostering,Foster Parent Allowances,Amicus Foster Care Ltd,4879.00,30 May 2018
192,Revenue,CAHD,Supporting People Programme,Grants to Voluntary Bodies,Anchor Housing,827.00,01 May 2018
193,Revenue,CAHD,CSC - Section 17 0-25,Preventative Assistance,Angel Care Support Limited,3738.00,24 May 2018
194,Revenue,CAHD,CSC - Section 17 0-25,Preventative Assistance,Angel Care Support Limited,1512.00,29 May 2018
195,Revenue,CAHD,CSC - Safeguarding Board,Training Expenses,Anthony Domaille,1800.00,11 May 2018
196,Revenue,CAHD,Early Years Inclusion Fund,Other Public Bodies,Apple Tree Pre-School,1000.00,15 May 2018
197,Revenue,CAHD,Independent Special Placements - Pre 16,Other Private Contractors,Arc Schools,18625.00,01 May 2018
198,Revenue,CAHD,Bed Purchasing - North,Permanent Residential,Ark Care Homes Ltd,11480.92,09 May 2018
199,Revenue,CAHD,CSC - Vinney Green Secure Unit,Educational Materials,Ascentis,600.00,30 May 2018
200,Revenue,CAHD,Bed Purchasing - South,Permanent Nursing,Ash Grove House,2890.28,09 May 2018
201,Revenue,CAHD,Jointly Funded H&SC Packages,Permanent Residential,Ash View House,1085.36,09 May 2018
202,Revenue,CAHD,Bed Purchasing - South,Permanent Residential,Ash View House,5293.96,09 May 2018
203,Revenue,CAHD,S117 Placements PCT,Permanent Residential,Ash View House,7379.20,09 May 2018
204,Revenue,CAHD,18-25 Year Olds,Permanent Residential,Ash View House,6933.12,09 May 2018
205,Revenue,CAHD,Section 117 Placements MH Younger,Permanent Residential,Ash View House,4808.72,09 May 2018
206,Revenue,CAHD,Jointly Funded H&SC Packages,Permanent Residential,Ash View House,2060.92,09 May 2018
207,Revenue,CAHD,Bed purchasing - Elderly S117 - South,Permanent Residential,Ash View House,6535.92,09 May 2018
208,Revenue,CAHD,18-25 Year Olds,Permanent Residential,Ash View House,6460.48,09 May 2018
209,Revenue,CAHD,DAT Treatment,Rent,Ashville Asset Management Limited,472.47,14 May 2018
210,Revenue,CAHD,DAT Treatment,Rent,Ashville Asset Management Limited,4188.49,15 May 2018
211,Revenue,CAHD,Bed Purchasing - North,Permanent Residential,Aspects 2 Limited,7062.40,09 May 2018
212,Revenue,CAHD,Supporting People Programme,Grants to Voluntary Bodies,Aspects and Milestones Trust,3361.00,01 May 2018
213,Revenue,CAHD,Supporting People Programme,Grants to Voluntary Bodies,Aspects and Milestones Trust,1685.00,01 May 2018
214,Revenue,CAHD,Supporting People Programme,Grants to Voluntary Bodies,Aspects and Milestones Trust,662.00,01 May 2018
215,Revenue,CAHD,Supporting People Programme,Grants to Voluntary Bodies,Aspects and Milestones Trust,662.00,01 May 2018
216,Revenue,CAHD,Bed Purchasing - South,Adults - Family Support,Ategi Limited,12336.72,11 May 2018
217,Revenue,CAHD,18-25 Year Olds,Permanent Residential,Aurora Care & Education,62497.83,09 May 2018
218,Revenue,CAHD,Independent Special Placements - Pre 16,Other Private Contractors,Aurora Care & Education,85000.00,09 May 2018
219,Revenue,CAHD,CSC - Residential Placements,Permanent Residential,Aurora Care & Education,41873.39,18 May 2018
220,Revenue,CAHD,Independent Special Placements - Pre 16,Other Private Contractors,Aurora Care & Education,20624.21,18 May 2018
221,Revenue,CAHD,CSC - Residential Placements,Permanent Residential,Aurora Care & Education,37498.56,18 May 2018
222,Revenue,CAHD,Independent Special Placements - Post 16,Other Private Contractors,Aurora Care & Education,24999.04,18 May 2018
223,Revenue,CAHD,Independent Special Placements - Pre 16,Other Private Contractors,Aurora Hedgeway School,15154.33,14 May 2018
224,Revenue,CAHD,Independent Special Placements - Pre 16,Other Private Contractors,Aurora Hedgeway School,15154.33,14 May 2018
225,Revenue,CAHD,Independent Special Placements - Pre 16,Other Private Contractors,Aurora Hedgeway School,22260.33,14 May 2018
226,Revenue,CAHD,Bed Purchasing - South,Permanent Residential,Autism Specialised Care Homes,6354.36,09 May 2018
227,Revenue,CAHD,Bed Purchasing - South,Permanent Residential,Avery Homes Downend Limited,2850.00,09 May 2018
228,Revenue,CAHD,Bed Purchasing - South,Permanent Residential,Avery Homes Downend Limited,2850.00,09 May 2018
229,Revenue,CAHD,CSC - LAC - Counselling & Therapy,Other Supplies & Services,Avon & Wiltshire Mental Health,54462.00,17 May 2018
230,Revenue,CAHD,Younger Adult Mental Health,Health Services (Third Party Payments),Avon & Wiltshire Mental Health,1693.33,04 May 2018
231,Revenue,CAHD,Early Years High Needs Support,Other Private Contractors,Baker Street Nursery & Pre-School,910.13,23 May 2018
232,Revenue,CAHD,EARLY YEARS DISABILITY  ACCES FUND,Preventative Assistance,Baker Street Nursery & Pre-School,615.00,07 May 2018
233,Revenue,CAHD,Purchase of RAC places,Other L.A.'s - General,Bath & North East Somerset Council,1207.60,04 May 2018
234,Revenue,CAHD,Purchase of RAC places,Other L.A.'s - General,Bath & North East Somerset Council,1772.00,04 May 2018
235,Revenue,CAHD,Pensions - Non DSG,Annual Pension,Bath & North East Somerset Council,111325.41,22 May 2018
236,Revenue,CAHD,"Education, Learning and Skills",Catering,Bawa Healthcare & Leisure,319.16,30 May 2018
237,Revenue,CAHD,"Education, Learning and Skills",Premises Hire,Bawa Healthcare & Leisure,310.00,30 May 2018
238,Revenue,CAHD,South Glos Users in South Glos Homes,Permanent Nursing,Beaufort Grange Care Home,632.64,09 May 2018
239,Revenue,CAHD,South Glos Users in South Glos Homes,Permanent Nursing,Beaufort Grange Care Home,632.64,09 May 2018
240,Revenue,CAHD,Bed Purchasing - Southmead Hospital,Permanent Nursing,Beaufort Grange Care Home,4000.11,09 May 2018
241,Revenue,CAHD,South Glos Users in South Glos Homes,Permanent Nursing,Beaufort Grange Care Home,632.64,09 May 2018
242,Revenue,CAHD,South Glos Users in South Glos Homes,Permanent Nursing,Beaufort Grange Care Home,632.64,09 May 2018
243,Revenue,CAHD,South Glos Users in South Glos Homes,Permanent Nursing,Beaufort Grange Care Home,632.64,09 May 2018
244,Revenue,CAHD,South Glos Users in South Glos Homes,Permanent Nursing,Beaufort Grange Care Home,632.64,09 May 2018
245,Revenue,CAHD,South Glos Users in South Glos Homes,Permanent Nursing,Beaufort Grange Care Home,632.64,09 May 2018
246,Revenue,CAHD,South Glos Users in South Glos Homes,Permanent Nursing,Beaufort Grange Care Home,632.64,09 May 2018
247,Revenue,CAHD,South Glos Users in South Glos Homes,Permanent Nursing,Beaufort Grange Care Home,632.64,09 May 2018
248,Revenue,CAHD,South Glos Users in South Glos Homes,Permanent Nursing,Beaufort Grange Care Home,632.64,09 May 2018
249,Revenue,CAHD,Bed Purchasing - Elderly S117- North,Permanent Nursing,Beaufort Grange Care Home,4762.72,09 May 2018
250,Revenue,CAHD,South Glos Users in South Glos Homes,Permanent Nursing,Beaufort Grange Care Home,632.64,09 May 2018
251,Revenue,CAHD,South Glos Users in South Glos Homes,Permanent Nursing,Beaufort Grange Care Home,632.64,09 May 2018
252,Revenue,CAHD,South Glos Users in South Glos Homes,Permanent Nursing,Beaufort Grange Care Home,632.64,09 May 2018
253,Revenue,CAHD,South Glos Users in South Glos Homes,Permanent Nursing,Beaufort Grange Care Home,632.64,09 May 2018
254,Revenue,CAHD,South Glos Users in South Glos Homes,Permanent Nursing,Beaufort Grange Care Home,632.64,09 May 2018
255,Revenue,CAHD,Bed Purchasing - North,Permanent Residential,Beaufort House,2489.80,09 May 2018
256,Revenue,CAHD,Bed Purchasing - Southmead Hospital,Permanent Residential,Beaufort House,2710.56,09 May 2018
257,Revenue,CAHD,Bed Purchasing - North,Permanent Residential,Beaufort House,2511.12,09 May 2018
258,Revenue,CAHD,Bed Purchasing - South,Permanent Residential,Beaufort House,2477.40,09 May 2018
259,Revenue,CAHD,Bed Purchasing - South,Permanent Residential,Beaufort House,2383.84,09 May 2018
260,Revenue,CAHD,Bed Purchasing - Southmead Hospital,Respite Planned - Residential,Beaufort House,2710.56,09 May 2018
261,Revenue,CAHD,Bed Purchasing - North,Permanent Residential,Beaufort House,2453.56,09 May 2018
262,Revenue,CAHD,Bed Purchasing - Southmead Hospital,Permanent Residential,Beaufort House,2710.56,09 May 2018
263,Revenue,CAHD,Bed Purchasing - Southmead Hospital,Permanent Residential,Beaufort House,662.35,09 May 2018
264,Revenue,CAHD,Bed Purchasing - North,Permanent Residential,Beaufort House,2636.64,09 May 2018
265,Revenue,CAHD,Bed Purchasing - South,Permanent Residential,Beaufort House,2649.40,09 May 2018
266,Revenue,CAHD,Bed Purchasing - Southmead Hospital,Permanent Residential,Beaufort House,2511.12,09 May 2018
267,Revenue,CAHD,Bed Purchasing - Southmead Hospital,Permanent Residential,Beaufort House,2683.84,09 May 2018
268,Revenue,CAHD,South Glos Users in South Glos Homes,Permanent Nursing,Beech House,632.64,09 May 2018
269,Revenue,CAHD,Bed Purchasing - South,Permanent Residential,Beech House,2890.28,09 May 2018
270,Revenue,CAHD,South Glos Users in South Glos Homes,Permanent Nursing,Beech House,632.64,09 May 2018
271,Revenue,CAHD,Bed Purchasing - Southmead Hospital,Permanent Residential,Beech House,4055.64,09 May 2018
272,Revenue,CAHD,Bed Purchasing - Southmead Hospital,Permanent Residential,Beech House,2027.82,09 May 2018
273,Revenue,CAHD,Bed Purchasing - Southmead Hospital,Permanent Residential,Beech House,1563.57,09 May 2018
274,Revenue,CAHD,South Glos Users in South Glos Homes,Permanent Nursing,Beech House,632.64,09 May 2018
275,Revenue,CAHD,South Glos Users in South Glos Homes,Permanent Nursing,Beech House,632.64,09 May 2018
276,Revenue,CAHD,Bed Purchasing - North,Permanent Residential,Beech House,3423.84,09 May 2018
277,Revenue,CAHD,South Glos Users in South Glos Homes,Permanent Nursing,Beech House,632.64,09 May 2018
278,Revenue,CAHD,Bed Purchasing - North,Permanent Nursing,Beech House,2761.24,09 May 2018
279,Revenue,CAHD,South Glos Users in South Glos Homes,Permanent Nursing,Beech House,632.64,09 May 2018
280,Revenue,CAHD,South Glos Users in South Glos Homes,Permanent Nursing,Beech House,632.64,09 May 2018
281,Revenue,CAHD,Bed Purchasing - North,Permanent Nursing,Beech House,3088.64,09 May 2018
282,Revenue,CAHD,Bed Purchasing - North,Permanent Nursing,Beech House,1544.32,09 May 2018
283,Revenue,CAHD,South Glos Users in South Glos Homes,Permanent Nursing,Beech House,632.64,09 May 2018
284,Revenue,CAHD,Bed Purchasing - North,Permanent Nursing,Beech House,3464.60,09 May 2018
285,Revenue,CAHD,South Glos Users in South Glos Homes,Permanent Nursing,Beech House,632.64,09 May 2018
286,Revenue,CAHD,Bed Purchasing - North,Permanent Residential,Beech House,2890.28,09 May 2018
287,Revenue,CAHD,South Glos Users in South Glos Homes,Permanent Nursing,Beech House,632.64,09 May 2018
288,Revenue,CAHD,South Glos Users in South Glos Homes,Permanent Nursing,Beech House,632.64,09 May 2018
289,Revenue,CAHD,South Glos Users in South Glos Homes,Permanent Nursing,Beech House,632.64,09 May 2018
290,Revenue,CAHD,South Glos Users in South Glos Homes,Permanent Nursing,Beech House,632.64,09 May 2018
291,Revenue,CAHD,South Glos Users in South Glos Homes,Permanent Nursing,Beech House,632.64,09 May 2018
292,Revenue,CAHD,South Glos Users in South Glos Homes,Permanent Nursing,Beech House,632.64,09 May 2018
293,Revenue,CAHD,South Glos Users in South Glos Homes,Permanent Nursing,Beech House,632.64,09 May 2018
294,Revenue,CAHD,South Glos Users in South Glos Homes,Permanent Nursing,Beech House,632.64,09 May 2018
295,Revenue,CAHD,Bed Purchasing - Southmead Hospital,Permanent Residential,Beech House,3749.92,09 May 2018
296,Revenue,CAHD,South Glos Users in South Glos Homes,Permanent Nursing,Beech House,632.64,09 May 2018
297,Revenue,CAHD,Bed Purchasing - North,Permanent Nursing,Beech House,3362.72,09 May 2018
298,Revenue,CAHD,South Glos Users in South Glos Homes,Permanent Nursing,Beech House,632.64,09 May 2018
299,Revenue,CAHD,Bed Purchasing - North,Permanent Nursing,Beech House,3229.92,09 May 2018
300,Revenue,CAHD,South Glos Users in South Glos Homes,Permanent Nursing,Beech House,632.64,09 May 2018
301,Revenue,CAHD,South Glos Users in South Glos Homes,Permanent Nursing,Beech House,632.64,09 May 2018
302,Revenue,CAHD,South Glos Users in South Glos Homes,Permanent Nursing,Beech House,632.64,09 May 2018
303,Revenue,CAHD,South Glos Users in South Glos Homes,Permanent Nursing,Beech House,632.64,09 May 2018
304,Revenue,CAHD,Bed Purchasing - Southmead Hospital,Permanent Residential,Beech House,3423.60,09 May 2018
305,Revenue,CAHD,Bed Purchasing - Southmead Hospital,Permanent Residential,Beech House,1711.80,09 May 2018
306,Revenue,CAHD,Bed Purchasing - Southmead Hospital,Permanent Residential,Beech House,599.96,09 May 2018
307,Revenue,CAHD,Statemented Support Payments to OLAs,Other L.A.'s - General,Beechen Cliff School,659.53,24 May 2018
308,Revenue,CAHD,CSC - Vinney Green Secure Unit,Training Expenses,Blackhorse Sports and Community Association,840.00,24 May 2018
309,Revenue,CAHD,Bed purchasing - Elderly S117 - South,Permanent Nursing,Blossom Field,4259.20,09 May 2018
310,Revenue,CAHD,South Glos Users in South Glos Homes,Permanent Nursing,Blossom Field,632.64,09 May 2018
311,Revenue,CAHD,Bed Purchasing - North,Permanent Nursing,Blossom Field,3590.88,09 May 2018
312,Revenue,CAHD,South Glos Users in South Glos Homes,Permanent Nursing,Blossom Field,632.64,09 May 2018
313,Revenue,CAHD,Bed Purchasing - Elderly S117- North,Permanent Nursing,Blossom Field,3607.00,09 May 2018
314,Revenue,CAHD,South Glos Users in South Glos Homes,Permanent Nursing,Blossom Field,632.64,09 May 2018
315,Revenue,CAHD,South Glos Users in South Glos Homes,Permanent Nursing,Blossom Field,632.64,09 May 2018
316,Revenue,CAHD,South Glos Users in South Glos Homes,Permanent Nursing,Blossom Field,632.64,09 May 2018
317,Revenue,CAHD,South Glos Users in South Glos Homes,Permanent Nursing,Blossom Field,632.64,09 May 2018
318,Revenue,CAHD,Bed Purchasing - North,Permanent Nursing,Blossom Field,2739.08,09 May 2018
319,Revenue,CAHD,South Glos Users in South Glos Homes,Permanent Nursing,Blossom Field,632.64,09 May 2018
320,Revenue,CAHD,South Glos Users in South Glos Homes,Permanent Nursing,Blossom Field,632.64,09 May 2018
321,Revenue,CAHD,South Glos Users in South Glos Homes,Permanent Nursing,Blossom Field,632.64,09 May 2018
322,Revenue,CAHD,South Glos Users in South Glos Homes,Permanent Nursing,Blossom Field,632.64,09 May 2018
323,Revenue,CAHD,South Glos Users in South Glos Homes,Permanent Nursing,Blossom Field,1904.90,09 May 2018
324,Revenue,CAHD,South Glos Users in South Glos Homes,Permanent Nursing,Blossom Field,632.64,09 May 2018
325,Revenue,CAHD,South Glos Users in South Glos Homes,Permanent Nursing,Blossom Field,632.64,09 May 2018
326,Revenue,CAHD,South Glos Users in South Glos Homes,Permanent Nursing,Blossom Field,632.64,09 May 2018
327,Revenue,CAHD,South Glos Users in South Glos Homes,Permanent Nursing,Blossom Field,632.64,09 May 2018
328,Revenue,CAHD,Bed Purchasing - Southmead Hospital,Permanent Nursing,Blossom Field,4076.00,09 May 2018
329,Revenue,CAHD,South Glos Users in South Glos Homes,Permanent Nursing,Blossom Field,974.60,09 May 2018
330,Revenue,CAHD,South Glos Users in South Glos Homes,Permanent Nursing,Blossom Field,632.64,09 May 2018
331,Revenue,CAHD,Bed Purchasing - South,Permanent Nursing,Blossom Field,4309.64,09 May 2018
332,Revenue,CAHD,South Glos Users in South Glos Homes,Permanent Nursing,Blossom Field,632.64,09 May 2018
333,Revenue,CAHD,South Glos Users in South Glos Homes,Permanent Nursing,Blossom Field,632.64,09 May 2018
334,Revenue,CAHD,South Glos Users in South Glos Homes,Permanent Nursing,Blossom Field,632.64,09 May 2018
335,Revenue,CAHD,South Glos Users in South Glos Homes,Permanent Nursing,Blossom Field,632.64,09 May 2018
336,Revenue,CAHD,Bed Purchasing - North,Permanent Nursing,Blossom Field,4687.40,09 May 2018
337,Revenue,CAHD,Bed Purchasing - North,Permanent Nursing,Blossom Field,2343.70,09 May 2018
338,Revenue,CAHD,South Glos Users in South Glos Homes,Permanent Nursing,Blossom Field,632.64,09 May 2018
339,Revenue,CAHD,South Glos Users in South Glos Homes,Permanent Nursing,Blossom Field,632.64,09 May 2018
340,Revenue,CAHD,South Glos Users in South Glos Homes,Permanent Nursing,Blossom Field,632.64,09 May 2018
341,Revenue,CAHD,South Glos Users in South Glos Homes,Permanent Nursing,Blossom Field,632.64,09 May 2018
342,Revenue,CAHD,South Glos Users in South Glos Homes,Permanent Nursing,Blossom Field,632.64,09 May 2018
343,Revenue,CAHD,South Glos Users in South Glos Homes,Permanent Nursing,Blossom Field,753.10,09 May 2018
344,Revenue,CAHD,South Glos Users in South Glos Homes,Permanent Nursing,Blossom Field,632.64,09 May 2018
345,Revenue,CAHD,Bed Purchasing - South,Permanent Residential,Blossom Field,4587.56,09 May 2018
346,Revenue,CAHD,Bed Purchasing - South,Permanent Residential,Blossom Field,1638.41,09 May 2018
347,Revenue,CAHD,South Glos Users in South Glos Homes,Permanent Nursing,Blossom Field,632.64,09 May 2018
348,Revenue,CAHD,Bed Purchasing - North,Permanent Nursing,Blossom Field,4259.20,09 May 2018
349,Revenue,CAHD,South Glos Users in South Glos Homes,Permanent Nursing,Blossom Field,632.64,09 May 2018
350,Revenue,CAHD,Bed Purchasing - North,Permanent Nursing,Blossom Field,3896.72,09 May 2018
351,Revenue,CAHD,South Glos Users in South Glos Homes,Permanent Nursing,Blossom Field,632.64,09 May 2018
352,Revenue,CAHD,South Glos Users in South Glos Homes,Permanent Nursing,Blossom Field,632.64,09 May 2018
353,Revenue,CAHD,Bed Purchasing - North,Permanent Nursing,Blossom Field,2739.08,09 May 2018
354,Revenue,CAHD,South Glos Users in South Glos Homes,Permanent Nursing,Blossom Field,632.64,09 May 2018
355,Revenue,CAHD,Bed Purchasing - North,Permanent Nursing,Blossom Field,3549.76,09 May 2018
356,Revenue,CAHD,South Glos Users in South Glos Homes,Permanent Nursing,Blossom Field,632.64,09 May 2018
357,Revenue,CAHD,South Glos Users in South Glos Homes,Permanent Nursing,Blossom Field,632.64,09 May 2018
358,Revenue,CAHD,Home Care - Elderly - South,Other Small Contracts,Bluebird Care (South Gloucestershire),220.92,07 May 2018
359,Revenue,CAHD,Home Care - Elderly - North,Other Small Contracts,Bluebird Care (South Gloucestershire),1328.42,07 May 2018
360,Revenue,CAHD,Home Care - Elderly - South,Other Small Contracts,Bluebird Care (South Gloucestershire),226.18,07 May 2018
361,Revenue,CAHD,Home Care - Elderly - North,Other Small Contracts,Bluebird Care (South Gloucestershire),1302.50,07 May 2018
362,Revenue,CAHD,Home Care - Elderly - South,Other Small Contracts,Bluebird Care (South Gloucestershire),215.66,16 May 2018
363,Revenue,CAHD,Home Care - Elderly - North,Other Small Contracts,Bluebird Care (South Gloucestershire),1346.26,16 May 2018
364,Revenue,CAHD,Training - Adult Services,Training Expenses,Bob Dawson,1175.00,25 May 2018
365,Revenue,CAHD,CSC - Vinney Green Secure Unit,"Provisions (Food, etc)",Booker Cash & Carry,589.40,21 May 2018
366,Revenue,CAHD,Schools Specific Grant Income,Other Public Bodies,Booktrust,3487.84,09 May 2018
367,Revenue,CAHD,DAT Treatment,Other Small Contracts,Boots UK Ltd,900.00,15 May 2018
368,Revenue,CAHD,DAT Treatment,Other Small Contracts,Boots UK Ltd,900.00,15 May 2018
369,Revenue,CAHD,DAT Treatment,Other Small Contracts,Boots UK Ltd,750.00,15 May 2018
370,Revenue,CAHD,Bed purchasing - S28A Under 65 - South,Permanent Residential,Bradbury House,4946.40,09 May 2018
371,Revenue,CAHD,18-25 Year Olds,Permanent Residential,Bradbury House,9684.64,09 May 2018
372,Revenue,CAHD,Bed Purchasing - North,Permanent Residential,Bradbury House,2751.32,09 May 2018
373,Revenue,CAHD,Tobacco Control,Other Small Contracts,Bradley Stoke Surgery,6205.68,14 May 2018
374,Revenue,CAHD,Sexual Health,Other Small Contracts,Bradley Stoke Surgery,1288.00,18 May 2018
375,Revenue,CAHD,Sexual Health,Other Small Contracts,Bradley Stoke Surgery,1703.40,18 May 2018
376,Revenue,CAHD,Home Care - Elderly - North,Other Small Contracts,Bramble Home Care Limited,986.04,01 May 2018
377,Revenue,CAHD,Home Care - Elderly - North,Other Small Contracts,Bramble Home Care Limited,527.88,18 May 2018
378,Revenue,CAHD,Home Care - Elderly - North,Other Small Contracts,Bramble Home Care Limited,866.52,11 May 2018
379,Revenue,CAHD,Home Care - Elderly - North,Other Small Contracts,Bramble Home Care Limited,1115.52,18 May 2018
380,Revenue,CAHD,Home Care - Elderly - North,Other Small Contracts,Bramble Home Care Limited,657.36,23 May 2018
381,Revenue,CAHD,Home Care - Elderly - North,Other Small Contracts,Bramble Home Care Limited,1045.80,17 May 2018
382,Revenue,CAHD,Home Care - Elderly - North,Other Small Contracts,Bramble Home Care Limited,628.74,18 May 2018
383,Revenue,CAHD,Social Lettings Agency,Fees - General,Individual,11.41,03 May 2018
384,Revenue,CAHD,Social Lettings Agency,Other Supplies & Services,Individual,746.54,03 May 2018
385,Revenue,CAHD,Bed Purchasing - Southmead Hospital,Permanent Residential,Bridge House Care Home,2469.12,09 May 2018
386,Revenue,CAHD,Bed Purchasing - North,Permanent Residential,Bridge House Care Home,2427.40,09 May 2018
387,Revenue,CAHD,Bed Purchasing - Southmead Hospital,Fees & Charges Income - General,Bridge House Care Home,743.51,09 May 2018
388,Revenue,CAHD,Bed Purchasing - North,Permanent Residential,Bridge House Care Home,2543.48,09 May 2018
389,Revenue,CAHD,Bed Purchasing - North,Permanent Residential,Bridge House Care Home,2233.44,09 May 2018
390,Revenue,CAHD,Bed Purchasing - North,Permanent Residential,Bridgwater Court,10521.12,09 May 2018
391,Revenue,CAHD,Statemented Support Academies,Schools Funding,Bristol & South Gloucestershire UTC,7298.24,24 May 2018
392,Revenue,CAHD,Purchase of RAC places,Other L.A.'s - General,Bristol City Council,31064.60,15 May 2018
393,Revenue,CAHD,Sensory Support Joint Arrangement,Other L.A.'s - General,Bristol City Council,41480.00,22 May 2018
394,Revenue,CAHD,Placements OLA Special Schools and RB,Other L.A.'s - General,Bristol City Council - Schools,2050.17,24 May 2018
395,Revenue,CAHD,Placements OLA Special Schools and RB,Other L.A.'s - General,Bristol City Council - Schools,2578.00,24 May 2018
396,Revenue,CAHD,Placements OLA Special Schools and RB,Other L.A.'s - General,Bristol City Council - Schools,1350.17,24 May 2018
397,Revenue,CAHD,Statemented Support Payments to OLAs,Other L.A.'s - General,Bristol City Council - Schools,1013.29,24 May 2018
398,Revenue,CAHD,Statemented Support Payments to OLAs,Other L.A.'s - General,Bristol City Council - Schools,966.11,24 May 2018
399,Revenue,CAHD,Placements OLA Special Schools and RB,Other L.A.'s - General,Bristol City Council - Schools,10914.33,24 May 2018
400,Revenue,CAHD,Placements OLA Special Schools and RB,Other L.A.'s - General,Bristol City Council - Schools,2578.00,24 May 2018
401,Revenue,CAHD,Placements OLA Special Schools and RB,Other L.A.'s - General,Bristol City Council - Schools,1305.58,24 May 2018
402,Revenue,CAHD,Placements OLA Special Schools and RB,Other L.A.'s - General,Bristol City Council - Schools,1244.17,24 May 2018
403,Revenue,CAHD,Placements OLA Special Schools and RB,Other L.A.'s - General,Bristol City Council - Schools,3356.33,24 May 2018
404,Revenue,CAHD,Placements OLA Special Schools and RB,Other L.A.'s - General,Bristol City Council - Schools,2578.00,24 May 2018
405,Revenue,CAHD,Statemented Support Payments to OLAs,Other L.A.'s - General,Bristol City Council - Schools,753.87,24 May 2018
406,Revenue,CAHD,Placements OLA Special Schools and RB,Other L.A.'s - General,Bristol City Council - Schools,2578.00,24 May 2018
407,Revenue,CAHD,Placements OLA Special Schools and RB,Other L.A.'s - General,Bristol City Council - Schools,1381.00,24 May 2018
408,Revenue,CAHD,Placements OLA Special Schools and RB,Other L.A.'s - General,Bristol City Council - Schools,2050.17,24 May 2018
409,Revenue,CAHD,Placements OLA Special Schools and RB,Other L.A.'s - General,Bristol City Council - Schools,914.33,24 May 2018
410,Revenue,CAHD,Placements OLA Special Schools and RB,Other L.A.'s - General,Bristol City Council - Schools,1381.00,24 May 2018
411,Revenue,CAHD,Placements OLA Special Schools and RB,Other L.A.'s - General,Bristol City Council - Schools,2050.17,24 May 2018
412,Revenue,CAHD,Placements OLA Special Schools and RB,Other L.A.'s - General,Bristol City Council - Schools,2578.00,24 May 2018
413,Revenue,CAHD,Placements OLA Special Schools and RB,Other L.A.'s - General,Bristol City Council - Schools,809.00,24 May 2018
414,Revenue,CAHD,Statemented Support Payments to OLAs,Other L.A.'s - General,Bristol City Council - Schools,529.83,24 May 2018
415,Revenue,CAHD,Placements OLA Special Schools and RB,Other L.A.'s - General,Bristol City Council - Schools,883.50,24 May 2018
416,Revenue,CAHD,Placements OLA Special Schools and RB,Other L.A.'s - General,Bristol City Council - Schools,4107.54,24 May 2018
417,Revenue,CAHD,Placements OLA Special Schools and RB,Other L.A.'s - General,Bristol City Council - Schools,1031.20,24 May 2018
418,Revenue,CAHD,Placements OLA Special Schools and RB,Other L.A.'s - General,Bristol City Council - Schools,2578.00,24 May 2018
419,Revenue,CAHD,Placements OLA Special Schools and RB,Other L.A.'s - General,Bristol City Council - Schools,809.00,24 May 2018
420,Revenue,CAHD,Placements OLA Special Schools and RB,Other L.A.'s - General,Bristol City Council - Schools,2578.00,24 May 2018
421,Revenue,CAHD,Placements OLA Special Schools and RB,Other L.A.'s - General,Bristol City Council - Schools,883.50,24 May 2018
422,Revenue,CAHD,Placements OLA Special Schools and RB,Other L.A.'s - General,Bristol City Council - Schools,2062.40,24 May 2018
423,Revenue,CAHD,Placements OLA Special Schools and RB,Other L.A.'s - General,Bristol City Council - Schools,2578.00,24 May 2018
424,Revenue,CAHD,Placements OLA Special Schools and RB,Other L.A.'s - General,Bristol City Council - Schools,2859.33,24 May 2018
425,Revenue,CAHD,Placements OLA Special Schools and RB,Other L.A.'s - General,Bristol City Council - Schools,883.50,24 May 2018
426,Revenue,CAHD,Home Care - Elderly - North,Day Care / Social Activities,Bristol Community Links North,1015.20,09 May 2018
427,Revenue,CAHD,CSC - Through & Leaving Care Team,Personal Needs of Clients,Bristol Dyslexia Centre,500.00,18 May 2018
428,Revenue,CAHD,CSC - Vinney Green Secure Unit,R & M by Departments,Bristol Electrical Wholesale Limited,802.10,04 May 2018
429,Revenue,CAHD,Home Care - Elderly - South,Day Care / Social Activities,Bristol Houses UK Limited,710.40,10 May 2018
430,Revenue,CAHD,Home Care - Elderly - South,Day Care / Social Activities,Bristol Houses UK Limited,710.40,25 May 2018
431,Revenue,CAHD,Intermediate Care Accommodation,Water Charges,Bristol Wessex Billing Services Limited,516.51,09 May 2018
432,Revenue,CAHD,Intermediate Care Accommodation,Water Charges,Bristol Wessex Billing Services Limited,764.74,09 May 2018
433,Revenue,CAHD,Statemented Support Payments to OLAs,Other L.A.'s - General,Broadlands Academy,977.91,24 May 2018
434,Revenue,CAHD,South Glos Users in South Glos Homes,Permanent Nursing,Brunelcare,677.83,11 May 2018
435,Revenue,CAHD,South Glos Users in South Glos Homes,Permanent Nursing,Brunelcare,677.83,11 May 2018
436,Revenue,CAHD,South Glos Users in South Glos Homes,Permanent Nursing,Brunelcare,677.83,11 May 2018
437,Revenue,CAHD,South Glos Users in South Glos Homes,Permanent Nursing,Brunelcare,677.83,11 May 2018
438,Revenue,CAHD,South Glos Users in South Glos Homes,Permanent Nursing,Brunelcare,677.83,11 May 2018
439,Revenue,CAHD,South Glos Users in South Glos Homes,Permanent Nursing,Brunelcare,677.83,11 May 2018
440,Revenue,CAHD,South Glos Users in South Glos Homes,Permanent Nursing,Brunelcare,677.83,11 May 2018
441,Revenue,CAHD,South Glos Users in South Glos Homes,Permanent Nursing,Brunelcare,677.83,11 May 2018
442,Revenue,CAHD,South Glos Users in South Glos Homes,Permanent Nursing,Brunelcare,677.83,11 May 2018
443,Revenue,CAHD,South Glos Users in South Glos Homes,Permanent Nursing,Brunelcare,677.83,11 May 2018
444,Revenue,CAHD,South Glos Users in South Glos Homes,Permanent Nursing,Brunelcare,677.83,11 May 2018
445,Revenue,CAHD,Bed purchasing - Elderly S117 - South,Permanent Nursing,Brunelcare,3446.73,11 May 2018
446,Revenue,CAHD,Bed Purchasing - Elderly S117- North,Permanent Nursing,Brunelcare,3446.73,11 May 2018
447,Revenue,CAHD,Bed Purchasing - Elderly S117- North,Permanent Nursing,Brunelcare,3446.73,11 May 2018
448,Revenue,CAHD,Bed Purchasing - Southmead Hospital,Permanent Nursing,Brunelcare,2329.80,11 May 2018
449,Revenue,CAHD,Bed Purchasing - Southmead Hospital,Permanent Nursing,Brunelcare,2859.04,11 May 2018
450,Revenue,CAHD,Bed Purchasing - South,Permanent Nursing,Brunelcare,1416.15,11 May 2018
451,Revenue,CAHD,Bed Purchasing - South,Permanent Nursing,Brunelcare,2518.82,11 May 2018
452,Revenue,CAHD,Bed Purchasing - South,Permanent Nursing,Brunelcare,1577.83,11 May 2018
453,Revenue,CAHD,Bed Purchasing - South,Permanent Nursing,Brunelcare,2665.97,11 May 2018
454,Revenue,CAHD,Enhanced Dementia Beds,Respite Planned - Nursing,Brunelcare,4128.16,11 May 2018
455,Revenue,CAHD,Bed Purchasing - South,Respite Planned - Nursing,Brunelcare,680.57,11 May 2018
456,Revenue,CAHD,Bed Purchasing - South,Respite Emergency - Nursing,Brunelcare,3450.28,11 May 2018
457,Revenue,CAHD,Bed Purchasing - North,Permanent Nursing,Brunelcare,2819.69,11 May 2018
458,Revenue,CAHD,Bed Purchasing - North,Permanent Nursing,Brunelcare,2778.20,11 May 2018
459,Revenue,CAHD,Bed Purchasing - North,Permanent Nursing,Brunelcare,2859.04,11 May 2018
460,Revenue,CAHD,Bed Purchasing - North,Permanent Nursing,Brunelcare,3446.73,11 May 2018
461,Revenue,CAHD,Bed Purchasing - South,Respite Planned - Nursing,Brunelcare,2041.71,11 May 2018
462,Revenue,CAHD,Bed Purchasing - South,Respite Planned - Nursing,Brunelcare,794.00,11 May 2018
463,Revenue,CAHD,Bed Purchasing - South,Permanent Nursing,Brunelcare,1658.14,11 May 2018
464,Revenue,CAHD,Bed Purchasing - South,Respite Planned - Nursing,Brunelcare,2859.63,11 May 2018
465,Revenue,CAHD,Pathway 2 - (Interim Beds),Permanent Nursing,Brunelcare,52734.00,25 May 2018
466,Revenue,CAHD,Pathway 2 - (Interim Beds),Permanent Nursing,Brunelcare,17511.00,09 May 2018
467,Revenue,CAHD,Pathway 2 - (Interim Beds),Permanent Nursing,Brunelcare,17551.00,24 May 2018
468,Revenue,CAHD,Pathway 1 - Re-Ablement Home Care,Private & Voluntary Home Care,Brunelcare,1897.35,29 May 2018
469,Revenue,CAHD,Pathway 1 - Re-Ablement Home Care,Other Small Contracts,Brunelcare,74271.30,30 May 2018
470,Revenue,CAHD,CSC - Vinney Green Secure Unit,Catering Equipment,Bunzl Lockhart Catering Equiptment,635.55,25 May 2018
471,Revenue,CAHD,Bed Purchasing - North,Permanent Nursing,Bupa Care Services  Bridge House,1796.12,09 May 2018
472,Revenue,CAHD,Jointly Funded H&SC Packages,Permanent Nursing,Bupa Care Services  Bridge House,4484.08,09 May 2018
473,Revenue,CAHD,South Glos Users in all other LA Homes,Permanent Nursing,Bupa Care Services  Bridge House,870.36,09 May 2018
474,Revenue,CAHD,CSC - Vinney Green Secure Unit,Service Contracts (Premises),BWS Standfast Fire & Security Systems,48856.87,07 May 2018
475,Revenue,CAHD,CSC - Vinney Green Secure Unit,R & M by Departments,C A T Technical Services Limited,417.60,14 May 2018
476,Revenue,CAHD,CSC - OT Equipment - Children,Daily Living Equipment,C J Eastwood Construction,1492.40,16 May 2018
477,Revenue,CAHD,CSC - OT Equipment - Children,Daily Living Equipment,C J Eastwood Construction,720.00,16 May 2018
478,Revenue,CAHD,Academy Resource Base Funding,Other Public Bodies,Cabot Learning Federation,1175.88,22 May 2018
479,Revenue,CAHD,Academy Resource Base Funding,Other Public Bodies,Cabot Learning Federation,1540.83,22 May 2018
480,Revenue,CAHD,Academy Resource Base Funding,Other Public Bodies,Cabot Learning Federation,1702.96,22 May 2018
481,Revenue,CAHD,Academy Resource Base Funding,Other Public Bodies,Cabot Learning Federation,1175.88,22 May 2018
482,Revenue,CAHD,Academy Resource Base Funding,Other Public Bodies,Cabot Learning Federation,1540.83,22 May 2018
483,Revenue,CAHD,Academy Resource Base Funding,Other Public Bodies,Cabot Learning Federation,1175.88,22 May 2018
484,Revenue,CAHD,Academy Resource Base Funding,Other Public Bodies,Cabot Learning Federation,1540.83,22 May 2018
485,Revenue,CAHD,Academy Resource Base Funding,Other Public Bodies,Cabot Learning Federation,1175.88,22 May 2018
486,Revenue,CAHD,Academy Resource Base Funding,Other Public Bodies,Cabot Learning Federation,648.71,22 May 2018
487,Revenue,CAHD,Academy Resource Base Funding,Other Public Bodies,Cabot Learning Federation,1702.96,22 May 2018
488,Revenue,CAHD,Academy Resource Base Funding,Other Public Bodies,Cabot Learning Federation,1540.83,22 May 2018
489,Revenue,CAHD,Academy Resource Base Funding,Other Public Bodies,Cabot Learning Federation,892.04,22 May 2018
490,Revenue,CAHD,Schools Block Growth Contingency,Other Public Bodies,Cabot Learning Federation,84743.03,22 May 2018
491,Revenue,CAHD,Statemented Support Payments to OLAs,Other L.A.'s - General,Cabot Learning Federation,541.61,24 May 2018
492,Revenue,CAHD,Statemented Support Academies,Schools Funding,Cabot Learning Federation,706.70,24 May 2018
493,Revenue,CAHD,Statemented Support Academies,Schools Funding,Cabot Learning Federation,753.87,24 May 2018
494,Revenue,CAHD,Statemented Support Academies,Schools Funding,Cabot Learning Federation,659.53,24 May 2018
495,Revenue,CAHD,Statemented Support Academies,Schools Funding,Cabot Learning Federation,706.70,24 May 2018
496,Revenue,CAHD,Statemented Support Academies,Schools Funding,Cabot Learning Federation,518.03,24 May 2018
497,Revenue,CAHD,Statemented Support Academies,Schools Funding,Cabot Learning Federation,836.41,24 May 2018
498,Revenue,CAHD,Statemented Support Academies,Schools Funding,Cabot Learning Federation,553.41,24 May 2018
499,Revenue,CAHD,Statemented Support Academies,Schools Funding,Cabot Learning Federation,553.41,24 May 2018
500,Revenue,CAHD,Statemented Support Academies,Schools Funding,Cabot Learning Federation,576.99,24 May 2018
501,Revenue,CAHD,Statemented Support Academies,Schools Funding,Cabot Learning Federation,753.87,24 May 2018
502,Revenue,CAHD,Statemented Support Academies,Schools Funding,Cabot Learning Federation,954.33,24 May 2018
503,Revenue,CAHD,Statemented Support Academies,Schools Funding,Cabot Learning Federation,706.70,24 May 2018
504,Revenue,CAHD,Statemented Support Academies,Schools Funding,Cabot Learning Federation,553.41,24 May 2018
505,Revenue,CAHD,Statemented Support Academies,Schools Funding,Cabot Learning Federation,694.91,24 May 2018
506,Revenue,CAHD,Statemented Support Academies,Schools Funding,Cabot Learning Federation,529.83,24 May 2018
507,Revenue,CAHD,Statemented Support Academies,Schools Funding,Cabot Learning Federation,883.58,24 May 2018
508,Revenue,CAHD,Statemented Support Academies,Schools Funding,Cabot Learning Federation,694.91,24 May 2018
509,Revenue,CAHD,Statemented Support Academies,Schools Funding,Cabot Learning Federation,1084.03,24 May 2018
510,Revenue,CAHD,Statemented Support Academies,Schools Funding,Cabot Learning Federation,954.33,24 May 2018
511,Revenue,CAHD,Statemented Support Payments to OLAs,Other L.A.'s - General,Cabot Learning Federation,600.58,24 May 2018
512,Revenue,CAHD,Statemented Support Academies,Schools Funding,Cabot Learning Federation,859.99,24 May 2018
513,Revenue,CAHD,Statemented Support Academies,Schools Funding,Cabot Learning Federation,600.58,24 May 2018
514,Revenue,CAHD,Statemented Support Academies,Schools Funding,Cabot Learning Federation,1048.66,24 May 2018
515,Revenue,CAHD,Statemented Support Academies,Schools Funding,Cabot Learning Federation,506.24,24 May 2018
516,Revenue,CAHD,Statemented Support Academies,Schools Funding,Cabot Learning Federation,1048.66,24 May 2018
517,Revenue,CAHD,Statemented Support Payments to OLAs,Other L.A.'s - General,Cabot Learning Federation,588.79,24 May 2018
518,Revenue,CAHD,Statemented Support Payments to OLAs,Other L.A.'s - General,Cabot Learning Federation,836.41,24 May 2018
519,Revenue,CAHD,Statemented Support Payments to OLAs,Other L.A.'s - General,Cabot Learning Federation,588.78,24 May 2018
520,Revenue,CAHD,Statemented Support Academies,Schools Funding,Cabot Learning Federation,918.95,24 May 2018
521,Revenue,CAHD,Tobacco Control,Other Small Contracts,Cadbury Heath Healthcare,565.00,04 May 2018
522,Revenue,CAHD,Sexual Health,Other Small Contracts,Cadbury Heath Healthcare,1771.00,18 May 2018
523,Revenue,CAHD,Sexual Health,Other Small Contracts,Cadbury Heath Healthcare,1238.84,18 May 2018
524,Revenue,CAHD,EARLY YEARS DISABILITY  ACCES FUND,Preventative Assistance,Caerleon Childcare,615.00,07 May 2018
525,Revenue,CAHD,EARLY YEARS DISABILITY  ACCES FUND,Preventative Assistance,Caerleon Childcare,615.00,21 May 2018
526,Revenue,CAHD,CSC - Vinney Green Secure Unit,R & M by Departments,Cambridge Skip Hire,440.00,24 May 2018
527,Revenue,CAHD,CSC - Vinney Green Secure Unit,R & M by Departments,Cambridge Skip Hire,440.00,29 May 2018
528,Revenue,CAHD,Home Care - Elderly - North,Day Care / Social Activities,Camphill Communities Thornbury Limited,275.90,04 May 2018
529,Revenue,CAHD,Home Care - Elderly - North,Supported Living,Camphill Communities Thornbury Limited,671.95,04 May 2018
530,Revenue,CAHD,Home Care - Elderly - North,Day Care / Social Activities,Camphill Communities Thornbury Limited,658.60,11 May 2018
531,Revenue,CAHD,Home Care - Elderly - North,Supported Living,Camphill Communities Thornbury Limited,511.75,11 May 2018
532,Revenue,CAHD,Home Care - Elderly - North,Day Care / Social Activities,Camphill Communities Thornbury Limited,1112.30,18 May 2018
533,Revenue,CAHD,Home Care - Elderly - North,Other Small Contracts,Camphill Communities Thornbury Limited,167.98,18 May 2018
534,Revenue,CAHD,Home Care - Elderly - North,Supported Living,Camphill Communities Thornbury Limited,812.66,18 May 2018
535,Revenue,CAHD,Home Care - Elderly - North,Day Care / Social Activities,Camphill Communities Thornbury Limited,962.48,29 May 2018
536,Revenue,CAHD,Home Care - Elderly - North,Other Small Contracts,Camphill Communities Thornbury Limited,163.44,29 May 2018
537,Revenue,CAHD,Home Care - Elderly - North,Supported Living,Camphill Communities Thornbury Limited,1003.34,29 May 2018
538,Revenue,CAHD,Bed Purchasing - Elderly S117- North,Permanent Residential,Canjayor,2468.44,09 May 2018
539,Revenue,CAHD,Alexandra Way,Refuse Collection Charges,Cannon Hygiene Limited,514.41,18 May 2018
540,Revenue,CAHD,Woodleaze,Cleaning & Domestic Services,Cannon Hygiene Limited,927.75,15 May 2018
541,Revenue,CAHD,Information Systems - Software,Software Support & Maintenance,Capita Business Services Ltd,185219.63,23 May 2018
542,Revenue,CAHD,CSC - Agency Fostering,Foster Parent Allowances,Capstone Foster Care (South West) Limited,3517.37,02 May 2018
543,Revenue,CAHD,CSC - Agency Fostering,Foster Parent Allowances,Capstone Foster Care (South West) Limited,3385.80,02 May 2018
544,Revenue,CAHD,CSC - Agency Fostering,Foster Parent Allowances,Capstone Foster Care (South West) Limited,3385.80,02 May 2018
545,Revenue,CAHD,CSC - Agency Fostering,Foster Parent Allowances,Capstone Foster Care (South West) Limited,3517.37,02 May 2018
546,Revenue,CAHD,CSC - Agency Fostering,Foster Parent Allowances,Capstone Foster Care (South West) Limited,3634.62,31 May 2018
547,Revenue,CAHD,CSC - Agency Fostering,Foster Parent Allowances,Capstone Foster Care (South West) Limited,3498.66,31 May 2018
548,Revenue,CAHD,CSC - Agency Fostering,Foster Parent Allowances,Capstone Foster Care (South West) Limited,3498.66,30 May 2018
549,Revenue,CAHD,CSC - Agency Fostering,Foster Parent Allowances,Capstone Foster Care (South West) Limited,3634.62,31 May 2018
550,Revenue,CAHD,Home Care - Elderly - South,Other Small Contracts,Care 1st Homecare,2599.68,07 May 2018
551,Revenue,CAHD,Home Care - Elderly - North,Other Small Contracts,Care 1st Homecare,3354.48,07 May 2018
552,Revenue,CAHD,Younger MH non-res purchasing,Other Small Contracts,Care 1st Homecare,107.52,07 May 2018
553,Revenue,CAHD,Home Care - Elderly - South,Other Small Contracts,Care 1st Homecare,2641.60,07 May 2018
554,Revenue,CAHD,Home Care - Elderly - North,Other Small Contracts,Care 1st Homecare,2845.44,07 May 2018
555,Revenue,CAHD,Younger MH non-res purchasing,Other Small Contracts,Care 1st Homecare,134.40,07 May 2018
556,Revenue,CAHD,Home Care - Elderly - South,Other Small Contracts,Care 1st Homecare,2594.40,11 May 2018
557,Revenue,CAHD,Home Care - Elderly - North,Other Small Contracts,Care 1st Homecare,3141.12,11 May 2018
558,Revenue,CAHD,Younger MH non-res purchasing,Other Small Contracts,Care 1st Homecare,129.92,11 May 2018
559,Revenue,CAHD,Home Care - Elderly - South,Other Small Contracts,Care 1st Homecare,2630.19,11 May 2018
560,Revenue,CAHD,Home Care - Elderly - North,Other Small Contracts,Care 1st Homecare,2810.55,11 May 2018
561,Revenue,CAHD,Younger MH non-res purchasing,Other Small Contracts,Care 1st Homecare,127.96,11 May 2018
562,Revenue,CAHD,Home Care - Elderly - South,Other Small Contracts,Care 1st Homecare,2685.81,29 May 2018
563,Revenue,CAHD,Home Care - Elderly - North,Other Small Contracts,Care 1st Homecare,2805.98,29 May 2018
564,Revenue,CAHD,Younger MH non-res purchasing,Other Small Contracts,Care 1st Homecare,132.53,29 May 2018
565,Revenue,CAHD,Home Care - Elderly - South,Other Small Contracts,Care 1st Homecare,2687.76,29 May 2018
566,Revenue,CAHD,Home Care - Elderly - North,Other Small Contracts,Care 1st Homecare,2787.70,29 May 2018
567,Revenue,CAHD,Younger MH non-res purchasing,Other Small Contracts,Care 1st Homecare,132.53,29 May 2018
568,Revenue,CAHD,18-25 Year Olds,Other Small Contracts,Care Horizons Limited,197.82,16 May 2018
569,Revenue,CAHD,Home Care - Elderly - South,Other Small Contracts,Care Horizons Limited,946.71,16 May 2018
570,Revenue,CAHD,Home Care - Elderly - North,Day Care / Social Activities,Care Horizons Limited,376.80,16 May 2018
571,Revenue,CAHD,Home Care - Elderly - North,Other Small Contracts,Care Horizons Limited,301.44,16 May 2018
572,Revenue,CAHD,Younger MH non-res purchasing,Other Small Contracts,Care Horizons Limited,183.69,16 May 2018
573,Revenue,CAHD,Home care - Elderly MH - North,Other Small Contracts,Care Horizons Limited,75.36,16 May 2018
574,Revenue,CAHD,18-25 Year Olds,Other Small Contracts,Care Horizons Limited,188.40,16 May 2018
575,Revenue,CAHD,Home Care - Elderly - South,Other Small Contracts,Care Horizons Limited,909.03,16 May 2018
576,Revenue,CAHD,Home Care - Elderly - North,Day Care / Social Activities,Care Horizons Limited,386.22,16 May 2018
577,Revenue,CAHD,Home Care - Elderly - North,Other Small Contracts,Care Horizons Limited,339.12,16 May 2018
578,Revenue,CAHD,Younger MH non-res purchasing,Other Small Contracts,Care Horizons Limited,178.98,16 May 2018
579,Revenue,CAHD,18-25 Year Olds,Other Small Contracts,Care Horizons Limited,113.04,29 May 2018
580,Revenue,CAHD,Home Care - Elderly - South,Other Small Contracts,Care Horizons Limited,626.43,29 May 2018
581,Revenue,CAHD,Home Care - Elderly - North,Day Care / Social Activities,Care Horizons Limited,395.64,29 May 2018
582,Revenue,CAHD,Home Care - Elderly - North,Other Small Contracts,Care Horizons Limited,235.50,29 May 2018
583,Revenue,CAHD,18-25 Year Olds,Other Small Contracts,Care Horizons Limited,193.11,30 May 2018
584,Revenue,CAHD,Home Care - Elderly - South,Other Small Contracts,Care Horizons Limited,923.16,30 May 2018
585,Revenue,CAHD,Home Care - Elderly - North,Day Care / Social Activities,Care Horizons Limited,390.93,30 May 2018
586,Revenue,CAHD,Home Care - Elderly - North,Other Small Contracts,Care Horizons Limited,301.44,30 May 2018
587,Revenue,CAHD,Younger MH non-res purchasing,Other Small Contracts,Care Horizons Limited,221.37,30 May 2018
588,Revenue,CAHD,SLA Grants - Support Serv,Grants to Voluntary Bodies,Carers Support Centre,1638.75,07 May 2018
589,Revenue,CAHD,Health Inequalities,Other Small Contracts,Carers Support Centre,750.00,07 May 2018
590,Revenue,CAHD,Home Care - Elderly - South,Other Small Contracts,Caring Comes 1st Ltd,921.30,09 May 2018
591,Revenue,CAHD,Home Care - Elderly - North,Other Small Contracts,Caring Comes 1st Ltd,610.50,09 May 2018
592,Revenue,CAHD,Home Care - Elderly - South,Other Small Contracts,Caring Comes 1st Ltd,1276.50,09 May 2018
593,Revenue,CAHD,Home Care - Elderly - South,Other Small Contracts,Caring Comes 1st Ltd,1376.40,01 May 2018
594,Revenue,CAHD,Home Care - Elderly - South,Other Small Contracts,Caring Comes 1st Ltd,765.90,09 May 2018
595,Revenue,CAHD,Home Care - Elderly - South,Other Small Contracts,Caring Comes 1st Ltd,1898.10,03 May 2018
596,Revenue,CAHD,Home Care - Elderly - South,Other Small Contracts,Caring Comes 1st Ltd,1137.75,09 May 2018
597,Revenue,CAHD,Home Care - Elderly - North,Other Small Contracts,Caring Comes 1st Ltd,1087.80,09 May 2018
598,Revenue,CAHD,Home Care - Elderly - South,Other Small Contracts,Caring Comes 1st Ltd,932.40,18 May 2018
599,Revenue,CAHD,Home Care - Elderly - South,Other Small Contracts,Caring Comes 1st Ltd,2386.50,09 May 2018
600,Revenue,CAHD,Home Care - Elderly - North,Other Small Contracts,Caring Comes 1st Ltd,1087.80,09 May 2018
601,Revenue,CAHD,Statemented Support Academies,Schools Funding,Castle School Education Trust,1319.06,24 May 2018
602,Revenue,CAHD,Statemented Support Academies,Schools Funding,Castle School Education Trust,635.95,24 May 2018
603,Revenue,CAHD,Statemented Support Academies,Schools Funding,Castle School Education Trust,918.95,24 May 2018
604,Revenue,CAHD,Statemented Support Academies,Schools Funding,Castle School Education Trust,1072.24,24 May 2018
605,Revenue,CAHD,Statemented Support Academies,Schools Funding,Castle School Education Trust,683.12,24 May 2018
606,Revenue,CAHD,Statemented Support Academies,Schools Funding,Castle School Education Trust,1602.87,24 May 2018
607,Revenue,CAHD,Statemented Support Academies,Schools Funding,Castle School Education Trust,1142.99,24 May 2018
608,Revenue,CAHD,Statemented Support Academies,Schools Funding,Castle School Education Trust,2730.45,24 May 2018
609,Revenue,CAHD,Statemented Support Academies,Schools Funding,Castle School Education Trust,1260.91,24 May 2018
610,Revenue,CAHD,Statemented Support Academies,Schools Funding,Castle School Education Trust,647.74,24 May 2018
611,Revenue,CAHD,Statemented Support Academies,Schools Funding,Castle School Education Trust,730.28,24 May 2018
612,Revenue,CAHD,Statemented Support Academies,Schools Funding,Castle School Education Trust,1095.83,24 May 2018
613,Revenue,CAHD,Statemented Support Academies,Schools Funding,Castle School Education Trust,718.49,24 May 2018
614,Revenue,CAHD,Statemented Support Academies,Schools Funding,Castle School Education Trust,812.83,24 May 2018
615,Revenue,CAHD,Statemented Support Academies,Schools Funding,Castle School Education Trust,553.41,24 May 2018
616,Revenue,CAHD,Statemented Support Academies,Schools Funding,Castle School Education Trust,765.66,24 May 2018
617,Revenue,CAHD,Statemented Support Academies,Schools Funding,Castle School Education Trust,966.12,24 May 2018
618,Revenue,CAHD,Statemented Support Academies,Schools Funding,Castle School Education Trust,989.70,24 May 2018
619,Revenue,CAHD,Statemented Support Academies,Schools Funding,Castle School Education Trust,576.99,24 May 2018
620,Revenue,CAHD,Statemented Support Academies,Schools Funding,Castle School Education Trust,1378.83,24 May 2018
621,Revenue,CAHD,Statemented Support Academies,Schools Funding,Castle School Education Trust,1201.95,24 May 2018
622,Revenue,CAHD,Statemented Support Academies,Schools Funding,Castle School Education Trust,659.53,24 May 2018
623,Revenue,CAHD,Statemented Support Academies,Schools Funding,Castle School Education Trust,718.49,24 May 2018
624,Revenue,CAHD,Schools Block Growth Contingency,Other Public Bodies,Castle School Education Trust,68585.83,22 May 2018
625,Revenue,CAHD,Schools Block Growth Contingency,Other Public Bodies,Castle School Education Trust,48989.88,22 May 2018
626,Revenue,CAHD,Academy Resource Base Funding,Other Public Bodies,Castle School Education Trust,1702.96,22 May 2018
627,Revenue,CAHD,Academy Resource Base Funding,Other Public Bodies,Castle School Education Trust,2189.53,22 May 2018
628,Revenue,CAHD,Academy Resource Base Funding,Other Public Bodies,Castle School Education Trust,1702.96,22 May 2018
629,Revenue,CAHD,Academy Resource Base Funding,Other Public Bodies,Castle School Education Trust,1702.96,22 May 2018
630,Revenue,CAHD,Statemented Support Academies,Schools Funding,Castle School Education Trust,612.37,24 May 2018
631,Revenue,CAHD,Statemented Support Academies,Schools Funding,Castle School Education Trust,1626.45,24 May 2018
632,Revenue,CAHD,Statemented Support Academies,Schools Funding,Castle School Education Trust,812.83,24 May 2018
633,Revenue,CAHD,Statemented Support Academies,Schools Funding,Castle School Education Trust,706.70,24 May 2018
634,Revenue,CAHD,Statemented Support Academies,Schools Funding,Castle School Education Trust,989.70,24 May 2018
635,Revenue,CAHD,Statemented Support Academies,Schools Funding,Castle School Education Trust,2097.32,24 May 2018
636,Revenue,CAHD,Statemented Support Academies,Schools Funding,Castle School Education Trust,1331.66,24 May 2018
637,Revenue,CAHD,Statemented Support Academies,Schools Funding,Castle School Education Trust,1697.20,24 May 2018
638,Revenue,CAHD,Statemented Support Academies,Schools Funding,Castle School Education Trust,1166.58,24 May 2018
639,Revenue,CAHD,Statemented Support Academies,Schools Funding,Castle School Education Trust,918.95,24 May 2018
640,Revenue,CAHD,CSC - Care Leavers Support Costs,Membership Fees,Catch 22 Charity Ltd,2895.00,25 May 2018
641,Revenue,CAHD,Post 16 High Needs Placements,Other Private Contractors,Catch 22 Charity Ltd,14927.54,21 May 2018
642,Revenue,CAHD,Social Lettings Agency,Fees - General,Individual,10.53,01 May 2018
643,Revenue,CAHD,Social Lettings Agency,Fees & Charges Income - General,Individual,595.11,01 May 2018
644,Revenue,CAHD,Home Care - Elderly - North,Day Care / Social Activities,Causeway House,1202.80,09 May 2018
645,Revenue,CAHD,Home Care - Elderly - South,Day Care / Social Activities,Causeway House,5130.52,09 May 2018
646,Revenue,CAHD,Home Care - Elderly - North,Day Care / Social Activities,Causeway House,4393.52,09 May 2018
647,Revenue,CAHD,Home Care - Elderly - North,Day Care / Social Activities,Causeway House,3800.76,09 May 2018
648,Revenue,CAHD,Home Care - Elderly - North,Day Care / Social Activities,Causeway House,2029.16,09 May 2018
649,Revenue,CAHD,Home Care - Elderly - North,Day Care / Social Activities,Causeway House,3150.88,09 May 2018
650,Revenue,CAHD,Home Care - Elderly - North,Day Care / Social Activities,Causeway House,4694.24,09 May 2018
651,Revenue,CAHD,Home Care - Elderly - North,Day Care / Social Activities,Causeway House,3566.88,09 May 2018
652,Revenue,CAHD,Home Care - Elderly - North,Day Care / Social Activities,Causeway House,3075.56,09 May 2018
653,Revenue,CAHD,Home Care - Elderly - North,Day Care / Social Activities,Causeway House,555.12,09 May 2018
654,Revenue,CAHD,Service,Service   ,Individual,18000.00,14 May 2018
655,Revenue,CAHD,Bed Purchasing - Elderly S117- North,Permanent Nursing,Cedar Care Homes Limited,4434.68,09 May 2018
656,Revenue,CAHD,Training - Adult Services,Training Expenses,Central Consultancy & Training,6327.50,23 May 2018
657,Revenue,CAHD,Home Care - Elderly - South,Other Small Contracts,Cherish Able Care Limited,7733.17,10 May 2018
658,Revenue,CAHD,Home Care - Elderly - North,Other Small Contracts,Cherish Able Care Limited,3275.71,10 May 2018
659,Revenue,CAHD,Home Care - Elderly - South,Other Small Contracts,Cherish Able Care Limited,7666.28,11 May 2018
660,Revenue,CAHD,Home Care - Elderly - North,Other Small Contracts,Cherish Able Care Limited,3245.26,11 May 2018
661,Revenue,CAHD,Home Care - Elderly - South,Other Small Contracts,Cherish Able Care Limited,7868.34,18 May 2018
662,Revenue,CAHD,Home Care - Elderly - North,Other Small Contracts,Cherish Able Care Limited,3329.69,18 May 2018
663,Revenue,CAHD,Home Care - Elderly - South,Other Small Contracts,Cherish Able Care Limited,7712.96,25 May 2018
664,Revenue,CAHD,Home Care - Elderly - North,Other Small Contracts,Cherish Able Care Limited,3306.32,25 May 2018
665,Revenue,CAHD,Early Years High Needs Support,Other Private Contractors,Cherry Tree Day Nursery,910.13,23 May 2018
666,Revenue,CAHD,Bed purchasing -S28A  Under 65 - North,Permanent Residential,Chescombe Lodge,9535.60,09 May 2018
667,Revenue,CAHD,Training Budget - Children`s Social Serv,Training Expenses,Child Bereavement UK,1053.60,11 May 2018
668,Revenue,CAHD,CSC - Agency Fostering,Foster Parent Allowances,ChildCare Bureau,3928.01,29 May 2018
669,Revenue,CAHD,18-25 Year Olds,Permanent Residential,Chosen Care Ltd  Citibase Watford,7835.84,09 May 2018
670,Revenue,CAHD,18-25 Year Olds,Permanent Residential,Chosen Care Ltd  Citibase Watford,6188.84,09 May 2018
671,Revenue,CAHD,Tobacco Control,Other Small Contracts,Christchurch Family Medical  Centre,4592.84,14 May 2018
672,Revenue,CAHD,Home Care - Elderly - South,Other Small Contracts,Cintre,242.76,30 May 2018
673,Revenue,CAHD,Home Care - Elderly - North,Day Care / Social Activities,Cintre,57.12,30 May 2018
674,Revenue,CAHD,Home Care - Elderly - North,Other Small Contracts,Cintre,571.20,30 May 2018
675,Revenue,CAHD,Home Care - Elderly - South,Other Small Contracts,Cintre,276.08,16 May 2018
676,Revenue,CAHD,Home Care - Elderly - North,Day Care / Social Activities,Cintre,57.12,16 May 2018
677,Revenue,CAHD,Home Care - Elderly - North,Other Small Contracts,Cintre,714.00,16 May 2018
678,Revenue,CAHD,Home Care - Elderly - South,Other Small Contracts,Cintre,266.56,29 May 2018
679,Revenue,CAHD,Home Care - Elderly - North,Day Care / Social Activities,Cintre,47.60,29 May 2018
680,Revenue,CAHD,Home Care - Elderly - North,Other Small Contracts,Cintre,766.36,29 May 2018
681,Revenue,CAHD,Home Care - Elderly - South,Other Small Contracts,Cintre,123.76,30 May 2018
682,Revenue,CAHD,Home Care - Elderly - North,Day Care / Social Activities,Cintre,19.04,30 May 2018
683,Revenue,CAHD,Home Care - Elderly - North,Other Small Contracts,Cintre,362.92,30 May 2018
684,Revenue,CAHD,Home Care - Elderly - South,Other Small Contracts,Cintre,271.32,30 May 2018
685,Revenue,CAHD,Home Care - Elderly - North,Day Care / Social Activities,Cintre,85.68,30 May 2018
686,Revenue,CAHD,Home Care - Elderly - North,Other Small Contracts,Cintre,761.60,30 May 2018
687,Revenue,CAHD,Learning Difficulties,Premises Hire,Circadian Trust,520.00,07 May 2018
688,Revenue,CAHD,Post 16 High Needs Placements,Other Private Contractors,City of Bristol College,85889.75,03 May 2018
689,Revenue,CAHD,MH Purchasing - Younger,Permanent Residential,Claro Homes,2249.40,09 May 2018
690,Revenue,CAHD,Section 117 Placements MH Younger,Permanent Residential,Claro Homes,3471.28,09 May 2018
691,Revenue,CAHD,Bed Purchasing - Southmead Hospital,Respite Planned - Nursing,Claro Homes,3240.44,09 May 2018
692,Revenue,CAHD,Bed Purchasing - South,Respite Planned - Residential,Cleeve Lodge,1285.71,09 May 2018
693,Revenue,CAHD,Bed Purchasing - South,Permanent Residential,Cleeve Lodge,1277.76,09 May 2018
694,Revenue,CAHD,Bed Purchasing - Southmead Hospital,Permanent Residential,Cleeve Lodge,2853.20,09 May 2018
695,Revenue,CAHD,Bed Purchasing - South,Permanent Residential,Cleeve Lodge,3014.16,09 May 2018
696,Revenue,CAHD,Bed Purchasing - South,Permanent Residential,Cleeve Lodge,3220.04,09 May 2018
697,Revenue,CAHD,Bed Purchasing - South,Permanent Residential,Cleeve Lodge,1610.02,09 May 2018
698,Revenue,CAHD,Bed Purchasing - South,Permanent Residential,Cleeve Lodge,1467.14,09 May 2018
699,Revenue,CAHD,Bed Purchasing - South,Permanent Residential,Cleeve Lodge,2787.08,09 May 2018
700,Revenue,CAHD,Bed Purchasing - South,Permanent Residential,Cleeve Lodge,2573.84,09 May 2018
701,Revenue,CAHD,Bed Purchasing - South,Permanent Residential,Cleeve Lodge,2534.00,09 May 2018
702,Revenue,CAHD,Bed Purchasing - South,Permanent Residential,Clerkenleap Barn,6195.32,09 May 2018
703,Revenue,CAHD,Training - Adult Services,Training Expenses,Clive Diaz,500.00,25 May 2018
704,Revenue,CAHD,Tobacco Control,Other Small Contracts,Close Farm Surgery,2306.32,14 May 2018
705,Revenue,CAHD,Sexual Health,Other Small Contracts,Close Farm Surgery,563.50,18 May 2018
706,Revenue,CAHD,Sexual Health,Other Small Contracts,Close Farm Surgery,1311.10,18 May 2018
707,Revenue,CAHD,Home Care - Elderly - North,Other Small Contracts,Clover Health and Home Care Ltd,2563.52,24 May 2018
708,Revenue,CAHD,Home Care - Elderly - North,Other Small Contracts,Clover Health and Home Care Ltd,1551.90,29 May 2018
709,Revenue,CAHD,Home Care - Elderly - North,Other Small Contracts,Clover Health and Home Care Ltd,1421.00,21 May 2018
710,Revenue,CAHD,Home Care - Elderly - North,Other Small Contracts,Clover Health and Home Care Ltd,1428.70,30 May 2018
711,Revenue,CAHD,Bed Purchasing - South,Permanent Residential,Collingwood Residential Home,2188.76,09 May 2018
712,Revenue,CAHD,Bed Purchasing - Southmead Hospital,Permanent Residential,Collingwood Residential Home,2477.40,09 May 2018
713,Revenue,CAHD,Bed Purchasing - South,Permanent Residential,Collingwood Residential Home,2374.20,09 May 2018
714,Revenue,CAHD,Bed Purchasing - South,Permanent Residential,Collingwood Residential Home,2364.08,09 May 2018
715,Revenue,CAHD,Bed Purchasing - Southmead Hospital,Permanent Residential,Collingwood Residential Home,2394.80,09 May 2018
716,Revenue,CAHD,Bed Purchasing - South,Permanent Residential,Collingwood Residential Home,11828.57,09 May 2018
717,Revenue,CAHD,Bed Purchasing - South,Fees & Charges Income - General,Collingwood Residential Home,4910.29,09 May 2018
718,Revenue,CAHD,Bed Purchasing - South,Permanent Residential,Collingwood Residential Home,2445.60,09 May 2018
719,Revenue,CAHD,Bed Purchasing - South,Permanent Residential,Collingwood Residential Home,1222.80,09 May 2018
720,Revenue,CAHD,Bed Purchasing - South,Permanent Residential,Collingwood Residential Home,5446.43,09 May 2018
721,Revenue,CAHD,Bed Purchasing - South,Permanent Residential,Collingwood Residential Home,2547.52,09 May 2018
722,Revenue,CAHD,Bed Purchasing - South,Fees & Charges Income - General,Collingwood Residential Home,2189.70,09 May 2018
723,Revenue,CAHD,Bed Purchasing - South,Permanent Residential,Collingwood Residential Home,1273.76,09 May 2018
724,Revenue,CAHD,Bed Purchasing - South,Fees & Charges Income - General,Collingwood Residential Home,2433.00,09 May 2018
725,Revenue,CAHD,Bed Purchasing - South,Fees & Charges Income - General,Collingwood Residential Home,666.51,09 May 2018
726,Revenue,CAHD,Bed Purchasing - South,Fees & Charges Income - General,Collingwood Residential Home,697.15,09 May 2018
727,Revenue,CAHD,Bed Purchasing - Southmead Hospital,Respite Planned - Residential,Collingwood Residential Home,2445.60,09 May 2018
728,Revenue,CAHD,Bed Purchasing - South,Permanent Residential,Collingwood Residential Home,8631.43,09 May 2018
729,Revenue,CAHD,Bed Purchasing - South,Permanent Residential,Collingwood Residential Home,1157.30,09 May 2018
730,Revenue,CAHD,Bed Purchasing - South,Fees & Charges Income - General,Collingwood Residential Home,1837.10,09 May 2018
731,Revenue,CAHD,Home Care - Elderly - North,Other Small Contracts,Complimenting Care and Training Services (CCTS) Lt,6472.52,04 May 2018
732,Revenue,CAHD,Home Care - Elderly - North,Other Small Contracts,Complimenting Care and Training Services (CCTS) Lt,6923.13,10 May 2018
733,Revenue,CAHD,Home Care - Elderly - North,Other Small Contracts,Complimenting Care and Training Services (CCTS) Lt,10312.57,31 May 2018
734,Revenue,CAHD,Tobacco Control,Other Small Contracts,Concord Medical Centre,805.00,14 May 2018
735,Revenue,CAHD,Sexual Health,Other Small Contracts,Concord Medical Centre,1690.50,18 May 2018
736,Revenue,CAHD,Sexual Health,Other Small Contracts,Concord Medical Centre,2209.24,18 May 2018
737,Revenue,CAHD,Tobacco Control,Other Small Contracts,Coniston Medical Practice,1058.00,14 May 2018
738,Revenue,CAHD,Sexual Health,Other Small Contracts,Coniston Medical Practice,1046.50,18 May 2018
739,Revenue,CAHD,Bed and Breakfast,Bed & Breakfast,Connolly & Callaghan Limited,420.00,02 May 2018
740,Revenue,CAHD,Bed and Breakfast,Bed & Breakfast,Connolly & Callaghan Limited,420.00,02 May 2018
741,Revenue,CAHD,Bed and Breakfast,Bed & Breakfast,Connolly & Callaghan Limited,448.00,02 May 2018
742,Revenue,CAHD,Bed and Breakfast,Bed & Breakfast,Connolly & Callaghan Limited,448.00,02 May 2018
743,Revenue,CAHD,Bed and Breakfast,Bed & Breakfast,Connolly & Callaghan Limited,420.00,02 May 2018
744,Revenue,CAHD,Bed and Breakfast,Bed & Breakfast,Connolly & Callaghan Limited,623.00,02 May 2018
745,Revenue,CAHD,Bed and Breakfast,Bed & Breakfast,Connolly & Callaghan Limited,497.00,02 May 2018
746,Revenue,CAHD,Bed and Breakfast,Bed & Breakfast,Connolly & Callaghan Limited,448.00,07 May 2018
747,Revenue,CAHD,Bed and Breakfast,Bed & Breakfast,Connolly & Callaghan Limited,448.00,07 May 2018
748,Revenue,CAHD,Bed and Breakfast,Bed & Breakfast,Connolly & Callaghan Limited,490.00,15 May 2018
749,Revenue,CAHD,Bed and Breakfast,Bed & Breakfast,Connolly & Callaghan Limited,539.00,07 May 2018
750,Revenue,CAHD,Bed and Breakfast,Bed & Breakfast,Connolly & Callaghan Limited,679.00,07 May 2018
751,Revenue,CAHD,Bed and Breakfast,Bed & Breakfast,Connolly & Callaghan Limited,539.00,07 May 2018
752,Revenue,CAHD,Bed and Breakfast,Bed & Breakfast,Connolly & Callaghan Limited,581.00,07 May 2018
753,Revenue,CAHD,Bed and Breakfast,Bed & Breakfast,Connolly & Callaghan Limited,581.00,07 May 2018
754,Revenue,CAHD,Bed and Breakfast,Bed & Breakfast,Connolly & Callaghan Limited,490.00,07 May 2018
755,Revenue,CAHD,Bed and Breakfast,Bed & Breakfast,Connolly & Callaghan Limited,420.00,07 May 2018
756,Revenue,CAHD,Bed and Breakfast,Bed & Breakfast,Connolly & Callaghan Limited,623.00,07 May 2018
757,Revenue,CAHD,Bed and Breakfast,Bed & Breakfast,Connolly & Callaghan Limited,497.00,07 May 2018
758,Revenue,CAHD,Bed and Breakfast,Bed & Breakfast,Connolly & Callaghan Limited,448.00,10 May 2018
759,Revenue,CAHD,Bed and Breakfast,Bed & Breakfast,Connolly & Callaghan Limited,448.00,10 May 2018
760,Revenue,CAHD,Bed and Breakfast,Bed & Breakfast,Connolly & Callaghan Limited,490.00,15 May 2018
761,Revenue,CAHD,Bed and Breakfast,Bed & Breakfast,Connolly & Callaghan Limited,539.00,11 May 2018
762,Revenue,CAHD,Bed and Breakfast,Bed & Breakfast,Connolly & Callaghan Limited,679.00,11 May 2018
763,Revenue,CAHD,Bed and Breakfast,Bed & Breakfast,Connolly & Callaghan Limited,581.00,10 May 2018
764,Revenue,CAHD,Bed and Breakfast,Bed & Breakfast,Connolly & Callaghan Limited,581.00,14 May 2018
765,Revenue,CAHD,Bed and Breakfast,Bed & Breakfast,Connolly & Callaghan Limited,490.00,10 May 2018
766,Revenue,CAHD,Bed and Breakfast,Bed & Breakfast,Connolly & Callaghan Limited,420.00,10 May 2018
767,Revenue,CAHD,Bed and Breakfast,Bed & Breakfast,Connolly & Callaghan Limited,623.00,10 May 2018
768,Revenue,CAHD,Bed and Breakfast,Bed & Breakfast,Connolly & Callaghan Limited,497.00,10 May 2018
769,Revenue,CAHD,Bed and Breakfast,Bed & Breakfast,Connolly & Callaghan Limited,448.00,17 May 2018
770,Revenue,CAHD,Bed and Breakfast,Bed & Breakfast,Connolly & Callaghan Limited,448.00,17 May 2018
771,Revenue,CAHD,Bed and Breakfast,Bed & Breakfast,Connolly & Callaghan Limited,490.00,21 May 2018
772,Revenue,CAHD,Bed and Breakfast,Bed & Breakfast,Connolly & Callaghan Limited,539.00,18 May 2018
773,Revenue,CAHD,Bed and Breakfast,Bed & Breakfast,Connolly & Callaghan Limited,679.00,18 May 2018
774,Revenue,CAHD,Bed and Breakfast,Bed & Breakfast,Connolly & Callaghan Limited,539.00,23 May 2018
775,Revenue,CAHD,Bed and Breakfast,Bed & Breakfast,Connolly & Callaghan Limited,581.00,17 May 2018
776,Revenue,CAHD,Bed and Breakfast,Bed & Breakfast,Connolly & Callaghan Limited,490.00,17 May 2018
777,Revenue,CAHD,Bed and Breakfast,Bed & Breakfast,Connolly & Callaghan Limited,420.00,17 May 2018
778,Revenue,CAHD,Bed and Breakfast,Bed & Breakfast,Connolly & Callaghan Limited,623.00,17 May 2018
779,Revenue,CAHD,Bed and Breakfast,Bed & Breakfast,Connolly & Callaghan Limited,497.00,17 May 2018
780,Revenue,CAHD,Bed and Breakfast,Bed & Breakfast,Connolly & Callaghan Limited,539.00,30 May 2018
781,Revenue,CAHD,Bed and Breakfast,Bed & Breakfast,Connolly & Callaghan Limited,679.00,24 May 2018
782,Revenue,CAHD,Bed and Breakfast,Bed & Breakfast,Connolly & Callaghan Limited,581.00,31 May 2018
783,Revenue,CAHD,Bed and Breakfast,Bed & Breakfast,Connolly & Callaghan Limited,490.00,31 May 2018
784,Revenue,CAHD,Bed and Breakfast,Bed & Breakfast,Connolly & Callaghan Limited,497.00,31 May 2018
785,Revenue,CAHD,CSC - Allowances,Membership Fees,CoramBAAF Ltd t/a Coram Academy Ltd,4438.23,15 May 2018
786,Revenue,CAHD,CSC - Fostering Carer Support,Care Mgt/Asesmnt Staff Pay,Core Assets Expert Services Ltd T/A Carter Brown,2500.00,17 May 2018
787,Revenue,CAHD,Tobacco Control,Other Small Contracts,Courtside Surgery,2599.00,14 May 2018
788,Revenue,CAHD,Sexual Health,Other Small Contracts,Courtside Surgery,2817.50,18 May 2018
789,Revenue,CAHD,Sexual Health,Other Small Contracts,Courtside Surgery,3520.34,18 May 2018
790,Revenue,CAHD,Bed Purchasing - Southmead Hospital,Permanent Nursing,Cranhill Nursing Home,3566.52,09 May 2018
791,Revenue,CAHD,Bed Purchasing - North,Permanent Residential,Cream Iii Ltd,8441.40,09 May 2018
792,Revenue,CAHD,18-25 Year Olds,Respite Planned - Residential,Cream Iii Ltd,65205.00,09 May 2018
793,Revenue,CAHD,18-25 Year Olds,Permanent Residential,Cream Iii Ltd,9843.56,09 May 2018
794,Revenue,CAHD,18-25 Year Olds,Permanent Residential,Cream Iii Ltd,4921.78,09 May 2018
795,Revenue,CAHD,18-25 Year Olds,Fees & Charges Income - General,Cream Iii Ltd,1321.97,09 May 2018
796,Revenue,CAHD,18-25 Year Olds,Fees & Charges Income - General,Cream Iii Ltd,1760.49,09 May 2018
797,Revenue,CAHD,Bed purchasing -S28A  Under 65 - North,Permanent Residential,Creedy Court,10349.56,09 May 2018
798,Revenue,CAHD,Bed Purchasing - S28A - Over 65- North,Permanent Residential,Creedy Court,8696.20,09 May 2018
799,Revenue,CAHD,Bed Purchasing - North,Permanent Residential,Creedy Court,13724.60,09 May 2018
800,Revenue,CAHD,Service,Service,Individual,1561.05,11 May 2018
801,Revenue,CAHD,CSC - Fostering Carer Support,Operational Equipment,D B Carpentry Limited,8980.00,15 May 2018
802,Revenue,CAHD,CSC - Fostering Carer Support,Operational Equipment,D B Carpentry Limited,8980.00,15 May 2018
803,Revenue,CAHD,Bed Purchasing - South,Permanent Residential,Daneswood,11981.24,09 May 2018
804,Revenue,CAHD,Home Care - Elderly - South,Day Care / Social Activities,Daneswood,1380.32,09 May 2018
805,Revenue,CAHD,Bed Purchasing - North,Permanent Residential,Daneswood,10023.44,09 May 2018
806,Revenue,CAHD,Discretionary Housing Payment,Other Supplies & Services,Individual,834.22,08 May 2018
807,Revenue,CAHD,Bed Purchasing - Elderly S117- North,Permanent Nursing,Danshell Healthcare Group,10617.44,09 May 2018
808,Revenue,CAHD,Jointly Funded H&SC Packages,Permanent Nursing,Danshell Healthcare Group,1575.48,09 May 2018
809,Revenue,CAHD,Learning Difficulties PSL,Other Supplies & Services,Individual,2267.91,22 May 2018
810,Revenue,CAHD,Training Budget - Children`s Social Serv,Training Expenses,Dartington Hall Trust,12000.00,16 May 2018
811,Revenue,CAHD,DAT Treatment,Other Small Contracts,Day Lewis - Horfield Branch,975.00,15 May 2018
812,Revenue,CAHD,Service,Service,Individual,272.83,23 May 2018
813,Revenue,CAHD,Service,Service,Individual,272.84,23 May 2018
814,Revenue,CAHD,Service,Service,Individual,272.83,23 May 2018
815,Revenue,CAHD,Service,Service,Individual,2630.00,24 May 2018
816,Revenue,CAHD,HQ Office & Communications (ICT),Membership Fees,Derbyshire County Council,500.00,04 May 2018
817,Revenue,CAHD,Home Care - Elderly - South,Supported Living,Design House,2798.44,09 May 2018
818,Revenue,CAHD,Home Care - Elderly - South,Supported Living,Design House,2991.52,09 May 2018
819,Revenue,CAHD,Home Care - Elderly - South,Supported Living,Design House,3059.64,09 May 2018
820,Revenue,CAHD,Home Care - Elderly - South,Supported Living,Design House,2923.40,09 May 2018
821,Revenue,CAHD,Home Care - Elderly - South,Day Care / Social Activities,Design House,501.92,09 May 2018
822,Revenue,CAHD,Home Care - Elderly - South,Day Care / Social Activities,Design House,501.92,09 May 2018
823,Revenue,CAHD,Home Care - Elderly - North,Day Care / Social Activities,Design House,2383.88,09 May 2018
824,Revenue,CAHD,Home Care - Elderly - South,Day Care / Social Activities,Design House,1499.56,09 May 2018
825,Revenue,CAHD,Home Care - Elderly - South,Supported Living,Design House,2577.00,09 May 2018
826,Revenue,CAHD,Home Care - Elderly - South,Supported Living,Design House,2577.00,09 May 2018
827,Revenue,CAHD,Home Care - Elderly - South,Supported Living,Design House,2099.16,09 May 2018
828,Revenue,CAHD,Home Care - Elderly - South,Day Care / Social Activities,Design House,501.92,09 May 2018
829,Revenue,CAHD,Home Care - Elderly - South,Supported Living,Design House,1852.24,09 May 2018
830,Revenue,CAHD,Home Care - Elderly - South,Supported Living,Design House,2457.84,09 May 2018
831,Revenue,CAHD,Home Care - Elderly - South,Supported Living,Design House,4206.60,09 May 2018
832,Revenue,CAHD,Home Care - Elderly - South,Supported Living,Design House,2982.96,09 May 2018
833,Revenue,CAHD,Home Care - Elderly - South,Day Care / Social Activities,Design House,1470.80,09 May 2018
834,Revenue,CAHD,Home Care - Elderly - South,Supported Living,Design House,2832.52,09 May 2018
835,Revenue,CAHD,Home Care - Elderly - South,Supported Living,Design House,2483.44,09 May 2018
836,Revenue,CAHD,Home Care - Elderly - South,Supported Living,Design House,2204.80,09 May 2018
837,Revenue,CAHD,Home Care - Elderly - South,Supported Living,Design House,2204.80,09 May 2018
838,Revenue,CAHD,Home Care - Elderly - South,Other Small Contracts,Dhek Bhal,611.66,07 May 2018
839,Revenue,CAHD,Home Care - Elderly - North,Other Small Contracts,Dhek Bhal,41.12,07 May 2018
840,Revenue,CAHD,Home Care - Elderly - South,Other Small Contracts,Dhek Bhal,570.54,07 May 2018
841,Revenue,CAHD,Home Care - Elderly - North,Other Small Contracts,Dhek Bhal,123.36,07 May 2018
842,Revenue,CAHD,Home Care - Elderly - South,Other Small Contracts,Dhek Bhal,611.66,11 May 2018
843,Revenue,CAHD,Home Care - Elderly - North,Other Small Contracts,Dhek Bhal,123.36,11 May 2018
844,Revenue,CAHD,Home Care - Elderly - South,Other Small Contracts,Dhek Bhal,452.32,29 May 2018
845,Revenue,CAHD,Home Care - Elderly - North,Other Small Contracts,Dhek Bhal,123.36,29 May 2018
846,Revenue,CAHD,Home Care - Elderly - South,Other Small Contracts,Dhek Bhal,570.54,29 May 2018
847,Revenue,CAHD,Home Care - Elderly - North,Other Small Contracts,Dhek Bhal,123.36,29 May 2018
848,Revenue,CAHD,Home Care - Elderly - South,Other Small Contracts,Dhek Bhal,616.80,29 May 2018
849,Revenue,CAHD,Home Care - Elderly - North,Other Small Contracts,Dhek Bhal,123.36,29 May 2018
850,Revenue,CAHD,Home Care - Elderly - North,Supported Living,Dimensions  Suite 2,18617.88,09 May 2018
851,Revenue,CAHD,Home Care - Elderly - South,Supported Living,Dimensions  Suite 2,1857.88,09 May 2018
852,Revenue,CAHD,Home Care - Elderly - South,Supported Living,Dimensions  Suite 2,1857.88,09 May 2018
853,Revenue,CAHD,Home Care - Elderly - South,Supported Living,Dimensions  Suite 2,1857.88,09 May 2018
854,Revenue,CAHD,Home Care - Elderly - North,Supported Living,Dimensions  Suite 2,1857.88,09 May 2018
855,Revenue,CAHD,Bed Purchasing - South,Permanent Residential,Dimensions  Suite 2,5498.80,09 May 2018
856,Revenue,CAHD,Bed Purchasing - South,Permanent Residential,Dimensions  Suite 2,2740.36,09 May 2018
857,Revenue,CAHD,Home Care - Elderly - South,Day Care / Social Activities,DoCare Limited,73.78,14 May 2018
858,Revenue,CAHD,Home Care - Elderly - South,Other Small Contracts,DoCare Limited,756.28,14 May 2018
859,Revenue,CAHD,Home Care - Elderly - North,Other Small Contracts,DoCare Limited,5663.56,14 May 2018
860,Revenue,CAHD,Home Care - Elderly - South,Day Care / Social Activities,DoCare Limited,73.78,14 May 2018
861,Revenue,CAHD,Home Care - Elderly - South,Other Small Contracts,DoCare Limited,677.09,14 May 2018
862,Revenue,CAHD,Home Care - Elderly - North,Other Small Contracts,DoCare Limited,5639.87,14 May 2018
863,Revenue,CAHD,Home Care - Elderly - South,Day Care / Social Activities,DoCare Limited,73.78,23 May 2018
864,Revenue,CAHD,Home Care - Elderly - South,Other Small Contracts,DoCare Limited,687.11,23 May 2018
865,Revenue,CAHD,Home Care - Elderly - North,Other Small Contracts,DoCare Limited,5609.70,23 May 2018
866,Revenue,CAHD,Home Care - Elderly - South,Day Care / Social Activities,DoCare Limited,63.24,23 May 2018
867,Revenue,CAHD,Home Care - Elderly - South,Other Small Contracts,DoCare Limited,698.17,23 May 2018
868,Revenue,CAHD,Home Care - Elderly - North,Other Small Contracts,DoCare Limited,5739.97,23 May 2018
869,Revenue,CAHD,Learning Difficulties,Other Private Contractors,Dotty Herberts,580.00,17 May 2018
870,Revenue,CAHD,Personnel Costs,Legal Fees,Individual,465.00,01 May 2018
871,Revenue,CAHD,Statemented Support Academies,Schools Funding,Downend School,553.41,24 May 2018
872,Revenue,CAHD,Statemented Support Academies,Schools Funding,Downend School,1119.41,24 May 2018
873,Revenue,CAHD,Statemented Support Academies,Schools Funding,Downend School,541.62,24 May 2018
874,Revenue,CAHD,Statemented Support Academies,Schools Funding,Downend School,565.20,24 May 2018
875,Revenue,CAHD,Statemented Support Academies,Schools Funding,Downend School,1154.78,24 May 2018
876,Revenue,CAHD,Statemented Support Academies,Schools Funding,Downend School,671.33,24 May 2018
877,Revenue,CAHD,Statemented Support Academies,Schools Funding,Downend School,612.37,24 May 2018
878,Revenue,CAHD,Statemented Support Academies,Schools Funding,Downend School,553.41,24 May 2018
879,Revenue,CAHD,Statemented Support Academies,Schools Funding,Downend School,553.41,24 May 2018
880,Revenue,CAHD,Social Lettings Agency,Other Supplies & Services,Individual,605.64,24 May 2018
881,Revenue,CAHD,Tobacco Control,Other Small Contracts,Dr W J Foubister & Partners,736.00,14 May 2018
882,Revenue,CAHD,Sexual Health,Other Small Contracts,Dr W J Foubister & Partners,805.00,18 May 2018
883,Revenue,CAHD,Bed Purchasing - North,Permanent Nursing,Drakes Court,2332.40,09 May 2018
884,Revenue,CAHD,South Glos Users in South Glos Homes,Permanent Nursing,Drakes Court,632.64,09 May 2018
885,Revenue,CAHD,Bed Purchasing - Southmead Hospital,Permanent Nursing,Drakes Court,2832.84,09 May 2018
886,Revenue,CAHD,Bed Purchasing - North,Permanent Nursing,Drakes Court,2751.32,09 May 2018
887,Revenue,CAHD,South Glos Users in South Glos Homes,Permanent Nursing,Drakes Court,632.64,09 May 2018
888,Revenue,CAHD,Bed Purchasing - North,Respite Planned - Residential,Drakes Court,1390.00,09 May 2018
889,Revenue,CAHD,Bed Purchasing - North,Respite Planned - Residential,Drakes Court,1390.00,09 May 2018
890,Revenue,CAHD,Bed Purchasing - Southmead Hospital,Permanent Nursing,Drakes Court,2017.24,09 May 2018
891,Revenue,CAHD,South Glos Users in South Glos Homes,Permanent Nursing,Drakes Court,632.64,09 May 2018
892,Revenue,CAHD,Bed Purchasing - South,Permanent Nursing,Drakes Court,2832.84,09 May 2018
893,Revenue,CAHD,South Glos Users in South Glos Homes,Permanent Nursing,Drakes Court,632.64,09 May 2018
894,Revenue,CAHD,South Glos Users in South Glos Homes,Permanent Nursing,Drakes Court,632.64,09 May 2018
895,Revenue,CAHD,Bed Purchasing - Southmead Hospital,Permanent Nursing,Drakes Court,2832.84,09 May 2018
896,Revenue,CAHD,South Glos Users in South Glos Homes,Permanent Nursing,Drakes Court,632.64,09 May 2018
897,Revenue,CAHD,South Glos Users in South Glos Homes,Permanent Nursing,Drakes Court,632.64,09 May 2018
898,Revenue,CAHD,Bed Purchasing - North,Permanent Nursing,Drakes Court,2017.24,09 May 2018
899,Revenue,CAHD,Bed Purchasing - Southmead Hospital,Permanent Nursing,Drakes Court,2017.24,09 May 2018
900,Revenue,CAHD,South Glos Users in South Glos Homes,Permanent Nursing,Drakes Court,632.64,09 May 2018
901,Revenue,CAHD,South Glos Users in South Glos Homes,Permanent Nursing,Drakes Court,632.64,09 May 2018
902,Revenue,CAHD,South Glos Users in South Glos Homes,Permanent Nursing,Drakes Court,632.64,09 May 2018
903,Revenue,CAHD,South Glos Users in South Glos Homes,Permanent Nursing,Drakes Court,632.64,09 May 2018
904,Revenue,CAHD,Bed Purchasing - Southmead Hospital,Respite Planned - Nursing,Drakes Court,3276.43,09 May 2018
905,Revenue,CAHD,Bed Purchasing - Southmead Hospital,Respite Planned - Nursing,Drakes Court,893.57,09 May 2018
906,Revenue,CAHD,Bed Purchasing - North,Permanent Residential,Drakes Court,1956.04,09 May 2018
907,Revenue,CAHD,Bed Purchasing - North,Permanent Nursing,Drakes Court,2683.84,09 May 2018
908,Revenue,CAHD,South Glos Users in South Glos Homes,Permanent Nursing,Drakes Court,632.64,09 May 2018
909,Revenue,CAHD,South Glos Users in South Glos Homes,Permanent Nursing,Drakes Court,632.64,09 May 2018
910,Revenue,CAHD,South Glos Users in South Glos Homes,Permanent Nursing,Drakes Court,632.64,09 May 2018
911,Revenue,CAHD,South Glos Users in South Glos Homes,Permanent Nursing,Drakes Court,632.64,09 May 2018
912,Revenue,CAHD,CSC - Vinney Green Secure Unit,Personal Needs of Clients,DSG Retail Limited,1249.92,14 May 2018
913,Revenue,CAHD,MH Purchasing - Younger,Permanent Residential,Dunraven House,2316.16,09 May 2018
914,Revenue,CAHD,Bed and Breakfast,Bed & Breakfast,Individual,532.00,09 May 2018
915,Revenue,CAHD,Bed and Breakfast,Bed & Breakfast,Individual,602.00,10 May 2018
916,Revenue,CAHD,Bed and Breakfast,Bed & Breakfast,Individual,602.00,02 May 2018
917,Revenue,CAHD,Bed and Breakfast,Bed & Breakfast,Individual,532.00,02 May 2018
918,Revenue,CAHD,Bed and Breakfast,Bed & Breakfast,Individual,462.00,02 May 2018
919,Revenue,CAHD,Bed and Breakfast,Bed & Breakfast,Individual,462.00,09 May 2018
920,Revenue,CAHD,Bed and Breakfast,Bed & Breakfast,Individual,602.00,09 May 2018
921,Revenue,CAHD,Bed and Breakfast,Bed & Breakfast,Individual,602.00,09 May 2018
922,Revenue,CAHD,Bed and Breakfast,Bed & Breakfast,Individual,532.00,10 May 2018
923,Revenue,CAHD,Bed and Breakfast,Bed & Breakfast,Individual,462.00,17 May 2018
924,Revenue,CAHD,Bed and Breakfast,Bed & Breakfast,Individual,602.00,17 May 2018
925,Revenue,CAHD,Bed and Breakfast,Bed & Breakfast,Individual,602.00,17 May 2018
926,Revenue,CAHD,Bed and Breakfast,Bed & Breakfast,Individual,532.00,17 May 2018
927,Revenue,CAHD,Bed and Breakfast,Bed & Breakfast,Individual,462.00,22 May 2018
928,Revenue,CAHD,Bed and Breakfast,Bed & Breakfast,Individual,602.00,22 May 2018
929,Revenue,CAHD,Bed and Breakfast,Bed & Breakfast,Individual,602.00,22 May 2018
930,Revenue,CAHD,Bed and Breakfast,Bed & Breakfast,Individual,456.00,22 May 2018
931,Revenue,CAHD,Bed and Breakfast,Bed & Breakfast,Individual,567.00,22 May 2018
932,Revenue,CAHD,Bed and Breakfast,Bed & Breakfast,Individual,462.00,30 May 2018
933,Revenue,CAHD,Bed and Breakfast,Bed & Breakfast,Individual,602.00,30 May 2018
934,Revenue,CAHD,Bed and Breakfast,Bed & Breakfast,Individual,530.00,30 May 2018
935,Revenue,CAHD,Bed Purchasing - North,Permanent Residential,East Court,2698.80,09 May 2018
936,Revenue,CAHD,Minor Adaptations Service,Operational Equipment,Eastman & Co (Timber) Limited,1072.56,16 May 2018
937,Revenue,CAHD,Bed Purchasing - Southmead Hospital,Permanent Residential,Edgecumbe Lodge,2148.68,09 May 2018
938,Revenue,CAHD,Bed Purchasing - North,Respite Planned - Residential,Edgecumbe Lodge,3097.76,09 May 2018
939,Revenue,CAHD,Bed Purchasing - South,Permanent Residential,Edgecumbe Lodge,2220.00,09 May 2018
940,Revenue,CAHD,Bed Purchasing - North,Permanent Residential,Edgecumbe Lodge,2364.56,09 May 2018
941,Revenue,CAHD,Bed Purchasing - South,Permanent Residential,Edgecumbe Lodge,2220.00,09 May 2018
942,Revenue,CAHD,Bed Purchasing - South,Permanent Residential,Edgecumbe Lodge,2445.60,09 May 2018
943,Revenue,CAHD,Bed Purchasing - Southmead Hospital,Permanent Residential,Edgecumbe Lodge,2477.40,09 May 2018
944,Revenue,CAHD,Bed Purchasing - North,Permanent Residential,Edgecumbe Lodge,2197.20,09 May 2018
945,Revenue,CAHD,Bed Purchasing - Southmead Hospital,Respite Planned - Residential,Edgemont House Ltd,2922.86,09 May 2018
946,Revenue,CAHD,Bed Purchasing - Southmead Hospital,Respite Planned - Residential,Edgemont House Ltd,1417.14,09 May 2018
947,Revenue,CAHD,Bed Purchasing - Southmead Hospital,Permanent Residential,Edgemont House Ltd,1948.72,09 May 2018
948,Revenue,CAHD,Bed Purchasing - South,Permanent Residential,Edgemont House Ltd,2229.64,09 May 2018
949,Revenue,CAHD,Bed Purchasing - South,Permanent Residential,Edgemont House Ltd,2878.57,09 May 2018
950,Revenue,CAHD,Bed Purchasing - South,Permanent Residential,Edgemont House Ltd,2878.57,09 May 2018
951,Revenue,CAHD,Bed Purchasing - South,Permanent Residential,Edgemont House Ltd,2649.40,09 May 2018
952,Revenue,CAHD,Bed Purchasing - South,Permanent Residential,Edgemont House Ltd,1324.70,09 May 2018
953,Revenue,CAHD,Bed Purchasing - South,Permanent Residential,Edgemont House Ltd,1324.70,09 May 2018
954,Revenue,CAHD,Bed Purchasing - South,Fees & Charges Income - General,Edgemont House Ltd,576.21,09 May 2018
955,Revenue,CAHD,South Glos Users in South Glos Homes,Permanent Nursing,Edgemont View Nursing Home,632.64,09 May 2018
956,Revenue,CAHD,South Glos Users in South Glos Homes,Permanent Nursing,Edgemont View Nursing Home,3256.05,09 May 2018
957,Revenue,CAHD,Bed Purchasing - South,Permanent Nursing,Edgemont View Nursing Home,3464.60,09 May 2018
958,Revenue,CAHD,South Glos Users in South Glos Homes,Permanent Nursing,Edgemont View Nursing Home,632.64,09 May 2018
959,Revenue,CAHD,South Glos Users in South Glos Homes,Permanent Nursing,Edgemont View Nursing Home,632.64,09 May 2018
960,Revenue,CAHD,South Glos Users in South Glos Homes,Permanent Nursing,Edgemont View Nursing Home,632.64,09 May 2018
961,Revenue,CAHD,South Glos Users in South Glos Homes,Permanent Nursing,Edgemont View Nursing Home,632.64,09 May 2018
962,Revenue,CAHD,South Glos Users in South Glos Homes,Permanent Nursing,Edgemont View Nursing Home,2370.05,09 May 2018
963,Revenue,CAHD,South Glos Users in South Glos Homes,Permanent Nursing,Edgemont View Nursing Home,632.64,09 May 2018
964,Revenue,CAHD,Bed Purchasing - South,Permanent Nursing,Edgemont View Nursing Home,2972.88,09 May 2018
965,Revenue,CAHD,South Glos Users in South Glos Homes,Permanent Nursing,Edgemont View Nursing Home,632.64,09 May 2018
966,Revenue,CAHD,South Glos Users in South Glos Homes,Permanent Nursing,Edgemont View Nursing Home,632.64,09 May 2018
967,Revenue,CAHD,South Glos Users in South Glos Homes,Permanent Nursing,Edgemont View Nursing Home,632.64,09 May 2018
968,Revenue,CAHD,Bed Purchasing - South,Permanent Nursing,Edgemont View Nursing Home,2934.72,09 May 2018
969,Revenue,CAHD,South Glos Users in South Glos Homes,Permanent Nursing,Edgemont View Nursing Home,632.64,09 May 2018
970,Revenue,CAHD,South Glos Users in South Glos Homes,Permanent Nursing,Edgemont View Nursing Home,632.64,09 May 2018
971,Revenue,CAHD,South Glos Users in South Glos Homes,Permanent Nursing,Edgemont View Nursing Home,632.64,09 May 2018
972,Revenue,CAHD,South Glos Users in South Glos Homes,Permanent Nursing,Edgemont View Nursing Home,632.64,09 May 2018
973,Revenue,CAHD,South Glos Users in South Glos Homes,Permanent Nursing,Edgemont View Nursing Home,632.64,09 May 2018
974,Revenue,CAHD,South Glos Users in South Glos Homes,Permanent Nursing,Edgemont View Nursing Home,3256.05,09 May 2018
975,Revenue,CAHD,Bed Purchasing - South,Permanent Nursing,Edgemont View Nursing Home,2934.72,09 May 2018
976,Revenue,CAHD,South Glos Users in South Glos Homes,Permanent Nursing,Edgemont View Nursing Home,632.64,09 May 2018
977,Revenue,CAHD,Bed Purchasing - South,Permanent Nursing,Edgemont View Nursing Home,2310.44,09 May 2018
978,Revenue,CAHD,South Glos Users in South Glos Homes,Permanent Nursing,Edgemont View Nursing Home,632.64,09 May 2018
979,Revenue,CAHD,South Glos Users in South Glos Homes,Permanent Nursing,Edgemont View Nursing Home,632.64,09 May 2018
980,Revenue,CAHD,South Glos Users in South Glos Homes,Permanent Nursing,Edgemont View Nursing Home,632.64,09 May 2018
981,Revenue,CAHD,Planning and Partnerships Procurement,Other Supplies & Services,Eldercare,2940.81,30 May 2018
982,Revenue,CAHD,Planning and Partnerships Procurement,Other Supplies & Services,Eldercare,2152.60,30 May 2018
983,Revenue,CAHD,Supporting People Programme,Grants to Voluntary Bodies,Elim Housing Association Limited,5236.00,01 May 2018
984,Revenue,CAHD,Home Care - Elderly - South,Other Small Contracts,Elite Home Care Ltd,6992.57,14 May 2018
985,Revenue,CAHD,Home Care - Elderly - South,Supported Living,Elite Home Care Ltd,55.56,14 May 2018
986,Revenue,CAHD,Home Care - Elderly - North,Other Small Contracts,Elite Home Care Ltd,1199.17,14 May 2018
987,Revenue,CAHD,Home Care - Elderly - South,Other Small Contracts,Elite Home Care Ltd,7727.20,29 May 2018
988,Revenue,CAHD,Home Care - Elderly - South,Supported Living,Elite Home Care Ltd,55.56,29 May 2018
989,Revenue,CAHD,Home Care - Elderly - North,Other Small Contracts,Elite Home Care Ltd,1222.32,29 May 2018
990,Revenue,CAHD,Home Care - Elderly - South,Other Small Contracts,Elite Home Care Ltd,7667.01,29 May 2018
991,Revenue,CAHD,Home Care - Elderly - South,Supported Living,Elite Home Care Ltd,55.56,29 May 2018
992,Revenue,CAHD,Home Care - Elderly - North,Other Small Contracts,Elite Home Care Ltd,1222.32,29 May 2018
993,Revenue,CAHD,Home Care - Elderly - South,Other Small Contracts,Elite Home Care Ltd,7473.32,29 May 2018
994,Revenue,CAHD,Home Care - Elderly - South,Supported Living,Elite Home Care Ltd,55.56,29 May 2018
995,Revenue,CAHD,Home Care - Elderly - North,Other Small Contracts,Elite Home Care Ltd,1208.43,29 May 2018
996,Revenue,CAHD,Tobacco Control,Other Small Contracts,Emersons Green Medical Centre,2162.00,14 May 2018
997,Revenue,CAHD,Sexual Health,Other Small Contracts,Emersons Green Medical Centre,1127.00,18 May 2018
998,Revenue,CAHD,CSC - Agency Fostering,Foster Parent Allowances,Enhanced Foster Care Ltd,4650.00,30 May 2018
999,Revenue,CAHD,CSC - Fostering Carer Support,Advertising - General,Exterion Media (UK) Limited,4600.00,14 May 2018
1000,Revenue,CAHD,South Glos Users in South Glos Homes,Permanent Nursing,Fairview Court,632.64,09 May 2018
1001,Revenue,CAHD,South Glos Users in South Glos Homes,Permanent Nursing,Fairview Court,632.64,09 May 2018
1002,Revenue,CAHD,South Glos Users in South Glos Homes,Permanent Nursing,Fairview Court,632.64,09 May 2018
1003,Revenue,CAHD,South Glos Users in South Glos Homes,Permanent Nursing,Fairview Court,632.64,09 May 2018
1004,Revenue,CAHD,Bed Purchasing - Southmead Hospital,Permanent Nursing,Fairview Court,3464.60,09 May 2018
1005,Revenue,CAHD,Bed Purchasing - Southmead Hospital,Permanent Nursing,Fairview Court,3400.00,09 May 2018
1006,Revenue,CAHD,Bed Purchasing - Southmead Hospital,Permanent Nursing,Fairview Court,1732.30,09 May 2018
1007,Revenue,CAHD,Bed Purchasing - Southmead Hospital,Permanent Nursing,Fairview Court,3464.60,09 May 2018
1008,Revenue,CAHD,South Glos Users in South Glos Homes,Permanent Nursing,Fairview Court,632.64,09 May 2018
1009,Revenue,CAHD,Bed Purchasing - Southmead Hospital,Permanent Nursing,Fairview Court,3423.84,09 May 2018
1010,Revenue,CAHD,South Glos Users in South Glos Homes,Permanent Nursing,Fairview Court,632.64,09 May 2018
1011,Revenue,CAHD,South Glos Users in South Glos Homes,Permanent Nursing,Fairview Court,632.64,09 May 2018
1012,Revenue,CAHD,Bed purchasing - Elderly S117 - South,Permanent Nursing,Fairview Court,4076.00,09 May 2018
1013,Revenue,CAHD,South Glos Users in South Glos Homes,Permanent Nursing,Fairview Court,632.64,09 May 2018
1014,Revenue,CAHD,Bed Purchasing - South,Permanent Nursing,Fairview Court,3303.20,09 May 2018
1015,Revenue,CAHD,South Glos Users in South Glos Homes,Permanent Nursing,Fairview Court,632.64,09 May 2018
1016,Revenue,CAHD,Bed Purchasing - Southmead Hospital,Permanent Nursing,Fairview Court,3400.00,09 May 2018
1017,Revenue,CAHD,Bed Purchasing - Southmead Hospital,Permanent Nursing,Fairview Court,1214.29,09 May 2018
1018,Revenue,CAHD,South Glos Users in South Glos Homes,Permanent Nursing,Fairview Court,632.64,09 May 2018
1019,Revenue,CAHD,Bed Purchasing - Southmead Hospital,Permanent Nursing,Fairview Court,3464.60,09 May 2018
1020,Revenue,CAHD,South Glos Users in South Glos Homes,Permanent Nursing,Fairview Court,632.64,09 May 2018
1021,Revenue,CAHD,South Glos Users in South Glos Homes,Permanent Nursing,Fairview Court,632.64,09 May 2018
1022,Revenue,CAHD,South Glos Users in South Glos Homes,Permanent Nursing,Fairview Court,632.64,09 May 2018
1023,Revenue,CAHD,South Glos Users in South Glos Homes,Permanent Nursing,Fairview Court,632.64,09 May 2018
1024,Revenue,CAHD,South Glos Users in South Glos Homes,Permanent Nursing,Fairview Court,632.64,09 May 2018
1025,Revenue,CAHD,Bed Purchasing - Southmead Hospital,Permanent Nursing,Fairview Court,3464.60,09 May 2018
1026,Revenue,CAHD,South Glos Users in South Glos Homes,Permanent Nursing,Fairview Court,632.64,09 May 2018
1027,Revenue,CAHD,South Glos Users in South Glos Homes,Permanent Nursing,Fairview Court,632.64,09 May 2018
1028,Revenue,CAHD,Bed Purchasing - Southmead Hospital,Permanent Nursing,Fairview Court,3400.00,09 May 2018
1029,Revenue,CAHD,Bed Purchasing - Southmead Hospital,Permanent Nursing,Fairview Court,850.00,09 May 2018
1030,Revenue,CAHD,South Glos Users in South Glos Homes,Permanent Nursing,Fairview Court,632.64,09 May 2018
1031,Revenue,CAHD,South Glos Users in South Glos Homes,Permanent Nursing,Fairview Court,632.64,09 May 2018
1032,Revenue,CAHD,South Glos Users in South Glos Homes,Permanent Nursing,Fairview Court,2458.65,09 May 2018
1033,Revenue,CAHD,Bed Purchasing - North,Permanent Nursing,Fairview Court,3464.60,09 May 2018
1034,Revenue,CAHD,South Glos Users in South Glos Homes,Permanent Nursing,Fairview Court,632.64,09 May 2018
1035,Revenue,CAHD,South Glos Users in South Glos Homes,Permanent Nursing,Fairview Court,632.64,09 May 2018
1036,Revenue,CAHD,South Glos Users in South Glos Homes,Permanent Nursing,Fairview Court,632.64,09 May 2018
1037,Revenue,CAHD,South Glos Users in South Glos Homes,Permanent Nursing,Fairview Court,1484.05,09 May 2018
1038,Revenue,CAHD,South Glos Users in South Glos Homes,Permanent Nursing,Fairview Court,632.64,09 May 2018
1039,Revenue,CAHD,South Glos Users in South Glos Homes,Permanent Nursing,Fairview Court,632.64,09 May 2018
1040,Revenue,CAHD,Bed Purchasing - Southmead Hospital,Permanent Nursing,Fairview Court,4007.14,09 May 2018
1041,Revenue,CAHD,Bed Purchasing - Southmead Hospital,Permanent Nursing,Fairview Court,3464.60,09 May 2018
1042,Revenue,CAHD,Bed Purchasing - Southmead Hospital,Permanent Nursing,Fairview Court,1732.30,09 May 2018
1043,Revenue,CAHD,Bed Purchasing - Southmead Hospital,Fees & Charges Income - General,Fairview Court,614.63,09 May 2018
1044,Revenue,CAHD,Bed Purchasing - South,Permanent Nursing,Fairview Court,3057.00,09 May 2018
1045,Revenue,CAHD,South Glos Users in South Glos Homes,Permanent Nursing,Fairview Court,632.64,09 May 2018
1046,Revenue,CAHD,South Glos Users in South Glos Homes,Permanent Nursing,Fairview Court,632.64,09 May 2018
1047,Revenue,CAHD,Bed Purchasing - South,Permanent Nursing,Fairview Court,6192.86,09 May 2018
1048,Revenue,CAHD,Bed Purchasing - South,Permanent Nursing,Fairview Court,3464.60,09 May 2018
1049,Revenue,CAHD,Bed Purchasing - South,Permanent Nursing,Fairview Court,1732.30,09 May 2018
1050,Revenue,CAHD,South Glos Users in South Glos Homes,Permanent Nursing,Fairview Court,632.64,09 May 2018
1051,Revenue,CAHD,Bed Purchasing - Southmead Hospital,Permanent Nursing,Fairview Court,3464.60,09 May 2018
1052,Revenue,CAHD,South Glos Users in South Glos Homes,Permanent Nursing,Fairview Court,632.64,09 May 2018
1053,Revenue,CAHD,South Glos Users in South Glos Homes,Permanent Nursing,Fairview Court,632.64,09 May 2018
1054,Revenue,CAHD,South Glos Users in South Glos Homes,Permanent Nursing,Fairview Court,632.64,09 May 2018
1055,Revenue,CAHD,Bed purchasing - Elderly S117 - South,Permanent Residential,Fairview House,2219.20,09 May 2018
1056,Revenue,CAHD,Bed Purchasing - Southmead Hospital,Permanent Residential,Fairview House,1222.80,09 May 2018
1057,Revenue,CAHD,Bed Purchasing - South,Permanent Residential,Fairview House,2149.60,09 May 2018
1058,Revenue,CAHD,Bed Purchasing - South,Permanent Residential,Fairview House,2219.20,09 May 2018
1059,Revenue,CAHD,Bed Purchasing - South,Permanent Residential,Fairview House,2148.68,09 May 2018
1060,Revenue,CAHD,South Glos Users in South Glos Homes,Permanent Nursing,Fairview House,1041.05,09 May 2018
1061,Revenue,CAHD,Bed Purchasing - South,Permanent Residential,Fairview House,2219.20,09 May 2018
1062,Revenue,CAHD,Bed Purchasing - South,Permanent Residential,Fairview House,2148.68,09 May 2018
1063,Revenue,CAHD,Bed Purchasing - South,Permanent Residential,Fairview House,2157.48,09 May 2018
1064,Revenue,CAHD,Bed Purchasing - Southmead Hospital,Permanent Residential,Fairview House,2547.52,09 May 2018
1065,Revenue,CAHD,Bed Purchasing - North,Permanent Residential,Faith House,2792.08,09 May 2018
1066,Revenue,CAHD,Tenancy Start Up Scheme,Other Supplies & Services,Farringtons Sales & Lettings,685.00,01 May 2018
1067,Revenue,CAHD,Bed Purchasing - Southmead Hospital,Permanent Nursing,Festival House,2983.44,09 May 2018
1068,Revenue,CAHD,Bed Purchasing - North,Permanent Residential,Festival House,3872.20,09 May 2018
1069,Revenue,CAHD,Bed Purchasing - North,Permanent Residential,Festival House,2714.29,09 May 2018
1070,Revenue,CAHD,Bed Purchasing - North,Permanent Residential,Festival House,1936.10,09 May 2018
1071,Revenue,CAHD,Bed Purchasing - North,Fees & Charges Income - General,Festival House,550.00,09 May 2018
1072,Revenue,CAHD,Bed Purchasing - North,Fees & Charges Income - General,Festival House,550.00,09 May 2018
1073,Revenue,CAHD,Bed Purchasing - North,Fees & Charges Income - General,Festival House,550.00,09 May 2018
1074,Revenue,CAHD,Bed Purchasing - North,Fees & Charges Income - General,Festival House,1097.28,09 May 2018
1075,Revenue,CAHD,"Education, Learning and Skills",Fees - General,FFT Education Ltd,11189.05,17 May 2018
1076,Revenue,CAHD,South Glos Users in South Glos Homes,Permanent Nursing,Field House Care Home,632.64,09 May 2018
1077,Revenue,CAHD,Bed Purchasing - Southmead Hospital,Permanent Nursing,Field House Care Home,3323.84,09 May 2018
1078,Revenue,CAHD,Bed Purchasing - North,Permanent Nursing,Field House Care Home,3505.36,09 May 2018
1079,Revenue,CAHD,Bed Purchasing - North,Permanent Nursing,Field House Care Home,1752.68,09 May 2018
1080,Revenue,CAHD,Bed Purchasing - North,Permanent Nursing,Field House Care Home,1351.43,09 May 2018
1081,Revenue,CAHD,Bed Purchasing - North,Permanent Nursing,Field House Care Home,1351.43,09 May 2018
1082,Revenue,CAHD,Bed Purchasing - North,Fees & Charges Income - General,Field House Care Home,685.16,09 May 2018
1083,Revenue,CAHD,Bed Purchasing - North,Fees & Charges Income - General,Field House Care Home,633.66,09 May 2018
1084,Revenue,CAHD,Bed Purchasing - Southmead Hospital,Permanent Nursing,Field House Care Home,3342.32,09 May 2018
1085,Revenue,CAHD,Bed Purchasing - Southmead Hospital,Respite Planned - Nursing,Field House Care Home,3342.32,09 May 2018
1086,Revenue,CAHD,Bed Purchasing - North,Permanent Nursing,Field House Care Home,3342.32,09 May 2018
1087,Revenue,CAHD,South Glos Users in South Glos Homes,Permanent Nursing,Field House Care Home,632.64,09 May 2018
1088,Revenue,CAHD,Bed Purchasing - Southmead Hospital,Permanent Nursing,Field House Care Home,3423.84,09 May 2018
1089,Revenue,CAHD,Bed Purchasing - North,Permanent Nursing,Field House Care Home,3423.84,09 May 2018
1090,Revenue,CAHD,Bed Purchasing - North,Permanent Residential,Fieldview,2890.28,09 May 2018
1091,Revenue,CAHD,Bed Purchasing - North,Permanent Residential,Fieldview,3668.40,09 May 2018
1092,Revenue,CAHD,Bed Purchasing - Southmead Hospital,Permanent Residential,Fieldview,2853.20,09 May 2018
1093,Revenue,CAHD,MH Purchasing - Younger,Permanent Nursing,Fieldview,5367.68,09 May 2018
1094,Revenue,CAHD,Bed Purchasing - South,Permanent Residential,Fig House,2890.28,09 May 2018
1095,Revenue,CAHD,Statemented Support Payments to OLAs,Other L.A.'s - General,Filton Avenue Primary School,883.57,24 May 2018
1096,Revenue,CAHD,CSC - Agency Fostering,Foster Parent Allowances,Five Rivers Child Care Limited,3404.70,01 May 2018
1097,Revenue,CAHD,CSC - Agency Fostering,Foster Parent Allowances,Five Rivers Child Care Limited,3518.19,31 May 2018
1098,Revenue,CAHD,CSC - Agency Fostering,Foster Parent Allowances,Five Rivers Child Care Limited,3336.60,01 May 2018
1099,Revenue,CAHD,CSC - Agency Fostering,Foster Parent Allowances,Five Rivers Child Care Limited,3938.57,01 May 2018
1100,Revenue,CAHD,CSC - Agency Fostering,Foster Parent Allowances,Five Rivers Child Care Limited,4152.86,01 May 2018
1101,Revenue,CAHD,CSC - Agency Fostering,Foster Parent Allowances,Five Rivers Child Care Limited,4069.86,31 May 2018
1102,Revenue,CAHD,CSC - Agency Fostering,Foster Parent Allowances,Five Rivers Child Care Limited,4291.29,31 May 2018
1103,Revenue,CAHD,CSC - Agency Fostering,Foster Parent Allowances,Five Rivers Child Care Limited,3447.82,31 May 2018
1104,Revenue,CAHD,CSC - Agency Fostering,Foster Parent Allowances,Foster Care Associates Limited,3998.40,17 May 2018
1105,Revenue,CAHD,CSC - Asylum Seekers - Unaccompanied,Foster Parent Allowances,Foster Care Associates Limited,3462.60,17 May 2018
1106,Revenue,CAHD,CSC - Agency Fostering,Foster Parent Allowances,Foster Care Associates Limited,4131.68,25 May 2018
1107,Revenue,CAHD,CSC - Asylum Seekers - Unaccompanied,Foster Parent Allowances,Foster Care Associates Limited,3578.02,25 May 2018
1108,Revenue,CAHD,CSC - Fostering Carer Support,Membership Fees,Fostering Network,2334.68,31 May 2018
1109,Revenue,CAHD,Home Care - Elderly - South,Day Care / Social Activities,Fourways Care Limited,70.08,07 May 2018
1110,Revenue,CAHD,Home Care - Elderly - South,Other Small Contracts,Fourways Care Limited,6469.26,07 May 2018
1111,Revenue,CAHD,Home Care - Elderly - North,Other Small Contracts,Fourways Care Limited,6241.50,07 May 2018
1112,Revenue,CAHD,Younger MH non-res purchasing,Other Small Contracts,Fourways Care Limited,70.08,07 May 2018
1113,Revenue,CAHD,Home care - Elderly MH - North,Other Small Contracts,Fourways Care Limited,600.06,07 May 2018
1114,Revenue,CAHD,Home Care - Elderly - South,Day Care / Social Activities,Fourways Care Limited,39.42,11 May 2018
1115,Revenue,CAHD,Home Care - Elderly - South,Other Small Contracts,Fourways Care Limited,6626.94,11 May 2018
1116,Revenue,CAHD,Home Care - Elderly - North,Other Small Contracts,Fourways Care Limited,6289.68,11 May 2018
1117,Revenue,CAHD,Younger MH non-res purchasing,Other Small Contracts,Fourways Care Limited,56.94,11 May 2018
1118,Revenue,CAHD,Home care - Elderly MH - North,Other Small Contracts,Fourways Care Limited,499.32,11 May 2018
1119,Revenue,CAHD,Home Care - Elderly - South,Day Care / Social Activities,Fourways Care Limited,35.04,18 May 2018
1120,Revenue,CAHD,Home Care - Elderly - South,Other Small Contracts,Fourways Care Limited,7463.52,18 May 2018
1121,Revenue,CAHD,Home Care - Elderly - North,Other Small Contracts,Fourways Care Limited,5610.78,18 May 2018
1122,Revenue,CAHD,Younger MH non-res purchasing,Other Small Contracts,Fourways Care Limited,65.70,18 May 2018
1123,Revenue,CAHD,Home care - Elderly MH - North,Other Small Contracts,Fourways Care Limited,429.24,18 May 2018
1124,Revenue,CAHD,Home Care - Elderly - South,Day Care / Social Activities,Fourways Care Limited,35.04,29 May 2018
1125,Revenue,CAHD,Home Care - Elderly - South,Other Small Contracts,Fourways Care Limited,6920.40,29 May 2018
1126,Revenue,CAHD,Home Care - Elderly - North,Other Small Contracts,Fourways Care Limited,6110.10,29 May 2018
1127,Revenue,CAHD,Younger MH non-res purchasing,Other Small Contracts,Fourways Care Limited,56.94,29 May 2018
1128,Revenue,CAHD,Home care - Elderly MH - North,Other Small Contracts,Fourways Care Limited,438.00,29 May 2018
1129,Revenue,CAHD,Post 16 High Needs Placements,Other Private Contractors,Foxes Academy,16534.78,04 May 2018
1130,Revenue,CAHD,Post 16 High Needs Placements,Other Private Contractors,Foxes Academy,15425.62,04 May 2018
1131,Revenue,CAHD,Post 16 High Needs Placements,Other Private Contractors,Foxes Academy,15755.65,04 May 2018
1132,Revenue,CAHD,Post 16 High Needs Placements,Other Private Contractors,Foxes Academy,15949.06,04 May 2018
1133,Revenue,CAHD,Post 16 High Needs Placements,Other Private Contractors,Foxes Academy,15823.88,04 May 2018
1134,Revenue,CAHD,Supporting People Programme,Grants to Voluntary Bodies,Freeways Trust Limited,5989.85,01 May 2018
1135,Revenue,CAHD,Home Care - Elderly - South,Day Care / Social Activities,Freeways Trust Limited,502.92,18 May 2018
1136,Revenue,CAHD,Home Care - Elderly - South,Other Small Contracts,Freeways Trust Limited,1081.04,18 May 2018
1137,Revenue,CAHD,Home Care - Elderly - North,Other Small Contracts,Freeways Trust Limited,819.28,18 May 2018
1138,Revenue,CAHD,Home Care - Elderly - North,Supported Living,Freeways Trust Ltd,825.80,09 May 2018
1139,Revenue,CAHD,Bed purchasing - S28A Under 65 - South,Permanent Residential,Freeways Trust Ltd,3795.56,09 May 2018
1140,Revenue,CAHD,Bed purchasing - S28A Under 65 - South,Permanent Residential,Freeways Trust Ltd,1897.78,09 May 2018
1141,Revenue,CAHD,Bed Purchasing - North,Permanent Residential,Freeways Trust Ltd,3675.20,09 May 2018
1142,Revenue,CAHD,Bed Purchasing - South,Permanent Residential,Freeways Trust Ltd,3897.84,09 May 2018
1143,Revenue,CAHD,Bed Purchasing - North,Permanent Residential,Freeways Trust Ltd,2943.20,09 May 2018
1144,Revenue,CAHD,Bed Purchasing - South,Permanent Residential,Freeways Trust Ltd,3101.48,09 May 2018
1145,Revenue,CAHD,Bed Purchasing - South,Permanent Residential,Freeways Trust Ltd,1550.74,09 May 2018
1146,Revenue,CAHD,Bed Purchasing - North,Permanent Residential,Freeways Trust Ltd,3250.60,09 May 2018
1147,Revenue,CAHD,Bed Purchasing - North,Permanent Residential,Freeways Trust Ltd,3890.76,09 May 2018
1148,Revenue,CAHD,18-25 Year Olds,Permanent Residential,Freeways Trust Ltd,3594.20,09 May 2018
1149,Revenue,CAHD,Section 117 Placements MH Younger,Permanent Residential,Freeways Trust Ltd,3260.80,09 May 2018
1150,Revenue,CAHD,Home Care - Elderly - South,Day Care / Social Activities,Frenchay Beckspool Building,801.44,09 May 2018
1151,Revenue,CAHD,Home Care - Elderly - North,Day Care / Social Activities,Frenchay Beckspool Building,1234.24,09 May 2018
1152,Revenue,CAHD,Home Care - Elderly - South,Day Care / Social Activities,Frenchay Beckspool Building,880.40,09 May 2018
1153,Revenue,CAHD,Home Care - Elderly - South,Day Care / Social Activities,Frenchay Beckspool Building,536.96,09 May 2018
1154,Revenue,CAHD,Bed Purchasing - Southmead Hospital,Permanent Nursing,Frenchay Park Nursing Home,3260.80,09 May 2018
1155,Revenue,CAHD,Early Years High Needs Support,Other Private Contractors,Frenchay Pre School Playgroup,910.13,23 May 2018
1156,Revenue,CAHD,CSC - Residential Placements,Permanent Residential,Friends Therapeutic Community Trust,15500.00,30 May 2018
1157,Revenue,CAHD,Tobacco Control,Other Small Contracts,Frome Valley Medical Centre,2634.30,14 May 2018
1158,Revenue,CAHD,Sexual Health,Other Small Contracts,Frome Valley Medical Centre,2012.50,18 May 2018
1159,Revenue,CAHD,Sexual Health,Other Small Contracts,Frome Valley Medical Centre,3200.32,18 May 2018
1160,Revenue,CAHD,DAT Treatment,Other Supplies & Services,Frontier Plastics Ltd,765.00,03 May 2018
1161,Revenue,CAHD,South Glos Users in South Glos Homes,Permanent Nursing,Fshc  1St Floor,632.64,09 May 2018
1162,Revenue,CAHD,Bed Purchasing - South,Permanent Nursing,Fshc  1St Floor,2670.96,09 May 2018
1163,Revenue,CAHD,South Glos Users in South Glos Homes,Permanent Nursing,Fshc  1St Floor,632.64,09 May 2018
1164,Revenue,CAHD,Bed Purchasing - South,Permanent Nursing,Fshc  1St Floor,2310.44,09 May 2018
1165,Revenue,CAHD,South Glos Users in South Glos Homes,Permanent Nursing,Fshc  1St Floor,1129.65,09 May 2018
1166,Revenue,CAHD,South Glos Users in South Glos Homes,Permanent Nursing,Fshc  1St Floor,632.64,09 May 2018
1167,Revenue,CAHD,Bed Purchasing - Southmead Hospital,Permanent Nursing,Fshc  1St Floor,2324.64,09 May 2018
1168,Revenue,CAHD,Bed Purchasing - South,Permanent Nursing,Fshc  1St Floor,2310.44,09 May 2018
1169,Revenue,CAHD,South Glos Users in South Glos Homes,Permanent Nursing,Fshc  1St Floor,632.64,09 May 2018
1170,Revenue,CAHD,Bed Purchasing - Southmead Hospital,Permanent Nursing,Fshc  1St Floor,2436.12,09 May 2018
1171,Revenue,CAHD,South Glos Users in South Glos Homes,Permanent Nursing,Fshc  1St Floor,632.64,09 May 2018
1172,Revenue,CAHD,Bed Purchasing - Southmead Hospital,Permanent Nursing,Fshc  1St Floor,2310.44,09 May 2018
1173,Revenue,CAHD,South Glos Users in South Glos Homes,Permanent Nursing,Fshc  1St Floor,632.64,09 May 2018
1174,Revenue,CAHD,Bed Purchasing - South,Permanent Residential,Fshc  1St Floor,2404.84,09 May 2018
1175,Revenue,CAHD,Bed Purchasing - Southmead Hospital,Permanent Nursing,Fshc  1St Floor,2560.00,09 May 2018
1176,Revenue,CAHD,Bed Purchasing - Southmead Hospital,Permanent Nursing,Fshc  1St Floor,548.57,09 May 2018
1177,Revenue,CAHD,Bed Purchasing - South,Permanent Nursing,Fshc  1St Floor,2608.64,09 May 2018
1178,Revenue,CAHD,South Glos Users in South Glos Homes,Permanent Nursing,Fshc  1St Floor,632.64,09 May 2018
1179,Revenue,CAHD,South Glos Users in South Glos Homes,Permanent Nursing,Fshc  1St Floor,632.64,09 May 2018
1180,Revenue,CAHD,Bed Purchasing - Southmead Hospital,Permanent Nursing,Fshc  1St Floor,2310.44,09 May 2018
1181,Revenue,CAHD,Bed Purchasing - Southmead Hospital,Permanent Nursing,Fshc  1St Floor,2404.84,09 May 2018
1182,Revenue,CAHD,South Glos Users in South Glos Homes,Permanent Nursing,Fshc  1St Floor,632.64,09 May 2018
1183,Revenue,CAHD,Bed Purchasing - South,Permanent Nursing,Fshc  1St Floor,2663.20,09 May 2018
1184,Revenue,CAHD,South Glos Users in South Glos Homes,Permanent Nursing,Fshc  1St Floor,632.64,09 May 2018
1185,Revenue,CAHD,South Glos Users in South Glos Homes,Permanent Nursing,Fshc  1St Floor,632.64,09 May 2018
1186,Revenue,CAHD,South Glos Users in South Glos Homes,Permanent Nursing,Fshc  1St Floor,632.64,09 May 2018
1187,Revenue,CAHD,South Glos Users in South Glos Homes,Permanent Nursing,Fshc  1St Floor,632.64,09 May 2018
1188,Revenue,CAHD,Bed Purchasing - South,Permanent Nursing,Fshc  1St Floor,2404.84,09 May 2018
1189,Revenue,CAHD,South Glos Users in South Glos Homes,Permanent Nursing,Fshc  1St Floor,1395.45,09 May 2018
1190,Revenue,CAHD,South Glos Users in South Glos Homes,Permanent Nursing,Fshc  1St Floor,632.64,09 May 2018
1191,Revenue,CAHD,South Glos Users in South Glos Homes,Permanent Nursing,Fshc  1St Floor,632.64,09 May 2018
1192,Revenue,CAHD,Bed Purchasing - Southmead Hospital,Permanent Nursing,Fshc  1St Floor,2324.64,09 May 2018
1193,Revenue,CAHD,South Glos Users in South Glos Homes,Permanent Nursing,Fshc  1St Floor,632.64,09 May 2018
1194,Revenue,CAHD,Bed Purchasing - Southmead Hospital,Permanent Nursing,Fshc  1St Floor,2404.84,09 May 2018
1195,Revenue,CAHD,South Glos Users in South Glos Homes,Permanent Nursing,Fshc  1St Floor,632.64,09 May 2018
1196,Revenue,CAHD,Bed Purchasing - South,Permanent Nursing,Fshc  1St Floor,2310.44,09 May 2018
1197,Revenue,CAHD,South Glos Users in South Glos Homes,Permanent Nursing,Fshc  1St Floor,632.64,09 May 2018
1198,Revenue,CAHD,Bed Purchasing - Southmead Hospital,Permanent Nursing,Fshc  1St Floor,2310.44,09 May 2018
1199,Revenue,CAHD,South Glos Users in South Glos Homes,Permanent Nursing,Fshc  1St Floor,632.64,09 May 2018
1200,Revenue,CAHD,Bed Purchasing - South,Permanent Nursing,Fshc  1St Floor,2310.44,09 May 2018
1201,Revenue,CAHD,South Glos Users in South Glos Homes,Permanent Nursing,Fshc  1St Floor,632.64,09 May 2018
1202,Revenue,CAHD,Bed Purchasing - South,Permanent Nursing,Fshc  1St Floor,2324.64,09 May 2018
1203,Revenue,CAHD,South Glos Users in South Glos Homes,Permanent Nursing,Fshc  1St Floor,632.64,09 May 2018
1204,Revenue,CAHD,South Glos Users in South Glos Homes,Permanent Nursing,Fshc  1St Floor,632.64,09 May 2018
1205,Revenue,CAHD,Bed Purchasing - Southmead Hospital,Permanent Nursing,Fshc  1St Floor,2445.60,09 May 2018
1206,Revenue,CAHD,South Glos Users in South Glos Homes,Permanent Nursing,Fshc  1St Floor,1151.80,09 May 2018
1207,Revenue,CAHD,South Glos Users in South Glos Homes,Permanent Nursing,Fshc  1St Floor,632.64,09 May 2018
1208,Revenue,CAHD,South Glos Users in South Glos Homes,Permanent Nursing,Fshc  1St Floor,632.64,09 May 2018
1209,Revenue,CAHD,Bed Purchasing - South,Permanent Nursing,Fshc  1St Floor,1202.42,09 May 2018
1210,Revenue,CAHD,Bed Purchasing - South,Permanent Nursing,Fshc  1St Floor,2404.84,09 May 2018
1211,Revenue,CAHD,Bed Purchasing - South,Permanent Nursing,Fshc  1St Floor,7922.86,09 May 2018
1212,Revenue,CAHD,Bed Purchasing - South,Fees & Charges Income - General,Fshc  1St Floor,1786.26,09 May 2018
1213,Revenue,CAHD,Bed Purchasing - Southmead Hospital,Permanent Nursing,Fshc  1St Floor,2864.24,09 May 2018
1214,Revenue,CAHD,Bed Purchasing - Southmead Hospital,Permanent Nursing,Fshc  1St Floor,2310.44,09 May 2018
1215,Revenue,CAHD,South Glos Users in South Glos Homes,Permanent Nursing,Fshc  1St Floor,632.64,09 May 2018
1216,Revenue,CAHD,Bed Purchasing - Southmead Hospital,Permanent Nursing,Fshc  1St Floor,2339.64,09 May 2018
1217,Revenue,CAHD,South Glos Users in South Glos Homes,Permanent Nursing,Fshc  1St Floor,632.64,09 May 2018
1218,Revenue,CAHD,Bed Purchasing - North,Permanent Nursing,Fshc  1St Floor,2339.64,09 May 2018
1219,Revenue,CAHD,South Glos Users in South Glos Homes,Permanent Nursing,Fshc  1St Floor,632.64,09 May 2018
1220,Revenue,CAHD,Bed Purchasing - North,Permanent Nursing,Fshc  1St Floor,1169.82,09 May 2018
1221,Revenue,CAHD,Bed Purchasing - North,Permanent Nursing,Fshc  1St Floor,984.00,09 May 2018
1222,Revenue,CAHD,Bed Purchasing - Southmead Hospital,Permanent Nursing,Fshc  1St Floor,2339.64,09 May 2018
1223,Revenue,CAHD,South Glos Users in South Glos Homes,Permanent Nursing,Fshc  1St Floor,1506.20,09 May 2018
1224,Revenue,CAHD,South Glos Users in South Glos Homes,Permanent Nursing,Fshc  1St Floor,632.64,09 May 2018
1225,Revenue,CAHD,South Glos Users in South Glos Homes,Permanent Nursing,Fshc  1St Floor,632.64,09 May 2018
1226,Revenue,CAHD,Bed Purchasing - North,Respite Emergency - Residential,Fshc  1St Floor,1473.90,09 May 2018
1227,Revenue,CAHD,Bed Purchasing - North,Respite Emergency - Residential,Fshc  1St Floor,1253.57,09 May 2018
1228,Revenue,CAHD,Bed Purchasing - North,Respite Emergency - Residential,Fshc  1St Floor,1080.86,09 May 2018
1229,Revenue,CAHD,Bed Purchasing - Southmead Hospital,Permanent Nursing,Fshc  1St Floor,2310.44,09 May 2018
1230,Revenue,CAHD,South Glos Users in South Glos Homes,Permanent Nursing,Fshc  1St Floor,632.64,09 May 2018
1231,Revenue,CAHD,Bed Purchasing - Southmead Hospital,Permanent Residential,Fshc  1St Floor,2148.68,09 May 2018
1232,Revenue,CAHD,South Glos Users in South Glos Homes,Permanent Nursing,Fshc  1St Floor,632.64,09 May 2018
1233,Revenue,CAHD,Bed Purchasing - North,Permanent Residential,Fshc  1St Floor,2832.84,09 May 2018
1234,Revenue,CAHD,Bed Purchasing - South,Permanent Residential,Fshc  1St Floor,2751.32,09 May 2018
1235,Revenue,CAHD,Bed Purchasing - North,Permanent Nursing,Fshc  1St Floor,2339.64,09 May 2018
1236,Revenue,CAHD,South Glos Users in South Glos Homes,Permanent Nursing,Fshc  1St Floor,632.64,09 May 2018
1237,Revenue,CAHD,South Glos Users in South Glos Homes,Permanent Nursing,Fshc  1St Floor,632.64,09 May 2018
1238,Revenue,CAHD,Bed Purchasing - Southmead Hospital,Permanent Nursing,Fshc  1St Floor,2311.20,09 May 2018
1239,Revenue,CAHD,South Glos Users in South Glos Homes,Permanent Nursing,Fshc  1St Floor,632.64,09 May 2018
1240,Revenue,CAHD,Bed Purchasing - Southmead Hospital,Permanent Nursing,Fshc  1St Floor,2310.44,09 May 2018
1241,Revenue,CAHD,South Glos Users in South Glos Homes,Permanent Nursing,Fshc  1St Floor,632.64,09 May 2018
1242,Revenue,CAHD,Bed Purchasing - North,Permanent Nursing,Fshc  1St Floor,2310.44,09 May 2018
1243,Revenue,CAHD,South Glos Users in South Glos Homes,Permanent Nursing,Fshc  1St Floor,632.64,09 May 2018
1244,Revenue,CAHD,Bed Purchasing - North,Permanent Nursing,Fshc  1St Floor,2310.44,09 May 2018
1245,Revenue,CAHD,South Glos Users in South Glos Homes,Permanent Nursing,Fshc  1St Floor,632.64,09 May 2018
1246,Revenue,CAHD,South Glos Users in South Glos Homes,Permanent Nursing,Fshc  1St Floor,2059.95,09 May 2018
1247,Revenue,CAHD,Bed Purchasing - North,Permanent Nursing,Fshc  1St Floor,2339.64,09 May 2018
1248,Revenue,CAHD,Bed Purchasing - North,Permanent Nursing,Fshc  1St Floor,1394.00,09 May 2018
1249,Revenue,CAHD,Bed Purchasing - North,Permanent Nursing,Fshc  1St Floor,1169.82,09 May 2018
1250,Revenue,CAHD,South Glos Users in South Glos Homes,Permanent Nursing,Fshc  1St Floor,632.64,09 May 2018
1251,Revenue,CAHD,Bed Purchasing - North,Permanent Nursing,Fshc  1St Floor,2339.64,09 May 2018
1252,Revenue,CAHD,South Glos Users in South Glos Homes,Permanent Nursing,Fshc  1St Floor,632.64,09 May 2018
1253,Revenue,CAHD,Bed Purchasing - North,Permanent Nursing,Fshc  1St Floor,2310.44,09 May 2018
1254,Revenue,CAHD,South Glos Users in South Glos Homes,Permanent Nursing,Fshc  1St Floor,632.64,09 May 2018
1255,Revenue,CAHD,South Glos Users in South Glos Homes,Permanent Nursing,Fshc  1St Floor,632.64,09 May 2018
1256,Revenue,CAHD,Bed Purchasing - North,Permanent Residential,Fshc  1St Floor,2751.32,09 May 2018
1257,Revenue,CAHD,Bed Purchasing - North,Permanent Nursing,Fshc  1St Floor,2310.44,09 May 2018
1258,Revenue,CAHD,South Glos Users in South Glos Homes,Permanent Nursing,Fshc  1St Floor,632.64,09 May 2018
1259,Revenue,CAHD,South Glos Users in South Glos Homes,Permanent Nursing,Fshc  1St Floor,632.64,09 May 2018
1260,Revenue,CAHD,South Glos Users in South Glos Homes,Permanent Nursing,Fshc  1St Floor,632.64,09 May 2018
1261,Revenue,CAHD,Bed Purchasing - Southmead Hospital,Permanent Nursing,Fshc  1St Floor,2310.44,09 May 2018
1262,Revenue,CAHD,South Glos Users in South Glos Homes,Permanent Nursing,Fshc  1St Floor,632.64,09 May 2018
1263,Revenue,CAHD,South Glos Users in South Glos Homes,Permanent Nursing,Fshc  1St Floor,632.64,09 May 2018
1264,Revenue,CAHD,South Glos Users in South Glos Homes,Permanent Nursing,Fshc  1St Floor,632.64,09 May 2018
1265,Revenue,CAHD,Bed Purchasing - North,Permanent Nursing,Fshc  1St Floor,2310.44,09 May 2018
1266,Revenue,CAHD,South Glos Users in South Glos Homes,Permanent Nursing,Fshc  1St Floor,1528.35,09 May 2018
1267,Revenue,CAHD,South Glos Users in South Glos Homes,Permanent Nursing,Fshc  1St Floor,632.64,09 May 2018
1268,Revenue,CAHD,Bed Purchasing - Southmead Hospital,Permanent Nursing,Fshc  1St Floor,5719.14,09 May 2018
1269,Revenue,CAHD,Bed Purchasing - Southmead Hospital,Fees & Charges Income - General,Fshc  1St Floor,3192.94,09 May 2018
1270,Revenue,CAHD,Bed Purchasing - Southmead Hospital,Fees & Charges Income - General,Fshc  1St Floor,1488.69,09 May 2018
1271,Revenue,CAHD,Bed Purchasing - Southmead Hospital,Fees & Charges Income - General,Fshc  1St Floor,1889.49,09 May 2018
1272,Revenue,CAHD,Bed Purchasing - Southmead Hospital,Fees & Charges Income - General,Fshc  1St Floor,3130.06,09 May 2018
1273,Revenue,CAHD,Bed Purchasing - North,Permanent Nursing,Fshc  1St Floor,2310.44,09 May 2018
1274,Revenue,CAHD,South Glos Users in South Glos Homes,Permanent Nursing,Fshc  1St Floor,632.64,09 May 2018
1275,Revenue,CAHD,Bed Purchasing - North,Permanent Nursing,Fshc  1St Floor,2310.44,09 May 2018
1276,Revenue,CAHD,South Glos Users in South Glos Homes,Permanent Nursing,Fshc  1St Floor,632.64,09 May 2018
1277,Revenue,CAHD,Bed Purchasing - North,Permanent Nursing,Fshc  1St Floor,2310.44,09 May 2018
1278,Revenue,CAHD,South Glos Users in South Glos Homes,Permanent Nursing,Fshc  1St Floor,632.64,09 May 2018
1279,Revenue,CAHD,Bed Purchasing - North,Permanent Nursing,Fshc  1St Floor,2310.44,09 May 2018
1280,Revenue,CAHD,South Glos Users in South Glos Homes,Permanent Nursing,Fshc  1St Floor,632.64,09 May 2018
1281,Revenue,CAHD,South Glos Users in South Glos Homes,Permanent Nursing,Fshc  1St Floor,632.64,09 May 2018
1282,Revenue,CAHD,Bed Purchasing - Southmead Hospital,Permanent Nursing,Fshc  1St Floor,2310.44,09 May 2018
1283,Revenue,CAHD,South Glos Users in South Glos Homes,Permanent Nursing,Fshc  1St Floor,632.64,09 May 2018
1284,Revenue,CAHD,Bed Purchasing - North,Permanent Nursing,Fshc  1St Floor,2380.96,09 May 2018
1285,Revenue,CAHD,South Glos Users in South Glos Homes,Permanent Nursing,Fshc  1St Floor,632.64,09 May 2018
1286,Revenue,CAHD,Bed Purchasing - North,Permanent Nursing,Fshc  1St Floor,2270.32,09 May 2018
1287,Revenue,CAHD,Bed Purchasing - North,Permanent Nursing,Fshc  1St Floor,1100.42,09 May 2018
1288,Revenue,CAHD,South Glos Users in South Glos Homes,Permanent Nursing,Fshc  1St Floor,632.64,09 May 2018
1289,Revenue,CAHD,Bed Purchasing - North,Permanent Nursing,Fshc  1St Floor,2380.96,09 May 2018
1290,Revenue,CAHD,South Glos Users in South Glos Homes,Permanent Nursing,Fshc  1St Floor,632.64,09 May 2018
1291,Revenue,CAHD,South Glos Users in South Glos Homes,Permanent Nursing,Fshc  1St Floor,632.64,09 May 2018
1292,Revenue,CAHD,Bed Purchasing - Southmead Hospital,Permanent Nursing,Fshc  1St Floor,2427.84,09 May 2018
1293,Revenue,CAHD,South Glos Users in South Glos Homes,Permanent Nursing,Fshc  1St Floor,632.64,09 May 2018
1294,Revenue,CAHD,South Glos Users in South Glos Homes,Permanent Nursing,Fshc  1St Floor,632.64,09 May 2018
1295,Revenue,CAHD,Bed Purchasing - North,Permanent Nursing,Fshc  1St Floor,2310.44,09 May 2018
1296,Revenue,CAHD,South Glos Users in South Glos Homes,Permanent Nursing,Fshc  1St Floor,632.64,09 May 2018
1297,Revenue,CAHD,Bed Purchasing - North,Permanent Nursing,Fshc  1St Floor,2310.44,09 May 2018
1298,Revenue,CAHD,Bed Purchasing - North,Permanent Nursing,Fshc  1St Floor,1155.22,09 May 2018
1299,Revenue,CAHD,South Glos Users in South Glos Homes,Permanent Nursing,Fshc  1St Floor,632.64,09 May 2018
1300,Revenue,CAHD,Bed Purchasing - Southmead Hospital,Permanent Nursing,Fshc  1St Floor,3158.92,09 May 2018
1301,Revenue,CAHD,South Glos Users in South Glos Homes,Permanent Nursing,Fshc  1St Floor,632.64,09 May 2018
1302,Revenue,CAHD,South Glos Users in South Glos Homes,Permanent Nursing,Fshc  1St Floor,632.64,09 May 2018
1303,Revenue,CAHD,South Glos Users in South Glos Homes,Permanent Nursing,Fshc  1St Floor,632.64,09 May 2018
1304,Revenue,CAHD,South Glos Users in South Glos Homes,Permanent Nursing,Fshc  1St Floor,632.64,09 May 2018
1305,Revenue,CAHD,Bed Purchasing - North,Permanent Nursing,Fshc  1St Floor,2323.12,09 May 2018
1306,Revenue,CAHD,Bed Purchasing - Elderly S117- North,Respite Planned - Nursing,Fshc  1St Floor,2879.40,09 May 2018
1307,Revenue,CAHD,Bed Purchasing - Elderly S117- North,Respite Planned - Nursing,Fshc  1St Floor,1748.21,09 May 2018
1308,Revenue,CAHD,South Glos Users in South Glos Homes,Permanent Nursing,Fshc  1St Floor,632.64,09 May 2018
1309,Revenue,CAHD,South Glos Users in South Glos Homes,Permanent Nursing,Fshc  1St Floor,632.64,09 May 2018
1310,Revenue,CAHD,South Glos Users in South Glos Homes,Permanent Nursing,Fshc  1St Floor,632.64,09 May 2018
1311,Revenue,CAHD,Bed Purchasing - North,Respite Planned - Nursing,Fshc  1St Floor,5950.00,09 May 2018
1312,Revenue,CAHD,South Glos Users in South Glos Homes,Permanent Nursing,Fshc  1St Floor,1772.00,09 May 2018
1313,Revenue,CAHD,South Glos Users in South Glos Homes,Permanent Nursing,Fshc  1St Floor,632.64,09 May 2018
1314,Revenue,CAHD,Bed Purchasing - North,Respite Planned - Nursing,Fshc  1St Floor,618.68,09 May 2018
1315,Revenue,CAHD,Bed Purchasing - South,Permanent Nursing,Fshc  1St Floor,2554.80,09 May 2018
1316,Revenue,CAHD,South Glos Users in South Glos Homes,Permanent Nursing,Fshc  1St Floor,632.64,09 May 2018
1317,Revenue,CAHD,South Glos Users in South Glos Homes,Permanent Nursing,Fshc  1St Floor,632.64,09 May 2018
1318,Revenue,CAHD,South Glos Users in South Glos Homes,Permanent Nursing,Fshc  1St Floor,1173.95,09 May 2018
1319,Revenue,CAHD,South Glos Users in South Glos Homes,Permanent Nursing,Fshc  1St Floor,632.64,09 May 2018
1320,Revenue,CAHD,South Glos Users in South Glos Homes,Permanent Nursing,Fshc  1St Floor,632.64,09 May 2018
1321,Revenue,CAHD,South Glos Users in South Glos Homes,Permanent Nursing,Fshc  1St Floor,632.64,09 May 2018
1322,Revenue,CAHD,South Glos Users in South Glos Homes,Permanent Nursing,Fshc  1St Floor,632.64,09 May 2018
1323,Revenue,CAHD,Bed Purchasing - North,Permanent Nursing,Fshc  1St Floor,2323.12,09 May 2018
1324,Revenue,CAHD,South Glos Users in South Glos Homes,Permanent Nursing,Fshc  1St Floor,996.75,09 May 2018
1325,Revenue,CAHD,South Glos Users in South Glos Homes,Permanent Nursing,Fshc  1St Floor,632.64,09 May 2018
1326,Revenue,CAHD,South Glos Users in South Glos Homes,Permanent Nursing,Fshc  1St Floor,632.64,09 May 2018
1327,Revenue,CAHD,Bed Purchasing - North,Respite Planned - Nursing,Fshc  1St Floor,2526.92,09 May 2018
1328,Revenue,CAHD,South Glos Users in South Glos Homes,Permanent Nursing,Fshc  1St Floor,632.64,09 May 2018
1329,Revenue,CAHD,Bed Purchasing - Southmead Hospital,Permanent Nursing,Fshc  1St Floor,2451.60,09 May 2018
1330,Revenue,CAHD,South Glos Users in South Glos Homes,Permanent Nursing,Fshc  1St Floor,632.64,09 May 2018
1331,Revenue,CAHD,South Glos Users in South Glos Homes,Permanent Nursing,Fshc  1St Floor,632.64,09 May 2018
1332,Revenue,CAHD,Bed Purchasing - Southmead Hospital,Permanent Nursing,Fshc  1St Floor,2547.52,09 May 2018
1333,Revenue,CAHD,South Glos Users in South Glos Homes,Permanent Nursing,Fshc  1St Floor,632.64,09 May 2018
1334,Revenue,CAHD,South Glos Users in South Glos Homes,Permanent Nursing,Fshc  1St Floor,632.64,09 May 2018
1335,Revenue,CAHD,South Glos Users in South Glos Homes,Permanent Nursing,Fshc  1St Floor,632.64,09 May 2018
1336,Revenue,CAHD,Bed Purchasing - Southmead Hospital,Permanent Nursing,Fshc  1St Floor,2554.80,09 May 2018
1337,Revenue,CAHD,South Glos Users in South Glos Homes,Permanent Nursing,Fshc  1St Floor,632.64,09 May 2018
1338,Revenue,CAHD,Bed Purchasing - Southmead Hospital,Permanent Nursing,Fshc  1St Floor,2260.44,09 May 2018
1339,Revenue,CAHD,Bed Purchasing - North,Permanent Nursing,Fshc  1St Floor,2380.96,09 May 2018
1340,Revenue,CAHD,South Glos Users in South Glos Homes,Permanent Nursing,Fshc  1St Floor,632.64,09 May 2018
1341,Revenue,CAHD,Bed Purchasing - Southmead Hospital,Respite Planned - Nursing,Fshc  1St Floor,1886.29,09 May 2018
1342,Revenue,CAHD,Bed Purchasing - Southmead Hospital,Respite Planned - Nursing,Fshc  1St Floor,1416.30,09 May 2018
1343,Revenue,CAHD,Bed Purchasing - Southmead Hospital,Respite Planned - Nursing,Fshc  1St Floor,910.48,09 May 2018
1344,Revenue,CAHD,South Glos Users in South Glos Homes,Permanent Nursing,Fshc  1St Floor,632.64,09 May 2018
1345,Revenue,CAHD,Bed Purchasing - Southmead Hospital,Permanent Nursing,Fshc  1St Floor,3158.92,09 May 2018
1346,Revenue,CAHD,South Glos Users in South Glos Homes,Permanent Nursing,Fshc  1St Floor,632.64,09 May 2018
1347,Revenue,CAHD,South Glos Users in South Glos Homes,Permanent Nursing,Fshc  1St Floor,632.64,09 May 2018
1348,Revenue,CAHD,Bed Purchasing - North,Permanent Nursing,Fshc  1St Floor,2456.52,09 May 2018
1349,Revenue,CAHD,South Glos Users in South Glos Homes,Permanent Nursing,Fshc  1St Floor,632.64,09 May 2018
1350,Revenue,CAHD,Bed Purchasing - North,Permanent Nursing,Fshc  1St Floor,2310.44,09 May 2018
1351,Revenue,CAHD,South Glos Users in South Glos Homes,Permanent Nursing,Fshc  1St Floor,632.64,09 May 2018
1352,Revenue,CAHD,Bed Purchasing - South,Permanent Nursing,Fshc  1St Floor,2554.80,09 May 2018
1353,Revenue,CAHD,South Glos Users in South Glos Homes,Permanent Nursing,Fshc  1St Floor,632.64,09 May 2018
1354,Revenue,CAHD,Bed Purchasing - Southmead Hospital,Permanent Nursing,Fshc  1St Floor,2380.96,09 May 2018
1355,Revenue,CAHD,South Glos Users in South Glos Homes,Permanent Nursing,Fshc  1St Floor,632.64,09 May 2018
1356,Revenue,CAHD,Bed Purchasing - South,Permanent Nursing,Fshc  1St Floor,2477.40,09 May 2018
1357,Revenue,CAHD,South Glos Users in South Glos Homes,Permanent Nursing,Fshc  1St Floor,632.64,09 May 2018
1358,Revenue,CAHD,South Glos Users in South Glos Homes,Permanent Nursing,Fshc  1St Floor,632.64,09 May 2018
1359,Revenue,CAHD,Bed Purchasing - South,Permanent Nursing,Fshc  1St Floor,2547.52,09 May 2018
1360,Revenue,CAHD,South Glos Users in South Glos Homes,Permanent Nursing,Fshc  1St Floor,632.64,09 May 2018
1361,Revenue,CAHD,Bed Purchasing - Southmead Hospital,Permanent Nursing,Fshc  1St Floor,2310.44,09 May 2018
1362,Revenue,CAHD,South Glos Users in South Glos Homes,Permanent Nursing,Fshc  1St Floor,632.64,09 May 2018
1363,Revenue,CAHD,South Glos Users in South Glos Homes,Permanent Nursing,Fshc  1St Floor,632.64,09 May 2018
1364,Revenue,CAHD,South Glos Users in South Glos Homes,Permanent Nursing,Fshc  1St Floor,632.64,09 May 2018
1365,Revenue,CAHD,Bed Purchasing - South,Permanent Nursing,Fshc  1St Floor,2343.72,09 May 2018
1366,Revenue,CAHD,Bed Purchasing - Southmead Hospital,Permanent Nursing,Fshc  1St Floor,22028.57,09 May 2018
1367,Revenue,CAHD,Bed Purchasing - Southmead Hospital,Fees & Charges Income - General,Fshc  1St Floor,9842.86,09 May 2018
1368,Revenue,CAHD,Bed Purchasing - Southmead Hospital,Permanent Nursing,Fshc  1St Floor,2444.16,09 May 2018
1369,Revenue,CAHD,Bed Purchasing - Southmead Hospital,Permanent Nursing,Fshc  1St Floor,1222.08,09 May 2018
1370,Revenue,CAHD,South Glos Users in South Glos Homes,Permanent Nursing,Fshc  1St Floor,632.64,09 May 2018
1371,Revenue,CAHD,Bed Purchasing - Southmead Hospital,Fees & Charges Income - General,Fshc  1St Floor,6325.00,09 May 2018
1372,Revenue,CAHD,Bed Purchasing - Southmead Hospital,Fees & Charges Income - General,Fshc  1St Floor,550.00,09 May 2018
1373,Revenue,CAHD,Bed Purchasing - Southmead Hospital,Fees & Charges Income - General,Fshc  1St Floor,6588.51,09 May 2018
1374,Revenue,CAHD,Bed Purchasing - South,Permanent Nursing,Fshc  1St Floor,2310.44,09 May 2018
1375,Revenue,CAHD,South Glos Users in South Glos Homes,Permanent Nursing,Fshc  1St Floor,632.64,09 May 2018
1376,Revenue,CAHD,South Glos Users in South Glos Homes,Permanent Nursing,Fshc  1St Floor,632.64,09 May 2018
1377,Revenue,CAHD,Bed Purchasing - Southmead Hospital,Permanent Nursing,Fshc  1St Floor,2445.60,09 May 2018
1378,Revenue,CAHD,South Glos Users in South Glos Homes,Permanent Nursing,Fshc  1St Floor,632.64,09 May 2018
1379,Revenue,CAHD,South Glos Users in South Glos Homes,Permanent Nursing,Fshc  1St Floor,632.64,09 May 2018
1380,Revenue,CAHD,Bed Purchasing - Southmead Hospital,Permanent Nursing,Fshc  1St Floor,2311.20,09 May 2018
1381,Revenue,CAHD,South Glos Users in South Glos Homes,Permanent Nursing,Fshc  1St Floor,632.64,09 May 2018
1382,Revenue,CAHD,South Glos Users in South Glos Homes,Permanent Nursing,Fshc  1St Floor,632.64,09 May 2018
1383,Revenue,CAHD,South Glos Users in South Glos Homes,Permanent Nursing,Fshc  1St Floor,632.64,09 May 2018
1384,Revenue,CAHD,Bed Purchasing - South,Respite Planned - Residential,Fshc  1St Floor,600.00,09 May 2018
1385,Revenue,CAHD,Bed Purchasing - Southmead Hospital,Permanent Residential,Fshc  1St Floor,2343.72,09 May 2018
1386,Revenue,CAHD,South Glos Users in South Glos Homes,Permanent Nursing,Fshc  1St Floor,632.64,09 May 2018
1387,Revenue,CAHD,South Glos Users in South Glos Homes,Permanent Nursing,Fshc  1St Floor,4031.30,09 May 2018
1388,Revenue,CAHD,Bed Purchasing - South,Permanent Residential,Fshc  1St Floor,2180.68,09 May 2018
1389,Revenue,CAHD,Bed Purchasing - Southmead Hospital,Permanent Nursing,Fshc  1St Floor,2380.96,09 May 2018
1390,Revenue,CAHD,South Glos Users in South Glos Homes,Permanent Nursing,Fshc  1St Floor,632.64,09 May 2018
1391,Revenue,CAHD,Bed Purchasing - Southmead Hospital,Permanent Residential,Fshc  1St Floor,3250.00,09 May 2018
1392,Revenue,CAHD,Bed Purchasing - Southmead Hospital,Permanent Residential,Fshc  1St Floor,2649.40,09 May 2018
1393,Revenue,CAHD,Bed Purchasing - Southmead Hospital,Permanent Residential,Fshc  1St Floor,1324.70,09 May 2018
1394,Revenue,CAHD,Bed Purchasing - Southmead Hospital,Permanent Nursing,Fshc  1St Floor,2310.44,09 May 2018
1395,Revenue,CAHD,South Glos Users in South Glos Homes,Permanent Nursing,Fshc  1St Floor,632.64,09 May 2018
1396,Revenue,CAHD,Bed Purchasing - South,Permanent Nursing,Fshc  1St Floor,2683.84,09 May 2018
1397,Revenue,CAHD,South Glos Users in South Glos Homes,Permanent Nursing,Fshc  1St Floor,632.64,09 May 2018
1398,Revenue,CAHD,Bed Purchasing - South,Permanent Nursing,Fshc  1St Floor,2399.00,09 May 2018
1399,Revenue,CAHD,South Glos Users in South Glos Homes,Permanent Nursing,Fshc  1St Floor,632.64,09 May 2018
1400,Revenue,CAHD,Bed Purchasing - South,Permanent Nursing,Fshc  1St Floor,2310.44,09 May 2018
1401,Revenue,CAHD,Bed Purchasing - South,Permanent Nursing,Fshc  1St Floor,1155.22,09 May 2018
1402,Revenue,CAHD,South Glos Users in South Glos Homes,Permanent Nursing,Fshc  1St Floor,632.64,09 May 2018
1403,Revenue,CAHD,South Glos Users in South Glos Homes,Permanent Nursing,Fshc  1St Floor,632.64,09 May 2018
1404,Revenue,CAHD,Bed Purchasing - South,Permanent Residential,Fshc  1St Floor,2223.84,09 May 2018
1405,Revenue,CAHD,Bed Purchasing - South,Permanent Nursing,Fshc  1St Floor,2233.76,09 May 2018
1406,Revenue,CAHD,Bed Purchasing - Southmead Hospital,Permanent Nursing,Fshc  1St Floor,2929.60,09 May 2018
1407,Revenue,CAHD,Bed purchasing - Elderly S117 - South,Permanent Nursing,Fshc  1St Floor,2233.76,09 May 2018
1408,Revenue,CAHD,Bed Purchasing - South,Permanent Nursing,Fshc  1St Floor,3509.64,09 May 2018
1409,Revenue,CAHD,Bed Purchasing - South,Permanent Nursing,Fshc  1St Floor,980.63,09 May 2018
1410,Revenue,CAHD,Bed Purchasing - Southmead Hospital,Permanent Nursing,Fshc  1St Floor,2233.76,09 May 2018
1411,Revenue,CAHD,Bed Purchasing - Southmead Hospital,Permanent Nursing,Fshc  1St Floor,3275.36,09 May 2018
1412,Revenue,CAHD,Bed Purchasing - Southmead Hospital,Permanent Nursing,Fshc  1St Floor,3158.92,09 May 2018
1413,Revenue,CAHD,Bed Purchasing - Southmead Hospital,Permanent Nursing,Fshc  1St Floor,2233.76,09 May 2018
1414,Revenue,CAHD,Bed Purchasing - South,Permanent Nursing,Fshc  1St Floor,2233.76,09 May 2018
1415,Revenue,CAHD,Bed Purchasing - South,Permanent Residential,Fshc  1St Floor,3656.28,09 May 2018
1416,Revenue,CAHD,Bed Purchasing - Southmead Hospital,Permanent Residential,Fshc  1St Floor,2052.92,09 May 2018
1417,Revenue,CAHD,Bed Purchasing - North,Permanent Nursing,Fshc  1St Floor,2235.88,09 May 2018
1418,Revenue,CAHD,Bed Purchasing - North,Permanent Nursing,Fshc  1St Floor,2105.24,09 May 2018
1419,Revenue,CAHD,South Glos Users in South Glos Homes,Permanent Nursing,Fshc  1St Floor,632.64,09 May 2018
1420,Revenue,CAHD,Bed Purchasing - North,Respite Planned - Residential,Fshc  1St Floor,553.66,09 May 2018
1421,Revenue,CAHD,Bed Purchasing - Southmead Hospital,Permanent Nursing,Fshc  1St Floor,4076.00,09 May 2018
1422,Revenue,CAHD,Bed Purchasing - North,Permanent Nursing,Fshc  1St Floor,2264.96,09 May 2018
1423,Revenue,CAHD,Bed Purchasing - North,Permanent Nursing,Fshc  1St Floor,2309.04,09 May 2018
1424,Revenue,CAHD,Section 117 Placements MH Younger,Permanent Residential,Fshc  1St Floor,3600.00,09 May 2018
1425,Revenue,CAHD,Section 117 Placements MH Younger,Permanent Residential,Fshc  1St Floor,2314.29,09 May 2018
1426,Revenue,CAHD,Bed Purchasing - North,Permanent Residential,Fshc  1St Floor,1890.36,09 May 2018
1427,Revenue,CAHD,CSC - Corporate Parenting Manager,Agency Staff (Admin/Support Staff) Pay,Gatenby Sanderson Limited,2900.00,07 May 2018
1428,Revenue,CAHD,CSC - Corporate Parenting Manager,Agency Staff (Admin/Support Staff) Pay,Gatenby Sanderson Limited,2900.00,18 May 2018
1429,Revenue,CAHD,CSC - Corporate Parenting Manager,Agency Staff (Admin/Support Staff) Pay,Gatenby Sanderson Limited,1740.00,22 May 2018
1430,Revenue,CAHD,CSC - Corporate Parenting Manager,Agency Staff (Admin/Support Staff) Pay,Gatenby Sanderson Limited,2900.00,30 May 2018
1431,Revenue,CAHD,Alexandra Way,Premises Maintenance by Contractor,George Grimes,7865.00,16 May 2018
1432,Revenue,CAHD,Alexandra Way,Furniture & Fittings Loose,George Grimes,790.00,31 May 2018
1433,Revenue,CAHD,Alexandra Way,Premises Maintenance by Contractor,George Grimes,800.00,31 May 2018
1434,Revenue,CAHD,Bed Purchasing - South,Permanent Residential,Gladstone House,5859.20,09 May 2018
1435,Revenue,CAHD,Bed Purchasing - North,Permanent Residential,Glan Y Felin,6643.96,09 May 2018
1436,Revenue,CAHD,Bed Purchasing - South,Permanent Residential,Glasallt Fawr,5219.16,09 May 2018
1437,Revenue,CAHD,Bed Purchasing - North,Permanent Nursing,Glebe House Nursing Home,3578.28,09 May 2018
1438,Revenue,CAHD,South Glos Users in South Glos Homes,Permanent Nursing,Glebe House Nursing Home,632.64,09 May 2018
1439,Revenue,CAHD,South Glos Users in South Glos Homes,Permanent Nursing,Glebe House Nursing Home,632.64,09 May 2018
1440,Revenue,CAHD,South Glos Users in South Glos Homes,Permanent Nursing,Glebe House Nursing Home,632.64,09 May 2018
1441,Revenue,CAHD,South Glos Users in South Glos Homes,Permanent Nursing,Glebe House Nursing Home,632.64,09 May 2018
1442,Revenue,CAHD,South Glos Users in South Glos Homes,Permanent Nursing,Glebe House Nursing Home,632.64,09 May 2018
1443,Revenue,CAHD,South Glos Users in South Glos Homes,Permanent Nursing,Glebe House Nursing Home,632.64,09 May 2018
1444,Revenue,CAHD,South Glos Users in South Glos Homes,Permanent Nursing,Glebe House Nursing Home,632.64,09 May 2018
1445,Revenue,CAHD,South Glos Users in South Glos Homes,Permanent Nursing,Glebe House Nursing Home,632.64,09 May 2018
1446,Revenue,CAHD,Bed Purchasing - North,Permanent Residential,Glebe House Nursing Home,3744.00,09 May 2018
1447,Revenue,CAHD,South Glos Users in South Glos Homes,Permanent Nursing,Glebe House Nursing Home,632.64,09 May 2018
1448,Revenue,CAHD,South Glos Users in South Glos Homes,Permanent Nursing,Glebe House Nursing Home,632.64,09 May 2018
1449,Revenue,CAHD,South Glos Users in South Glos Homes,Permanent Nursing,Glebe House Nursing Home,632.64,09 May 2018
1450,Revenue,CAHD,South Glos Users in South Glos Homes,Permanent Nursing,Glebe House Nursing Home,632.64,09 May 2018
1451,Revenue,CAHD,South Glos Users in South Glos Homes,Permanent Nursing,Glebe House Nursing Home,632.64,09 May 2018
1452,Revenue,CAHD,South Glos Users in South Glos Homes,Permanent Nursing,Glebe House Nursing Home,632.64,09 May 2018
1453,Revenue,CAHD,South Glos Users in South Glos Homes,Permanent Nursing,Glebe House Nursing Home,632.64,09 May 2018
1454,Revenue,CAHD,South Glos Users in South Glos Homes,Permanent Nursing,Glebe House Nursing Home,632.64,09 May 2018
1455,Revenue,CAHD,Bed Purchasing - Southmead Hospital,Permanent Nursing,Glebe House Nursing Home,3749.92,09 May 2018
1456,Revenue,CAHD,South Glos Users in South Glos Homes,Permanent Nursing,Glebe House Nursing Home,632.64,09 May 2018
1457,Revenue,CAHD,South Glos Users in South Glos Homes,Permanent Nursing,Glebe House Nursing Home,632.64,09 May 2018
1458,Revenue,CAHD,Bed Purchasing - South,Permanent Residential,Goldcare House,4625.52,09 May 2018
1459,Revenue,CAHD,Bed Purchasing - Southmead Hospital,Permanent Residential,Gordena Care Home,3925.68,09 May 2018
1460,Revenue,CAHD,Bed Purchasing - South,Permanent Residential,Gordena Care Home,2635.96,09 May 2018
1461,Revenue,CAHD,Bed Purchasing - South,Permanent Residential,Gordena Care Home,3752.80,09 May 2018
1462,Revenue,CAHD,Bed Purchasing - South,Permanent Residential,Gordena Care Home,3764.24,09 May 2018
1463,Revenue,CAHD,Bed Purchasing - South,Permanent Residential,Gordena Care Limited,4918.60,09 May 2018
1464,Revenue,CAHD,Bed purchasing - S28A Under 65 - South,Permanent Residential,Gordena Care Limited,4783.60,09 May 2018
1465,Revenue,CAHD,Bed Purchasing - North,Permanent Residential,Gordena Care Limited,4985.60,09 May 2018
1466,Revenue,CAHD,Bed Purchasing - South,Permanent Nursing,Gracefields Nursing Home,2533.76,09 May 2018
1467,Revenue,CAHD,South Glos Users in South Glos Homes,Permanent Nursing,Gracefields Nursing Home,632.64,09 May 2018
1468,Revenue,CAHD,South Glos Users in South Glos Homes,Permanent Nursing,Gracefields Nursing Home,632.64,09 May 2018
1469,Revenue,CAHD,South Glos Users in South Glos Homes,Permanent Nursing,Gracefields Nursing Home,632.64,09 May 2018
1470,Revenue,CAHD,South Glos Users in South Glos Homes,Permanent Nursing,Gracefields Nursing Home,632.64,09 May 2018
1471,Revenue,CAHD,Bed Purchasing - Southmead Hospital,Permanent Nursing,Gracefields Nursing Home,3566.52,09 May 2018
1472,Revenue,CAHD,South Glos Users in South Glos Homes,Permanent Nursing,Gracefields Nursing Home,632.64,09 May 2018
1473,Revenue,CAHD,South Glos Users in South Glos Homes,Permanent Nursing,Gracefields Nursing Home,632.64,09 May 2018
1474,Revenue,CAHD,South Glos Users in South Glos Homes,Permanent Nursing,Gracefields Nursing Home,632.64,09 May 2018
1475,Revenue,CAHD,Bed purchasing - Elderly S117 - South,Permanent Nursing,Gracefields Nursing Home,2492.16,09 May 2018
1476,Revenue,CAHD,South Glos Users in South Glos Homes,Permanent Nursing,Gracefields Nursing Home,632.64,09 May 2018
1477,Revenue,CAHD,Bed Purchasing - South,Permanent Nursing,Gracefields Nursing Home,3668.40,09 May 2018
1478,Revenue,CAHD,South Glos Users in South Glos Homes,Permanent Nursing,Gracefields Nursing Home,632.64,09 May 2018
1479,Revenue,CAHD,Bed Purchasing - South,Permanent Nursing,Gracefields Nursing Home,3153.52,09 May 2018
1480,Revenue,CAHD,South Glos Users in South Glos Homes,Permanent Nursing,Gracefields Nursing Home,632.64,09 May 2018
1481,Revenue,CAHD,South Glos Users in South Glos Homes,Permanent Nursing,Gracefields Nursing Home,632.64,09 May 2018
1482,Revenue,CAHD,South Glos Users in South Glos Homes,Permanent Nursing,Gracefields Nursing Home,632.64,09 May 2018
1483,Revenue,CAHD,Bed Purchasing - South,Permanent Nursing,Gracefields Nursing Home,3464.60,09 May 2018
1484,Revenue,CAHD,South Glos Users in South Glos Homes,Permanent Nursing,Gracefields Nursing Home,632.64,09 May 2018
1485,Revenue,CAHD,South Glos Users in South Glos Homes,Permanent Nursing,Gracefields Nursing Home,632.64,09 May 2018
1486,Revenue,CAHD,Bed Purchasing - Southmead Hospital,Permanent Nursing,Gracefields Nursing Home,9835.71,09 May 2018
1487,Revenue,CAHD,Bed Purchasing - Southmead Hospital,Permanent Nursing,Gracefields Nursing Home,3464.60,09 May 2018
1488,Revenue,CAHD,Bed Purchasing - Southmead Hospital,Permanent Nursing,Gracefields Nursing Home,1732.30,09 May 2018
1489,Revenue,CAHD,Bed Purchasing - Southmead Hospital,Fees & Charges Income - General,Gracefields Nursing Home,1536.57,09 May 2018
1490,Revenue,CAHD,South Glos Users in South Glos Homes,Permanent Nursing,Gracefields Nursing Home,632.64,09 May 2018
1491,Revenue,CAHD,South Glos Users in South Glos Homes,Permanent Nursing,Gracefields Nursing Home,632.64,09 May 2018
1492,Revenue,CAHD,Bed Purchasing - Southmead Hospital,Permanent Nursing,Gracefields Nursing Home,891.63,09 May 2018
1493,Revenue,CAHD,South Glos Users in South Glos Homes,Permanent Nursing,Gracefields Nursing Home,632.64,09 May 2018
1494,Revenue,CAHD,South Glos Users in South Glos Homes,Permanent Nursing,Gracefields Nursing Home,632.64,09 May 2018
1495,Revenue,CAHD,South Glos Users in South Glos Homes,Permanent Nursing,Gracefields Nursing Home,632.64,09 May 2018
1496,Revenue,CAHD,South Glos Users in South Glos Homes,Permanent Nursing,Gracefields Nursing Home,632.64,09 May 2018
1497,Revenue,CAHD,South Glos Users in South Glos Homes,Permanent Nursing,Gracefields Nursing Home,632.64,09 May 2018
1498,Revenue,CAHD,Bed Purchasing - Southmead Hospital,Permanent Nursing,Gracefields Nursing Home,3566.52,09 May 2018
1499,Revenue,CAHD,South Glos Users in South Glos Homes,Permanent Nursing,Gracefields Nursing Home,632.64,09 May 2018
1500,Revenue,CAHD,South Glos Users in South Glos Homes,Permanent Nursing,Gracefields Nursing Home,632.64,09 May 2018
1501,Revenue,CAHD,Bed Purchasing - South,Permanent Nursing,Gracefields Nursing Home,3129.76,09 May 2018
1502,Revenue,CAHD,South Glos Users in South Glos Homes,Permanent Nursing,Gracefields Nursing Home,632.64,09 May 2018
1503,Revenue,CAHD,Bed Purchasing - South,Permanent Nursing,Gracefields Nursing Home,6057.81,09 May 2018
1504,Revenue,CAHD,Bed Purchasing - South,Permanent Nursing,Gracefields Nursing Home,3757.36,09 May 2018
1505,Revenue,CAHD,Bed Purchasing - South,Permanent Nursing,Gracefields Nursing Home,1878.68,09 May 2018
1506,Revenue,CAHD,South Glos Users in South Glos Homes,Permanent Nursing,Gracefields Nursing Home,632.64,09 May 2018
1507,Revenue,CAHD,South Glos Users in South Glos Homes,Permanent Nursing,Gracefields Nursing Home,632.64,09 May 2018
1508,Revenue,CAHD,Bed Purchasing - Southmead Hospital,Permanent Nursing,Gracefields Nursing Home,3464.60,09 May 2018
1509,Revenue,CAHD,South Glos Users in South Glos Homes,Permanent Nursing,Gracefields Nursing Home,632.64,09 May 2018
1510,Revenue,CAHD,South Glos Users in South Glos Homes,Permanent Nursing,Gracefields Nursing Home,642.35,09 May 2018
1511,Revenue,CAHD,South Glos Users in South Glos Homes,Permanent Nursing,Gracefields Nursing Home,632.64,09 May 2018
1512,Revenue,CAHD,Bed Purchasing - Southmead Hospital,Permanent Nursing,Gracefields Nursing Home,3153.52,09 May 2018
1513,Revenue,CAHD,South Glos Users in South Glos Homes,Permanent Nursing,Gracefields Nursing Home,632.64,09 May 2018
1514,Revenue,CAHD,South Glos Users in South Glos Homes,Permanent Nursing,Gracefields Nursing Home,632.64,09 May 2018
1515,Revenue,CAHD,Bed Purchasing - South,Permanent Nursing,Gracefields Nursing Home,3026.56,09 May 2018
1516,Revenue,CAHD,South Glos Users in South Glos Homes,Permanent Nursing,Gracefields Nursing Home,632.64,09 May 2018
1517,Revenue,CAHD,South Glos Users in South Glos Homes,Permanent Nursing,Gracefields Nursing Home,632.64,09 May 2018
1518,Revenue,CAHD,South Glos Users in South Glos Homes,Permanent Nursing,Gracefields Nursing Home,632.64,09 May 2018
1519,Revenue,CAHD,South Glos Users in South Glos Homes,Permanent Nursing,Gracefields Nursing Home,632.64,09 May 2018
1520,Revenue,CAHD,South Glos Users in South Glos Homes,Permanent Nursing,Gracefields Nursing Home,632.64,09 May 2018
1521,Revenue,CAHD,South Glos Users in South Glos Homes,Permanent Nursing,Gracefields Nursing Home,632.64,09 May 2018
1522,Revenue,CAHD,South Glos Users in South Glos Homes,Permanent Nursing,Gracefields Nursing Home,632.64,09 May 2018
1523,Revenue,CAHD,South Glos Users in South Glos Homes,Permanent Nursing,Gracefields Nursing Home,632.64,09 May 2018
1524,Revenue,CAHD,Bed Purchasing - South,Permanent Nursing,Gracefields Nursing Home,2492.16,09 May 2018
1525,Revenue,CAHD,South Glos Users in South Glos Homes,Permanent Nursing,Gracefields Nursing Home,632.64,09 May 2018
1526,Revenue,CAHD,Bed Purchasing - South,Permanent Nursing,Gracefields Nursing Home,3464.60,09 May 2018
1527,Revenue,CAHD,South Glos Users in South Glos Homes,Permanent Nursing,Gracefields Nursing Home,632.64,09 May 2018
1528,Revenue,CAHD,Bed Purchasing - South,Permanent Nursing,Gracefields Nursing Home,3668.40,09 May 2018
1529,Revenue,CAHD,South Glos Users in South Glos Homes,Permanent Nursing,Gracefields Nursing Home,632.64,09 May 2018
1530,Revenue,CAHD,South Glos Users in South Glos Homes,Permanent Nursing,Gracefields Nursing Home,632.64,09 May 2018
1531,Revenue,CAHD,South Glos Users in South Glos Homes,Permanent Nursing,Gracefields Nursing Home,632.64,09 May 2018
1532,Revenue,CAHD,South Glos Users in South Glos Homes,Permanent Nursing,Gracefields Nursing Home,4665.18,09 May 2018
1533,Revenue,CAHD,South Glos Users in South Glos Homes,Permanent Nursing,Gracefields Nursing Home,632.64,09 May 2018
1534,Revenue,CAHD,Bed Purchasing - Southmead Hospital,Permanent Nursing,Gracefields Nursing Home,3336.20,09 May 2018
1535,Revenue,CAHD,South Glos Users in South Glos Homes,Permanent Nursing,Gracefields Nursing Home,632.64,09 May 2018
1536,Revenue,CAHD,Tenancy Start Up Scheme,Other Supplies & Services,Individual,1500.00,16 May 2018
1537,Revenue,CAHD,Academy Resource Base Funding,Other Public Bodies,Greenshaw Learning Trust T/A Yate Academy,1013.74,22 May 2018
1538,Revenue,CAHD,Academy Resource Base Funding,Other Public Bodies,Greenshaw Learning Trust T/A Yate Academy,1702.96,22 May 2018
1539,Revenue,CAHD,Academy Resource Base Funding,Other Public Bodies,Greenshaw Learning Trust T/A Yate Academy,1540.83,22 May 2018
1540,Revenue,CAHD,Academy Resource Base Funding,Other Public Bodies,Greenshaw Learning Trust T/A Yate Academy,1175.88,22 May 2018
1541,Revenue,CAHD,Academy Resource Base Funding,Other Public Bodies,Greenshaw Learning Trust T/A Yate Academy,1175.88,22 May 2018
1542,Revenue,CAHD,Academy Resource Base Funding,Other Public Bodies,Greenshaw Learning Trust T/A Yate Academy,648.71,22 May 2018
1543,Revenue,CAHD,Academy Resource Base Funding,Other Public Bodies,Greenshaw Learning Trust T/A Yate Academy,1702.96,22 May 2018
1544,Revenue,CAHD,Academy Resource Base Funding,Other Public Bodies,Greenshaw Learning Trust T/A Yate Academy,1540.83,22 May 2018
1545,Revenue,CAHD,Statemented Support Academies,Schools Funding,Greenshaw Learning Trust T/A Yate Academy,694.91,24 May 2018
1546,Revenue,CAHD,Statemented Support Academies,Schools Funding,Greenshaw Learning Trust T/A Yate Academy,1685.41,24 May 2018
1547,Revenue,CAHD,Statemented Support Academies,Schools Funding,Greenshaw Learning Trust T/A Yate Academy,1213.74,24 May 2018
1548,Revenue,CAHD,Statemented Support Academies,Schools Funding,Greenshaw Learning Trust T/A Yate Academy,848.20,24 May 2018
1549,Revenue,CAHD,Statemented Support Academies,Schools Funding,Greenshaw Learning Trust T/A Yate Academy,1461.37,24 May 2018
1550,Revenue,CAHD,Statemented Support Academies,Schools Funding,Greenshaw Learning Trust T/A Yate Academy,1213.74,24 May 2018
1551,Revenue,CAHD,Statemented Support Academies,Schools Funding,Greenshaw Learning Trust T/A Yate Academy,1213.74,24 May 2018
1552,Revenue,CAHD,Statemented Support Academies,Schools Funding,Greenshaw Learning Trust T/A Yate Academy,977.91,24 May 2018
1553,Revenue,CAHD,Statemented Support Academies,Schools Funding,Greenshaw Learning Trust T/A Yate Academy,942.53,24 May 2018
1554,Revenue,CAHD,Statemented Support Academies,Schools Funding,Greenshaw Learning Trust T/A Yate Academy,883.58,24 May 2018
1555,Revenue,CAHD,Statemented Support Academies,Schools Funding,Greenshaw Learning Trust T/A Yate Academy,730.28,24 May 2018
1556,Revenue,CAHD,Statemented Support Academies,Schools Funding,Greenshaw Learning Trust T/A Yate Academy,765.66,24 May 2018
1557,Revenue,CAHD,Statemented Support Academies,Schools Funding,Greenshaw Learning Trust T/A Yate Academy,694.91,24 May 2018
1558,Revenue,CAHD,Bed Purchasing - North,Permanent Residential,Greensleeves,2075.40,09 May 2018
1559,Revenue,CAHD,Bed Purchasing - South,Permanent Residential,Gwendoline House,2613.96,09 May 2018
1560,Revenue,CAHD,Bed Purchasing - South,Permanent Residential,Gwendoline House,2425.24,09 May 2018
1561,Revenue,CAHD,Bed Purchasing - South,Permanent Residential,Gwendoline House,2415.44,09 May 2018
1562,Revenue,CAHD,Bed Purchasing - Southmead Hospital,Permanent Residential,Gwendoline House,2144.76,09 May 2018
1563,Revenue,CAHD,Home Care - Elderly - North,Other Small Contracts,H F T,728.50,09 May 2018
1564,Revenue,CAHD,Home Care - Elderly - South,Other Small Contracts,H F T,892.64,23 May 2018
1565,Revenue,CAHD,Supporting People Programme,Grants to Voluntary Bodies,Habinteg Housing Association,678.00,01 May 2018
1566,Revenue,CAHD,CSC - Vinney Green Secure Unit,Premises Maintenance by Contractor,HAG Shutters & Grilles Limited,4220.92,18 May 2018
1567,Revenue,CAHD,Social Lettings Agency,Fees - General,Individual,13.13,29 May 2018
1568,Revenue,CAHD,Social Lettings Agency,Other Supplies & Services,Individual,577.72,29 May 2018
1569,Revenue,CAHD,Tobacco Control,Other Small Contracts,Hanham Health,2346.00,14 May 2018
1570,Revenue,CAHD,Sexual Health,Other Small Contracts,Hanham Health,2173.50,18 May 2018
1571,Revenue,CAHD,Sexual Health,Other Small Contracts,Hanham Health,1693.10,18 May 2018
1572,Revenue,CAHD,Supporting People Programme,Grants to Voluntary Bodies,Hanover Housing Association,1015.00,01 May 2018
1573,Revenue,CAHD,Home Care - Elderly - North,Other Supplies & Services,HAS Technology Limited T/A CM2000,2616.00,01 May 2018
1574,Revenue,CAHD,Home Care Monitoring (CM2000),Other Supplies & Services,HAS Technology Limited T/A CM2000,10753.16,17 May 2018
1575,Revenue,CAHD,Bed Purchasing - Southmead Hospital,Permanent Nursing,Hazelwood Gardens Nursing Home,2853.20,09 May 2018
1576,Revenue,CAHD,Bed Purchasing - Southmead Hospital,Permanent Nursing,Hazelwood Gardens Nursing Home,2658.04,09 May 2018
1577,Revenue,CAHD,Bed Purchasing - Southmead Hospital,Permanent Nursing,Hazelwood Gardens Nursing Home,2288.56,09 May 2018
1578,Revenue,CAHD,Bed Purchasing - Southmead Hospital,Permanent Residential,Hc-One Ltd,2181.00,09 May 2018
1579,Revenue,CAHD,Bed Purchasing - Southmead Hospital,Permanent Nursing,Hc-One Ltd,2816.28,09 May 2018
1580,Revenue,CAHD,Bed Purchasing - North,Permanent Nursing,Hc-One Ltd,2171.12,09 May 2018
1581,Revenue,CAHD,Bed Purchasing - North,Permanent Nursing,Hc-One Ltd,2156.56,09 May 2018
1582,Revenue,CAHD,South Glos Users in South Glos Homes,Permanent Nursing,Hc-One Ltd,632.64,09 May 2018
1583,Revenue,CAHD,Bed Purchasing - North,Permanent Nursing,Hc-One Ltd,2171.08,09 May 2018
1584,Revenue,CAHD,Bed Purchasing - Southmead Hospital,Permanent Nursing,Hc-One Ltd,2857.76,09 May 2018
1585,Revenue,CAHD,Bed Purchasing - Southmead Hospital,Permanent Nursing,Hc-One Ltd,2609.44,09 May 2018
1586,Revenue,CAHD,Bed Purchasing - Southmead Hospital,Permanent Nursing,Head Office,2412.88,09 May 2018
1587,Revenue,CAHD,Home Care - Elderly - North,Day Care / Social Activities,Head Office,845.28,09 May 2018
1588,Revenue,CAHD,CSC - Residential Placements,Permanent Residential,Headway Adolescent Resources Limited,3886.00,01 May 2018
1589,Revenue,CAHD,CSC - Residential Placements,Permanent Residential,Headway Adolescent Resources Limited,13600.00,30 May 2018
1590,Revenue,CAHD,Home Care - Elderly - South,Day Care / Social Activities,Headway Bristol,399.60,07 May 2018
1591,Revenue,CAHD,Home Care - Elderly - North,Day Care / Social Activities,Headway Bristol,734.40,07 May 2018
1592,Revenue,CAHD,Home Care - Elderly - North,Other Small Contracts,Headway Bristol,324.00,07 May 2018
1593,Revenue,CAHD,Younger MH non-res purchasing,Day Care / Social Activities,Headway Bristol,43.20,07 May 2018
1594,Revenue,CAHD,Home Care - Elderly - South,Day Care / Social Activities,Headway Bristol,330.60,11 May 2018
1595,Revenue,CAHD,Home Care - Elderly - South,Other Small Contracts,Headway Bristol,264.48,11 May 2018
1596,Revenue,CAHD,Home Care - Elderly - North,Day Care / Social Activities,Headway Bristol,991.80,11 May 2018
1597,Revenue,CAHD,Home Care - Elderly - North,Other Small Contracts,Headway Bristol,595.08,11 May 2018
1598,Revenue,CAHD,Younger MH non-res purchasing,Day Care / Social Activities,Headway Bristol,44.08,11 May 2018
1599,Revenue,CAHD,Home Care - Elderly - South,Day Care / Social Activities,Headway Bristol,402.23,21 May 2018
1600,Revenue,CAHD,Home Care - Elderly - South,Other Small Contracts,Headway Bristol,66.12,21 May 2018
1601,Revenue,CAHD,Home Care - Elderly - North,Day Care / Social Activities,Headway Bristol,881.60,21 May 2018
1602,Revenue,CAHD,Home Care - Elderly - North,Other Small Contracts,Headway Bristol,462.84,21 May 2018
1603,Revenue,CAHD,Younger MH non-res purchasing,Day Care / Social Activities,Headway Bristol,88.16,21 May 2018
1604,Revenue,CAHD,Home Care - Elderly - South,Day Care / Social Activities,Headway Bristol,132.24,29 May 2018
1605,Revenue,CAHD,Home Care - Elderly - South,Other Small Contracts,Headway Bristol,264.48,29 May 2018
1606,Revenue,CAHD,Home Care - Elderly - North,Day Care / Social Activities,Headway Bristol,1030.37,29 May 2018
1607,Revenue,CAHD,Home Care - Elderly - North,Other Small Contracts,Headway Bristol,528.96,29 May 2018
1608,Revenue,CAHD,Younger MH non-res purchasing,Day Care / Social Activities,Headway Bristol,88.16,29 May 2018
1609,Revenue,CAHD,CSC - Fostering Carer Support,Care Mgt/Asesmnt Staff Pay,Hector Independent Assessments Ltd,2290.15,30 May 2018
1610,Revenue,CAHD,Home Care - Elderly - South,Other Small Contracts,Helping Hands Homecare,515.20,11 May 2018
1611,Revenue,CAHD,Home Care - Elderly - North,Day Care / Social Activities,Helping Hands Homecare,237.44,11 May 2018
1612,Revenue,CAHD,Home Care - Elderly - North,Other Small Contracts,Helping Hands Homecare,4357.70,11 May 2018
1613,Revenue,CAHD,Younger MH non-res purchasing,Other Small Contracts,Helping Hands Homecare,53.76,11 May 2018
1614,Revenue,CAHD,Home Care - Elderly - South,Other Small Contracts,Helping Hands Homecare,654.08,11 May 2018
1615,Revenue,CAHD,Home Care - Elderly - North,Day Care / Social Activities,Helping Hands Homecare,215.04,11 May 2018
1616,Revenue,CAHD,Home Care - Elderly - North,Other Small Contracts,Helping Hands Homecare,4222.63,11 May 2018
1617,Revenue,CAHD,Home Care - Elderly - South,Other Small Contracts,Helping Hands Homecare,528.64,11 May 2018
1618,Revenue,CAHD,Home Care - Elderly - North,Day Care / Social Activities,Helping Hands Homecare,89.60,11 May 2018
1619,Revenue,CAHD,Home Care - Elderly - North,Other Small Contracts,Helping Hands Homecare,3457.64,11 May 2018
1620,Revenue,CAHD,Home Care - Elderly - South,Other Small Contracts,Helping Hands Homecare,815.36,11 May 2018
1621,Revenue,CAHD,Home Care - Elderly - North,Day Care / Social Activities,Helping Hands Homecare,228.48,11 May 2018
1622,Revenue,CAHD,Home Care - Elderly - North,Other Small Contracts,Helping Hands Homecare,4007.03,11 May 2018
1623,Revenue,CAHD,Younger MH non-res purchasing,Other Small Contracts,Helping Hands Homecare,66.84,11 May 2018
1624,Revenue,CAHD,Home Care - Elderly - South,Other Small Contracts,Helping Hands Homecare,725.76,11 May 2018
1625,Revenue,CAHD,Home Care - Elderly - North,Day Care / Social Activities,Helping Hands Homecare,232.96,11 May 2018
1626,Revenue,CAHD,Home Care - Elderly - North,Other Small Contracts,Helping Hands Homecare,4191.21,11 May 2018
1627,Revenue,CAHD,Younger MH non-res purchasing,Other Small Contracts,Helping Hands Homecare,66.84,11 May 2018
1628,Revenue,CAHD,Home Care - Elderly - South,Other Small Contracts,Helping Hands Homecare,582.40,11 May 2018
1629,Revenue,CAHD,Home Care - Elderly - North,Day Care / Social Activities,Helping Hands Homecare,215.04,11 May 2018
1630,Revenue,CAHD,Home Care - Elderly - North,Other Small Contracts,Helping Hands Homecare,4189.42,11 May 2018
1631,Revenue,CAHD,Home Care - Elderly - South,Other Small Contracts,Helping Hands Homecare,716.80,11 May 2018
1632,Revenue,CAHD,Home Care - Elderly - North,Day Care / Social Activities,Helping Hands Homecare,224.00,11 May 2018
1633,Revenue,CAHD,Home Care - Elderly - North,Other Small Contracts,Helping Hands Homecare,4179.06,11 May 2018
1634,Revenue,CAHD,Placements OLA Special Schools and RB,Other L.A.'s - General,Henbury Court Primary Academy,819.17,24 May 2018
1635,Revenue,CAHD,S117 Placements PCT,Permanent Residential,Hesley Hall,19258.12,09 May 2018
1636,Revenue,CAHD,Bed Purchasing - North,Permanent Residential,High Border Lodge,1876.77,09 May 2018
1637,Revenue,CAHD,Bed Purchasing - North,Permanent Residential,High Border Lodge,2039.72,09 May 2018
1638,Revenue,CAHD,Bed Purchasing - Southmead Hospital,Permanent Residential,Highgate Studios,2423.88,09 May 2018
1639,Revenue,CAHD,Home Care - Elderly - North,Supported Living,Hillcairnie House,4857.56,09 May 2018
1640,Revenue,CAHD,Home Care - Elderly - South,Supported Living,Hillcairnie House,2515.04,09 May 2018
1641,Revenue,CAHD,Home Care - Elderly - South,Supported Living,Hillcairnie House,2515.00,09 May 2018
1642,Revenue,CAHD,CSC - Residential Placements,Permanent Residential,Hillcrest Children`s Services Ltd,23289.86,02 May 2018
1643,Revenue,CAHD,CSC - Residential Placements,Permanent Residential,Hillcrest Children`s Services Ltd,18600.00,21 May 2018
1644,Revenue,CAHD,Bed Purchasing - Southmead Hospital,Permanent Nursing,Holly Villa,2102.68,09 May 2018
1645,Revenue,CAHD,Bed Purchasing - North,Permanent Residential,Holmleigh Care Homes Ltd,4666.12,09 May 2018
1646,Revenue,CAHD,Bed Purchasing - South,Permanent Residential,Holmleigh Care Homes Ltd,4457.24,09 May 2018
1647,Revenue,CAHD,Jointly Funded H&SC Packages,Permanent Residential,Holmleigh Care Homes Ltd,1276.96,09 May 2018
1648,Revenue,CAHD,Home Care - Elderly - North,Supported Living,Home Farm Trust Ltd  5-6 Brook Office Pa,2111.48,09 May 2018
1649,Revenue,CAHD,Home Care - Elderly - South,Supported Living,Home Farm Trust Ltd  5-6 Brook Office Pa,4151.60,09 May 2018
1650,Revenue,CAHD,18-25 Year Olds,Permanent Residential,Home From Home Care Ltd,9925.84,09 May 2018
1651,Revenue,CAHD,Bed Purchasing - North,Permanent Residential,Homes Caring For Autism Ltd  Churchill H,8331.28,09 May 2018
1652,Revenue,CAHD,Jointly Funded H&SC Packages,Permanent Residential,Homes Caring For Autism Ltd  Churchill H,2517.28,09 May 2018
1653,Revenue,CAHD,18-25 Year Olds,Permanent Residential,Homes Caring For Autism Ltd  Churchill H,8191.96,09 May 2018
1654,Revenue,CAHD,Jointly Funded H&SC Packages,Permanent Residential,Homes Caring For Autism Ltd  Churchill H,5874.88,09 May 2018
1655,Revenue,CAHD,Training Budget - Children`s Social Serv,Training Expenses,Homes England,531.72,24 May 2018
1656,Revenue,CAHD,Younger MH non-res purchasing,Supported Living,Horizon,4436.34,09 May 2018
1657,Revenue,CAHD,Home Care - Elderly - South,Other Supplies & Services,Housing & Care 21,661.45,23 May 2018
1658,Revenue,CAHD,Supporting People Programme,Grants to Voluntary Bodies,Housing 21,975.00,01 May 2018
1659,Revenue,CAHD,Supporting People Programme,Grants to Voluntary Bodies,Housing 21,643.00,01 May 2018
1660,Revenue,CAHD,Extra Care Housing,Private & Voluntary Home Care,Housing 21,37678.33,15 May 2018
1661,Revenue,CAHD,Extra Care Housing,Private & Voluntary Home Care,Housing 21,34872.50,04 May 2018
1662,Revenue,CAHD,CSC - Corporate Parenting,Computer Services,IAP UK Limited,3936.00,01 May 2018
1663,Revenue,CAHD,SEN High Needs - Not at School Base,Other Private Contractors,Impact Mentoring,1935.00,18 May 2018
1664,Revenue,CAHD,SEN High Needs - Not at School Base,Other Private Contractors,Impact Mentoring,1725.00,15 May 2018
1665,Revenue,CAHD,SEN High Needs - Not at School Base,Other Private Contractors,Impact Mentoring,1305.00,18 May 2018
1666,Revenue,CAHD,CSC - Section 17 0-25,Preventative Assistance,Impact Mentoring,725.00,10 May 2018
1667,Revenue,CAHD,18-25 Year Olds,Day Care / Social Activities,Impact Mentoring,1250.00,10 May 2018
1668,Revenue,CAHD,Social Lettings Agency,Fees - General,Individual,12.22,11 May 2018
1669,Revenue,CAHD,Social Lettings Agency,Other Supplies & Services,Individual,690.32,11 May 2018
1670,Revenue,CAHD,Social Lettings Agency,Fees - General,Individual,7.90,01 May 2018
1671,Revenue,CAHD,Social Lettings Agency,Other Supplies & Services,Individual,610.90,01 May 2018
1672,Revenue,CAHD,ASSIST - Health Promotion in Schools,Other Supplies & Services,Jigsaw PSHE Ltd,2890.00,17 May 2018
1673,Revenue,CAHD,CSC - Legal Fees,Legal Fees,Joanna Lucas,800.00,21 May 2018
1674,Revenue,CAHD,Bed Purchasing - South,Permanent Residential,Jonen House,4226.52,09 May 2018
1675,Revenue,CAHD,DAT Treatment,Other Small Contracts,JRW Billing,1575.00,15 May 2018
1676,Revenue,CAHD,Virtual School for Looked After Children,Consultants Fees,Judith Mee Education,1800.00,17 May 2018
1677,Revenue,CAHD,Post 16 High Needs Placements,Other Private Contractors,Julian & Shani Payne T/A Peopleton Brook Farm,1968.00,07 May 2018
1678,Revenue,CAHD,CSC - Management & Support,Complaints External Expenses,K J Harwood Limited,4797.90,18 May 2018
1679,Revenue,CAHD,Bed Purchasing - Elderly S117- North,Permanent Residential,Kahala Court,2853.20,09 May 2018
1680,Revenue,CAHD,Service,Service,Individual,577.50,04 May 2018
1681,Revenue,CAHD,Service,Service,Individual,1487.00,04 May 2018
1682,Revenue,CAHD,Statemented Support Payments to OLAs,Other L.A.'s - General,Katharine Lady Berkeley School,553.41,24 May 2018
1683,Revenue,CAHD,Statemented Support Payments to OLAs,Other L.A.'s - General,Katharine Lady Berkeley School,624.16,24 May 2018
1684,Revenue,CAHD,Statemented Support Payments to OLAs,Other L.A.'s - General,Katharine Lady Berkeley School,612.37,24 May 2018
1685,Revenue,CAHD,Tobacco Control,Other Small Contracts,Kennedy Way Surgery,920.00,14 May 2018
1686,Revenue,CAHD,Sexual Health,Other Small Contracts,Kennedy Way Surgery,805.00,18 May 2018
1687,Revenue,CAHD,Sexual Health,Other Small Contracts,Kennedy Way Surgery,1011.72,18 May 2018
1688,Revenue,CAHD,Home Care - Elderly - South,Other Small Contracts,Kensington Community Care,1294.72,16 May 2018
1689,Revenue,CAHD,Home Care - Elderly - North,Other Small Contracts,Kensington Community Care,3458.56,16 May 2018
1690,Revenue,CAHD,Home Care - Elderly - South,Other Small Contracts,Kensington Community Care,1532.16,16 May 2018
1691,Revenue,CAHD,Home Care - Elderly - North,Other Small Contracts,Kensington Community Care,2965.76,16 May 2018
1692,Revenue,CAHD,Home Care - Elderly - South,Other Small Contracts,Kensington Community Care,1695.47,18 May 2018
1693,Revenue,CAHD,Home Care - Elderly - North,Other Small Contracts,Kensington Community Care,2911.09,18 May 2018
1694,Revenue,CAHD,Home Care - Elderly - South,Other Small Contracts,Kensington Community Care,1636.06,18 May 2018
1695,Revenue,CAHD,Home Care - Elderly - North,Other Small Contracts,Kensington Community Care,2755.71,18 May 2018
1696,Revenue,CAHD,Home Care - Elderly - South,Other Small Contracts,Kensington Community Care,1448.69,16 May 2018
1697,Revenue,CAHD,Home Care - Elderly - North,Other Small Contracts,Kensington Community Care,2586.62,16 May 2018
1698,Revenue,CAHD,Bed Purchasing - South,Permanent Residential,Kenver House Residential Home,2853.20,09 May 2018
1699,Revenue,CAHD,Bed Purchasing - Southmead Hospital,Permanent Residential,Kenver House Residential Home,2291.68,09 May 2018
1700,Revenue,CAHD,Bed Purchasing - South,Permanent Residential,Kenver House Residential Home,2294.84,09 May 2018
1701,Revenue,CAHD,Bed Purchasing - South,Permanent Residential,Kenver House Residential Home,2509.88,09 May 2018
1702,Revenue,CAHD,Bed purchasing - Elderly S117 - South,Permanent Residential,Kenver House Residential Home,2509.88,09 May 2018
1703,Revenue,CAHD,Bed Purchasing - South,Permanent Residential,Kenver House Residential Home,2663.20,09 May 2018
1704,Revenue,CAHD,Bed Purchasing - South,Permanent Residential,Kenver House Residential Home,2509.88,09 May 2018
1705,Revenue,CAHD,Bed Purchasing - North,Permanent Residential,Kenver House Residential Home,2934.72,09 May 2018
1706,Revenue,CAHD,Bed Purchasing - South,Permanent Residential,Kenver House Residential Home,2509.88,09 May 2018
1707,Revenue,CAHD,Bed Purchasing - Southmead Hospital,Permanent Residential,Kenver House Residential Home,2629.04,09 May 2018
1708,Revenue,CAHD,Bed Purchasing - Southmead Hospital,Permanent Residential,Kenver House Residential Home,2853.20,09 May 2018
1709,Revenue,CAHD,Bed Purchasing - Southmead Hospital,Permanent Residential,Kenver House Residential Home,2629.04,09 May 2018
1710,Revenue,CAHD,Bed Purchasing - South,Permanent Residential,Kenver House Residential Home,2291.68,09 May 2018
1711,Revenue,CAHD,Service,Service,Individual,880.00,14 May 2018
1712,Revenue,CAHD,Tenancy Start Up Scheme,Other Supplies & Services,Key Property Associates,650.00,02 May 2018
1713,Revenue,CAHD,CSC - Care Leavers Independent Living,Adults - Family Support,Key2 Futures Limited,2967.01,09 May 2018
1714,Revenue,CAHD,CSC - Care Leavers Independent Living,Adults - Family Support,Key2 Futures Limited,2679.88,17 May 2018
1715,Revenue,CAHD,CSC - Care Leavers Independent Living,Adults - Family Support,Key2 Futures Limited,2679.88,09 May 2018
1716,Revenue,CAHD,CSC - Care Leavers Independent Living,Adults - Family Support,Key2 Futures Limited,2679.88,17 May 2018
1717,Revenue,CAHD,CSC - Care Leavers Independent Living,Adults - Family Support,Key2 Futures Limited,2967.01,17 May 2018
1718,Revenue,CAHD,CSC - Care Leavers Independent Living,Adults - Family Support,Key2 Futures Limited,2967.01,29 May 2018
1719,Revenue,CAHD,CSC - Care Leavers Independent Living,Adults - Family Support,Key2 Futures Limited,2967.01,22 May 2018
1720,Revenue,CAHD,Bed Purchasing - Southmead Hospital,Fees & Charges Income - General,Keyers Bridge House,519.21,09 May 2018
1721,Revenue,CAHD,Bed Purchasing - Southmead Hospital,Fees & Charges Income - General,Keyers Bridge House,624.60,09 May 2018
1722,Revenue,CAHD,Bed Purchasing - North,Respite Planned - Nursing,Keyers Bridge House,8685.14,09 May 2018
1723,Revenue,CAHD,Bed Purchasing - North,Permanent Nursing,Keyers Bridge House,8685.14,09 May 2018
1724,Revenue,CAHD,Bed Purchasing - North,Fees & Charges Income - General,Keyers Bridge House,2495.94,09 May 2018
1725,Revenue,CAHD,Supporting People Programme,Grants to Voluntary Bodies,Keyring Living Support Networks,3045.00,01 May 2018
1726,Revenue,CAHD,CSC - Kids Contract,Grants to Voluntary Bodies,Kids,45187.50,01 May 2018
1727,Revenue,CAHD,CSC - Short Breaks,Grants to Voluntary Bodies,Kids,1388.00,01 May 2018
1728,Revenue,CAHD,Bed Purchasing - North,Permanent Residential,Kilkhampton Lodge,18064.36,09 May 2018
1729,Revenue,CAHD,CSC - OT Equipment - Children,Daily Living Equipment,Kinderkey Healthcare Limited,4855.00,29 May 2018
1730,Revenue,CAHD,Bed Purchasing - South,Permanent Nursing,Kingfisher Lodge Care Centre,4666.80,09 May 2018
1731,Revenue,CAHD,Tobacco Control,Other Small Contracts,Kingswood Health Centre,1886.00,14 May 2018
1732,Revenue,CAHD,Sexual Health,Other Small Contracts,Kingswood Health Centre,2477.68,18 May 2018
1733,Revenue,CAHD,Supporting People Programme,Grants to Voluntary Bodies,Kingswood Young Homeless Project,9869.00,01 May 2018
1734,Revenue,CAHD,CSC - LAC Housing Support Grants,Grants to Voluntary Bodies,Kingswood Young Homeless Project,9746.00,01 May 2018
1735,Revenue,CAHD,Service,Service,Individual,1120.00,21 May 2018
1736,Revenue,CAHD,Bed Purchasing - North,Permanent Residential,Kisimul Group,12469.00,09 May 2018
1737,Revenue,CAHD,Bed and Breakfast,Bed & Breakfast,Knightstone Housing Association Limited,1432.06,17 May 2018
1738,Revenue,CAHD,Placements OLA Special Schools and RB,Other L.A.'s - General,Knowle DGE,2053.42,24 May 2018
1739,Revenue,CAHD,Placements OLA Special Schools and RB,Other L.A.'s - General,Knowle DGE,1353.42,24 May 2018
1740,Revenue,CAHD,Placements OLA Special Schools and RB,Other L.A.'s - General,Knowle DGE,886.75,24 May 2018
1741,Revenue,CAHD,Placements OLA Special Schools and RB,Other L.A.'s - General,Knowle DGE,886.75,24 May 2018
1742,Revenue,CAHD,Placements OLA Special Schools and RB,Other L.A.'s - General,Knowle DGE,2616.84,24 May 2018
1743,Revenue,CAHD,Placements OLA Special Schools and RB,Other L.A.'s - General,Knowle DGE,2053.42,24 May 2018
1744,Revenue,CAHD,Placements OLA Special Schools and RB,Other L.A.'s - General,Knowle DGE,886.75,24 May 2018
1745,Revenue,CAHD,Home Care - Elderly - North,Other Small Contracts,KPW Newkey Ltd,726.56,21 May 2018
1746,Revenue,CAHD,Home Care - Elderly - North,Other Small Contracts,KPW Newkey Ltd,908.20,29 May 2018
1747,Revenue,CAHD,Home Care - Elderly - South,Other Small Contracts,Kumari Care Limited,726.11,14 May 2018
1748,Revenue,CAHD,Home Care - Elderly - North,Other Small Contracts,Kumari Care Limited,1022.15,14 May 2018
1749,Revenue,CAHD,Home Care - Elderly - South,Other Small Contracts,Kumari Care Limited,671.99,29 May 2018
1750,Revenue,CAHD,Home Care - Elderly - North,Other Small Contracts,Kumari Care Limited,1022.15,29 May 2018
1751,Revenue,CAHD,Home Care - Elderly - South,Other Small Contracts,Kumari Care Limited,464.53,29 May 2018
1752,Revenue,CAHD,Home Care - Elderly - North,Other Small Contracts,Kumari Care Limited,1022.15,29 May 2018
1753,Revenue,CAHD,Home Care - Elderly - North,Other Small Contracts,L D Awareness,678.00,18 May 2018
1754,Revenue,CAHD,Home Care - Elderly - North,Other Small Contracts,L D Awareness,1232.48,18 May 2018
1755,Revenue,CAHD,Home Care - Elderly - North,Other Small Contracts,L D Awareness,478.00,23 May 2018
1756,Revenue,CAHD,Home Care - Elderly - North,Day Care / Social Activities,L D Awareness,2657.68,21 May 2018
1757,Revenue,CAHD,Home Care - Elderly - North,Day Care / Social Activities,L D Awareness,2409.12,29 May 2018
1758,Revenue,CAHD,Home Care - Elderly - North,Day Care / Social Activities,L D Awareness,2294.40,18 May 2018
1759,Revenue,CAHD,18-25 Year Olds,Day Care / Social Activities,L D Awareness,458.88,18 May 2018
1760,Revenue,CAHD,Home Care - Elderly - North,Day Care / Social Activities,L D Awareness,2425.64,25 May 2018
1761,Revenue,CAHD,Home Care - Elderly - North,Day Care / Social Activities,L D Awareness,2212.08,25 May 2018
1762,Revenue,CAHD,Home Care - Elderly - North,Other Small Contracts,L D Awareness,465.36,25 May 2018
1763,Revenue,CAHD,18-25 Year Olds,Day Care / Social Activities,L D Awareness,465.36,25 May 2018
1764,Revenue,CAHD,Home Care - Elderly - South,Other Small Contracts,L D Awareness,1281.36,25 May 2018
1765,Revenue,CAHD,Bed Purchasing - North,Permanent Nursing,Larchfield Care Home,3126.64,09 May 2018
1766,Revenue,CAHD,Bed Purchasing - North,Permanent Nursing,Larchfield Care Home,1563.32,09 May 2018
1767,Revenue,CAHD,Bed Purchasing - North,Permanent Nursing,Larchfield Care Home,1534.18,09 May 2018
1768,Revenue,CAHD,Sexual Health,Other Small Contracts,Leap Valley Surgery,1610.00,18 May 2018
1769,Revenue,CAHD,Sexual Health,Other Small Contracts,Leap Valley Surgery,563.50,18 May 2018
1770,Revenue,CAHD,Sexual Health,Other Small Contracts,Leap Valley Surgery,960.10,18 May 2018
1771,Revenue,CAHD,Bed Purchasing - North,Permanent Residential,Leonard Cheshire  National Account Centr,3584.00,09 May 2018
1772,Revenue,CAHD,Bed Purchasing - South,Permanent Residential,Leonard Cheshire  National Account Centr,3963.56,09 May 2018
1773,Revenue,CAHD,Bed Purchasing - North,Permanent Nursing,Leonard Cheshire  National Account Centr,4160.28,09 May 2018
1774,Revenue,CAHD,Bed Purchasing - North,Permanent Nursing,Leonard Cheshire  National Account Centr,3425.48,09 May 2018
1775,Revenue,CAHD,18-25 Year Olds,Permanent Residential,Leonard Cheshire  National Account Centr,3893.44,09 May 2018
1776,Revenue,CAHD,Bed Purchasing - North,Permanent Residential,Leonard Cheshire  National Account Centr,6640.44,09 May 2018
1777,Revenue,CAHD,Bed Purchasing - North,Permanent Nursing,Leonard Cheshire  National Account Centr,5340.08,09 May 2018
1778,Revenue,CAHD,Bed Purchasing - North,Permanent Nursing,Leonard Cheshire  National Account Centr,3467.44,09 May 2018
1779,Revenue,CAHD,Bed Purchasing - North,Permanent Nursing,Leonard Cheshire  National Account Centr,5228.72,09 May 2018
1780,Revenue,CAHD,Bed Purchasing - North,Permanent Residential,Leonard Cheshire  National Account Centr,3523.28,09 May 2018
1781,Revenue,CAHD,Bed Purchasing - North,Permanent Nursing,Leonard Cheshire  National Account Centr,3365.64,09 May 2018
1782,Revenue,CAHD,Bed Purchasing - North,Permanent Nursing,Leonard Cheshire  National Account Centr,5978.44,09 May 2018
1783,Revenue,CAHD,Bed Purchasing - South,Permanent Nursing,Leonard Cheshire  National Account Centr,6286.84,09 May 2018
1784,Revenue,CAHD,Bed Purchasing - Southmead Hospital,Permanent Nursing,Leonard Cheshire  National Account Centr,3640.16,09 May 2018
1785,Revenue,CAHD,Bed Purchasing - North,Permanent Nursing,Leonard Cheshire  National Account Centr,3984.80,09 May 2018
1786,Revenue,CAHD,EARLY YEARS DISABILITY  ACCES FUND,Preventative Assistance,Lincombe Barn Playgroup,615.00,07 May 2018
1787,Revenue,CAHD,18-25 Year Olds,Permanent Residential,Linden House,9830.48,09 May 2018
1788,Revenue,CAHD,Bed Purchasing - North,Permanent Residential,Linden House,8367.68,09 May 2018
1789,Revenue,CAHD,Bed Purchasing - South,Permanent Residential,Linden House,8595.96,09 May 2018
1790,Revenue,CAHD,Bed purchasing -S28A  Under 65 - North,Permanent Residential,Linden House,12375.92,09 May 2018
1791,Revenue,CAHD,Bed Purchasing - South,Permanent Residential,Little Croft,2092.56,09 May 2018
1792,Revenue,CAHD,Bed Purchasing - Southmead Hospital,Permanent Residential,Little Croft,3260.80,09 May 2018
1793,Revenue,CAHD,Bed Purchasing - Southmead Hospital,Respite Emergency - Residential,Little Croft,1600.00,09 May 2018
1794,Revenue,CAHD,Bed Purchasing - Southmead Hospital,Fees & Charges Income - General,Little Croft,501.45,09 May 2018
1795,Revenue,CAHD,Bed Purchasing - North,Permanent Residential,Little Croft,1956.04,09 May 2018
1796,Revenue,CAHD,Bed Purchasing - Southmead Hospital,Permanent Residential,Little Croft,2301.84,09 May 2018
1797,Revenue,CAHD,Bed Purchasing - South,Respite Planned - Residential,Little Croft,1600.00,09 May 2018
1798,Revenue,CAHD,South Glos Users in South Glos Homes,Respite Planned - Residential,Little Croft,1048.11,09 May 2018
1799,Revenue,CAHD,Bed Purchasing - South,Respite Planned - Residential,Little Croft,1048.11,09 May 2018
1800,Revenue,CAHD,Bed Purchasing - South,Permanent Residential,Little Croft,3057.00,09 May 2018
1801,Revenue,CAHD,Bed Purchasing - South,Permanent Residential,Little Croft,2374.20,09 May 2018
1802,Revenue,CAHD,Bed Purchasing - Southmead Hospital,Permanent Residential,Little Croft,3057.00,09 May 2018
1803,Revenue,CAHD,Bed Purchasing - Southmead Hospital,Permanent Residential,Little Croft,2787.08,09 May 2018
1804,Revenue,CAHD,Bed Purchasing - Southmead Hospital,Permanent Residential,Little Croft,1393.54,09 May 2018
1805,Revenue,CAHD,Bed Purchasing - South,Permanent Residential,Little Croft,1956.04,09 May 2018
1806,Revenue,CAHD,Bed Purchasing - Southmead Hospital,Permanent Residential,Little Croft,2787.08,09 May 2018
1807,Revenue,CAHD,Bed Purchasing - Southmead Hospital,Permanent Residential,Little Croft,2418.72,09 May 2018
1808,Revenue,CAHD,Bed Purchasing - Southmead Hospital,Permanent Residential,Little Croft,1937.04,09 May 2018
1809,Revenue,CAHD,Bed Purchasing - Southmead Hospital,Permanent Residential,Little Croft,2124.76,09 May 2018
1810,Revenue,CAHD,Bed Purchasing - Southmead Hospital,Permanent Residential,Little Croft,2787.08,09 May 2018
1811,Revenue,CAHD,Bed Purchasing - Southmead Hospital,Permanent Residential,Little Croft,1956.04,09 May 2018
1812,Revenue,CAHD,Bed Purchasing - South,Permanent Residential,Little Croft,2374.20,09 May 2018
1813,Revenue,CAHD,Bed Purchasing - South,Permanent Residential,Little Croft,3057.00,09 May 2018
1814,Revenue,CAHD,Bed Purchasing - Southmead Hospital,Permanent Residential,Little Croft,2787.08,09 May 2018
1815,Revenue,CAHD,Bed Purchasing - Southmead Hospital,Permanent Residential,Little Croft,1956.04,09 May 2018
1816,Revenue,CAHD,Bed Purchasing - Southmead Hospital,Permanent Residential,Little Croft,1956.04,09 May 2018
1817,Revenue,CAHD,Early Years Inclusion Fund,Other Public Bodies,Little Sheep Preschool,650.00,29 May 2018
1818,Revenue,CAHD,Bed Purchasing - North,Permanent Residential,Littlecroft Residential Homes  Longcroft,7192.28,09 May 2018
1819,Revenue,CAHD,Supporting People Programme,Grants to Voluntary Bodies,Liverty Limited,2592.00,01 May 2018
1820,Revenue,CAHD,Supporting People Programme,Grants to Voluntary Bodies,Liverty Limited,836.00,01 May 2018
1821,Revenue,CAHD,Supporting People Programme,Grants to Voluntary Bodies,Liverty Limited,881.00,01 May 2018
1822,Revenue,CAHD,Supporting People Programme,Grants to Voluntary Bodies,Liverty Limited,2592.00,01 May 2018
1823,Revenue,CAHD,Supporting People Programme,Grants to Voluntary Bodies,Liverty Limited,1868.00,01 May 2018
1824,Revenue,CAHD,DAT Treatment,Other Small Contracts,Lloyds Pharmacy Limited,675.00,15 May 2018
1825,Revenue,CAHD,DAT Treatment,Other Small Contracts,Lloyds Pharmacy Limited,750.00,15 May 2018
1826,Revenue,CAHD,18-25 Year Olds,Supported Living,Lloyds TSB Commercial Finance Limited,5606.18,07 May 2018
1827,Revenue,CAHD,Home Care - Elderly - South,Day Care / Social Activities,Lloyds TSB Commercial Finance Limited,5848.83,07 May 2018
1828,Revenue,CAHD,Home Care - Elderly - South,Other Small Contracts,Lloyds TSB Commercial Finance Limited,11611.38,07 May 2018
1829,Revenue,CAHD,Home Care - Elderly - South,Supported Living,Lloyds TSB Commercial Finance Limited,6881.59,07 May 2018
1830,Revenue,CAHD,Home Care - Elderly - North,Day Care / Social Activities,Lloyds TSB Commercial Finance Limited,219.36,07 May 2018
1831,Revenue,CAHD,Home Care - Elderly - North,Supported Living,Lloyds TSB Commercial Finance Limited,2047.36,07 May 2018
1832,Revenue,CAHD,Younger MH non-res purchasing,Other Small Contracts,Lloyds TSB Commercial Finance Limited,11112.56,07 May 2018
1833,Revenue,CAHD,18-25 Year Olds,Supported Living,Lloyds TSB Commercial Finance Limited,5615.94,07 May 2018
1834,Revenue,CAHD,Home Care - Elderly - South,Day Care / Social Activities,Lloyds TSB Commercial Finance Limited,5908.24,07 May 2018
1835,Revenue,CAHD,Home Care - Elderly - South,Other Small Contracts,Lloyds TSB Commercial Finance Limited,11655.73,07 May 2018
1836,Revenue,CAHD,Home Care - Elderly - South,Supported Living,Lloyds TSB Commercial Finance Limited,6621.10,07 May 2018
1837,Revenue,CAHD,Home Care - Elderly - North,Day Care / Social Activities,Lloyds TSB Commercial Finance Limited,219.36,07 May 2018
1838,Revenue,CAHD,Home Care - Elderly - North,Supported Living,Lloyds TSB Commercial Finance Limited,2051.93,07 May 2018
1839,Revenue,CAHD,Younger MH non-res purchasing,Other Small Contracts,Lloyds TSB Commercial Finance Limited,11118.22,07 May 2018
1840,Revenue,CAHD,18-25 Year Olds,Supported Living,Lloyds TSB Commercial Finance Limited,5615.94,16 May 2018
1841,Revenue,CAHD,Home Care - Elderly - South,Day Care / Social Activities,Lloyds TSB Commercial Finance Limited,5793.99,16 May 2018
1842,Revenue,CAHD,Home Care - Elderly - South,Other Small Contracts,Lloyds TSB Commercial Finance Limited,11648.95,16 May 2018
1843,Revenue,CAHD,Home Care - Elderly - South,Supported Living,Lloyds TSB Commercial Finance Limited,5657.68,16 May 2018
1844,Revenue,CAHD,Home Care - Elderly - North,Day Care / Social Activities,Lloyds TSB Commercial Finance Limited,219.36,16 May 2018
1845,Revenue,CAHD,Home Care - Elderly - North,Supported Living,Lloyds TSB Commercial Finance Limited,1631.49,16 May 2018
1846,Revenue,CAHD,Younger MH non-res purchasing,Other Small Contracts,Lloyds TSB Commercial Finance Limited,11151.11,16 May 2018
1847,Revenue,CAHD,18-25 Year Olds,Supported Living,Lloyds TSB Commercial Finance Limited,5613.44,16 May 2018
1848,Revenue,CAHD,Home Care - Elderly - South,Day Care / Social Activities,Lloyds TSB Commercial Finance Limited,5812.27,16 May 2018
1849,Revenue,CAHD,Home Care - Elderly - South,Other Small Contracts,Lloyds TSB Commercial Finance Limited,11636.94,16 May 2018
1850,Revenue,CAHD,Home Care - Elderly - South,Supported Living,Lloyds TSB Commercial Finance Limited,5711.62,16 May 2018
1851,Revenue,CAHD,Home Care - Elderly - North,Day Care / Social Activities,Lloyds TSB Commercial Finance Limited,219.36,16 May 2018
